{"text_format":"1","workbook":"xlsx","n_sheets":3,"sheets":["DATA","Purchasing Analysis","(01) Replacement"],"not_rendered":{"charts":0,"images":0,"macros":1,"external_links":0,"defined_names":7,"comments":2,"pivot_tables":0},"unopened":[],"bounds":{"document_bytes":16777216,"sheet_cells":100000,"rows_first":2000,"rows_last":500,"rows_between":2000,"halvings":0,"cell_chars":16384,"cell_head_chars":4096},"cells_cut":0,"cells_raw":0,"read":"whole","date_system":"1900"}

{"sheet":"DATA","index":0,"n_rows":41,"n_cols":27,"rows_kept":41,"cut":false,"hidden":false,"merged":[[3,7,3,8],[3,3,3,4],[1,0,1,8],[3,1,5,1],[2,3,2,4]]}
[]
["Purchasing Analysis",null,null,null,null,null,null,null,null,null,null,null,null,null,null,null,null,null,null,null,null,null,"MAIN"]
[null,null,"Date Of Month :","2018-04-01",null,null,null,null,null,null,null,null,null,null,null,null,null,null,null,null,null,null,"Departments"]
[null,"Search","Suppliers","Mohamed Ezz",null,null,"Stores","Food Store",null,null,null,null,null,null,null,null,null,null,null,null,null,null,"Stores"]
[null,null,"Invoices Amount","Paid","Paid Or Not",null,"Invoices Amount","Paid","Paid Or Not",null,null,null,null,null,null,null,null,null,null,null,null,null,"Suppliers"]
[null,null,{"$f":"SUMIF('Purchasing Analysis'!$D$9:$D$208,$D4,'Purchasing Analysis'!$I$9:$I$208)","v":7800},{"$f":"SUMIF('Purchasing Analysis'!$D$9:$D$208,$D4,'Purchasing Analysis'!$J$9:$J$208)","v":7800},{"$f":"IF(OR(C6=0,D6=0),0,IF(C6=D6,\"Paid\",SUM(D6-C6)))","v":"Paid"},null,{"$f":"SUMIF('Purchasing Analysis'!$D$9:$D$208,$H4,'Purchasing Analysis'!$I$9:$I$208)","v":0},{"$f":"SUMIF('Purchasing Analysis'!$D$9:$D$208,$H4,'Purchasing Analysis'!$J$9:$J$208)","v":0},{"$f":"IF(OR(G6=0,H6=0),0,IF(G6=H6,\"Paid\",SUM(H6-G6)))","v":0}]
[]
[null,null,"BY : Invoices",null,null,null,"BY : Petty Cash"]
["#","Date","Invoices Amount","Paid","Paid Or Not",null,"Petty Cash","Paid","Paid Or Not",null,null,null,null,null,null,null,null,null,null,null,null,null,"Departments","Stores","Suppliers","Name Of Buyer","Remarks"]
[1,{"$f":"D3","v":"2018-04-01"},{"$f":"SUMIF('Purchasing Analysis'!$C$9:$C$1048576,$B10,'Purchasing Analysis'!$I$9:$I$1048576)","v":12800},{"$f":"SUMIF('Purchasing Analysis'!$C$9:$C$1048576,$B10,'Purchasing Analysis'!$J$9:$J$1048576)","v":12800},{"$f":"IF(AND(C10=0,D10=0),0,IF(C10=D10,\"Paid\",SUM(D10-C10)))","v":"Paid"},null,{"$f":"SUMIF('Purchasing Analysis'!$C$9:$C$1048576,$B10,'Purchasing Analysis'!$F$9:$F$1048576)","v":35000},{"$f":"SUMIF('Purchasing Analysis'!$C$9:$C$1048576,$B10,'Purchasing Analysis'!$J$9:$J$1048576)","v":12800},{"$f":"IF(AND(G10=0,H10=0),0,IF(G10=H10,\"Paid\",SUM(H10-G10)))","v":-22200},null,null,null,null,null,null,null,null,null,{"$f":"D3","v":"2018-04-01"},"2018-01-01",{"$f":"(DATE(YEAR(T10),MONTH(T10)+1,1))-(DATE(YEAR(T10),MONTH(T10),1))","v":31},{"$f":"T10+U10-1","v":"2018-01-31"}]
[{"$f":"A10+1","v":2},{"$f":"B10+1","v":"2018-04-02"},{"$f":"SUMIF('Purchasing Analysis'!$C$9:$C$1048576,$B11,'Purchasing Analysis'!$I$9:$I$1048576)","v":0},{"$f":"SUMIF('Purchasing Analysis'!$C$9:$C$1048576,$B11,'Purchasing Analysis'!$J$9:$J$1048576)","v":0},{"$f":"IF(AND(C11=0,D11=0),0,IF(C11=D11,\"Paid\",SUM(D11-C11)))","v":0},null,{"$f":"SUMIF('Purchasing Analysis'!$C$9:$C$1048576,$B11,'Purchasing Analysis'!$F$9:$F$1048576)","v":0},{"$f":"SUMIF('Purchasing Analysis'!$C$9:$C$1048576,$B11,'Purchasing Analysis'!$J$9:$J$1048576)","v":0},{"$f":"IF(AND(G11=0,H11=0),0,IF(G11=H11,\"Paid\",SUM(H11-G11)))","v":0},null,null,null,null,null,null,null,null,null,{"$f":"S10+1","v":"2018-04-02"},{"$f":"T10+U10","v":"2018-02-01"},{"$f":"(DATE(YEAR(T11),MONTH(T11)+1,1))-(DATE(YEAR(T11),MONTH(T11),1))","v":28},{"$f":"T11+U11-1","v":"2018-02-28"},"Front Office","Food Store","Mohamed Ezz","Hany","DONE"]
[{"$f":"A11+1","v":3},{"$f":"B11+1","v":"2018-04-03"},{"$f":"SUMIF('Purchasing Analysis'!$C$9:$C$1048576,$B12,'Purchasing Analysis'!$I$9:$I$1048576)","v":0},{"$f":"SUMIF('Purchasing Analysis'!$C$9:$C$1048576,$B12,'Purchasing Analysis'!$J$9:$J$1048576)","v":0},{"$f":"IF(AND(C12=0,D12=0),0,IF(C12=D12,\"Paid\",SUM(D12-C12)))","v":0},null,{"$f":"SUMIF('Purchasing Analysis'!$C$9:$C$1048576,$B12,'Purchasing Analysis'!$F$9:$F$1048576)","v":0},{"$f":"SUMIF('Purchasing Analysis'!$C$9:$C$1048576,$B12,'Purchasing Analysis'!$J$9:$J$1048576)","v":0},{"$f":"IF(AND(G12=0,H12=0),0,IF(G12=H12,\"Paid\",SUM(H12-G12)))","v":0},null,null,null,null,null,null,null,null,null,{"$f":"S11+1","v":"2018-04-03"},{"$f":"T11+U11","v":"2018-03-01"},{"$f":"(DATE(YEAR(T12),MONTH(T12)+1,1))-(DATE(YEAR(T12),MONTH(T12),1))","v":31},{"$f":"T12+U12-1","v":"2018-03-31"},"Housekeeping","Beverage Store",null,"Ibrahim ","HOLD"]
[4,"2018-04-04",{"$f":"SUMIF('Purchasing Analysis'!$C$9:$C$1048576,$B13,'Purchasing Analysis'!$I$9:$I$1048576)","v":0},{"$f":"SUMIF('Purchasing Analysis'!$C$9:$C$1048576,$B13,'Purchasing Analysis'!$J$9:$J$1048576)","v":0},0,null,{"$f":"SUMIF('Purchasing Analysis'!$C$9:$C$1048576,$B13,'Purchasing Analysis'!$F$9:$F$1048576)","v":0},{"$f":"SUMIF('Purchasing Analysis'!$C$9:$C$1048576,$B13,'Purchasing Analysis'!$J$9:$J$1048576)","v":0},0,null,null,null,null,null,null,null,null,null,"2018-04-04","2018-04-01",30,"2018-04-30","Guest Relation","General Store",null,"Ahmed","X-(Wrong)-X"]
[5,"2018-04-05",{"$f":"SUMIF('Purchasing Analysis'!$C$9:$C$1048576,$B14,'Purchasing Analysis'!$I$9:$I$1048576)","v":0},{"$f":"SUMIF('Purchasing Analysis'!$C$9:$C$1048576,$B14,'Purchasing Analysis'!$J$9:$J$1048576)","v":0},0,null,{"$f":"SUMIF('Purchasing Analysis'!$C$9:$C$1048576,$B14,'Purchasing Analysis'!$F$9:$F$1048576)","v":0},{"$f":"SUMIF('Purchasing Analysis'!$C$9:$C$1048576,$B14,'Purchasing Analysis'!$J$9:$J$1048576)","v":0},0,null,null,null,null,null,null,null,null,null,"2018-04-05","2018-05-01",31,"2018-05-31","F&B Service","Tobacoo Store"]
[6,"2018-04-06",{"$f":"SUMIF('Purchasing Analysis'!$C$9:$C$1048576,$B15,'Purchasing Analysis'!$I$9:$I$1048576)","v":0},{"$f":"SUMIF('Purchasing Analysis'!$C$9:$C$1048576,$B15,'Purchasing Analysis'!$J$9:$J$1048576)","v":0},0,null,{"$f":"SUMIF('Purchasing Analysis'!$C$9:$C$1048576,$B15,'Purchasing Analysis'!$F$9:$F$1048576)","v":0},{"$f":"SUMIF('Purchasing Analysis'!$C$9:$C$1048576,$B15,'Purchasing Analysis'!$J$9:$J$1048576)","v":0},0,null,null,null,null,null,null,null,null,null,"2018-04-06","2018-06-01",30,"2018-06-30","Kitchen","Engineering Store"]
[7,"2018-04-07",{"$f":"SUMIF('Purchasing Analysis'!$C$9:$C$1048576,$B16,'Purchasing Analysis'!$I$9:$I$1048576)","v":0},{"$f":"SUMIF('Purchasing Analysis'!$C$9:$C$1048576,$B16,'Purchasing Analysis'!$J$9:$J$1048576)","v":0},0,null,{"$f":"SUMIF('Purchasing Analysis'!$C$9:$C$1048576,$B16,'Purchasing Analysis'!$F$9:$F$1048576)","v":0},{"$f":"SUMIF('Purchasing Analysis'!$C$9:$C$1048576,$B16,'Purchasing Analysis'!$J$9:$J$1048576)","v":0},0,null,null,null,null,null,null,null,null,null,"2018-04-07","2018-07-01",31,"2018-07-31","Stewarding","Solar & Gas Store"]
[8,"2018-04-08",{"$f":"SUMIF('Purchasing Analysis'!$C$9:$C$1048576,$B17,'Purchasing Analysis'!$I$9:$I$1048576)","v":0},{"$f":"SUMIF('Purchasing Analysis'!$C$9:$C$1048576,$B17,'Purchasing Analysis'!$J$9:$J$1048576)","v":0},0,null,{"$f":"SUMIF('Purchasing Analysis'!$C$9:$C$1048576,$B17,'Purchasing Analysis'!$F$9:$F$1048576)","v":0},{"$f":"SUMIF('Purchasing Analysis'!$C$9:$C$1048576,$B17,'Purchasing Analysis'!$J$9:$J$1048576)","v":0},0,null,null,null,null,null,null,null,null,null,"2018-04-08","2018-08-01",31,"2018-08-31","Ex. Office","SOE Store"]
[9,"2018-04-09",{"$f":"SUMIF('Purchasing Analysis'!$C$9:$C$1048576,$B18,'Purchasing Analysis'!$I$9:$I$1048576)","v":0},{"$f":"SUMIF('Purchasing Analysis'!$C$9:$C$1048576,$B18,'Purchasing Analysis'!$J$9:$J$1048576)","v":0},0,null,{"$f":"SUMIF('Purchasing Analysis'!$C$9:$C$1048576,$B18,'Purchasing Analysis'!$F$9:$F$1048576)","v":0},{"$f":"SUMIF('Purchasing Analysis'!$C$9:$C$1048576,$B18,'Purchasing Analysis'!$J$9:$J$1048576)","v":0},0,null,null,null,null,null,null,null,null,null,"2018-04-09","2018-09-01",30,"2018-09-30","Finance"]
[10,"2018-04-10",{"$f":"SUMIF('Purchasing Analysis'!$C$9:$C$1048576,$B19,'Purchasing Analysis'!$I$9:$I$1048576)","v":0},{"$f":"SUMIF('Purchasing Analysis'!$C$9:$C$1048576,$B19,'Purchasing Analysis'!$J$9:$J$1048576)","v":0},0,null,{"$f":"SUMIF('Purchasing Analysis'!$C$9:$C$1048576,$B19,'Purchasing Analysis'!$F$9:$F$1048576)","v":0},{"$f":"SUMIF('Purchasing Analysis'!$C$9:$C$1048576,$B19,'Purchasing Analysis'!$J$9:$J$1048576)","v":0},0,null,null,null,null,null,null,null,null,null,"2018-04-10","2018-10-01",31,"2018-10-31","Engineering"]
[11,"2018-04-11",{"$f":"SUMIF('Purchasing Analysis'!$C$9:$C$1048576,$B20,'Purchasing Analysis'!$I$9:$I$1048576)","v":7800},{"$f":"SUMIF('Purchasing Analysis'!$C$9:$C$1048576,$B20,'Purchasing Analysis'!$J$9:$J$1048576)","v":7800},"Paid",null,{"$f":"SUMIF('Purchasing Analysis'!$C$9:$C$1048576,$B20,'Purchasing Analysis'!$F$9:$F$1048576)","v":10600},{"$f":"SUMIF('Purchasing Analysis'!$C$9:$C$1048576,$B20,'Purchasing Analysis'!$J$9:$J$1048576)","v":7800},-2800,null,null,null,null,null,null,null,null,null,"2018-04-11","2018-11-01",30,"2018-11-30","S&M Dept."]
[12,"2018-04-12",{"$f":"SUMIF('Purchasing Analysis'!$C$9:$C$1048576,$B21,'Purchasing Analysis'!$I$9:$I$1048576)","v":0},{"$f":"SUMIF('Purchasing Analysis'!$C$9:$C$1048576,$B21,'Purchasing Analysis'!$J$9:$J$1048576)","v":0},0,null,{"$f":"SUMIF('Purchasing Analysis'!$C$9:$C$1048576,$B21,'Purchasing Analysis'!$F$9:$F$1048576)","v":0},{"$f":"SUMIF('Purchasing Analysis'!$C$9:$C$1048576,$B21,'Purchasing Analysis'!$J$9:$J$1048576)","v":0},0,null,null,null,null,null,null,null,null,null,"2018-04-12","2018-12-01",31,"2018-12-31","Tel.& B.C"]
[13,"2018-04-13",{"$f":"SUMIF('Purchasing Analysis'!$C$9:$C$1048576,$B22,'Purchasing Analysis'!$I$9:$I$1048576)","v":0},{"$f":"SUMIF('Purchasing Analysis'!$C$9:$C$1048576,$B22,'Purchasing Analysis'!$J$9:$J$1048576)","v":0},0,null,{"$f":"SUMIF('Purchasing Analysis'!$C$9:$C$1048576,$B22,'Purchasing Analysis'!$F$9:$F$1048576)","v":0},{"$f":"SUMIF('Purchasing Analysis'!$C$9:$C$1048576,$B22,'Purchasing Analysis'!$J$9:$J$1048576)","v":0},0,null,null,null,null,null,null,null,null,null,"2018-04-13",null,{"$f":"SUM(U10:U21)","v":365},null,"EDP ( I.T )"]
[14,"2018-04-14",{"$f":"SUMIF('Purchasing Analysis'!$C$9:$C$1048576,$B23,'Purchasing Analysis'!$I$9:$I$1048576)","v":0},{"$f":"SUMIF('Purchasing Analysis'!$C$9:$C$1048576,$B23,'Purchasing Analysis'!$J$9:$J$1048576)","v":0},0,null,{"$f":"SUMIF('Purchasing Analysis'!$C$9:$C$1048576,$B23,'Purchasing Analysis'!$F$9:$F$1048576)","v":0},{"$f":"SUMIF('Purchasing Analysis'!$C$9:$C$1048576,$B23,'Purchasing Analysis'!$J$9:$J$1048576)","v":0},0,null,null,null,null,null,null,null,null,null,"2018-04-14",null,null,null,"Recreation"]
[15,"2018-04-15",{"$f":"SUMIF('Purchasing Analysis'!$C$9:$C$1048576,$B24,'Purchasing Analysis'!$I$9:$I$1048576)","v":0},{"$f":"SUMIF('Purchasing Analysis'!$C$9:$C$1048576,$B24,'Purchasing Analysis'!$J$9:$J$1048576)","v":0},0,null,{"$f":"SUMIF('Purchasing Analysis'!$C$9:$C$1048576,$B24,'Purchasing Analysis'!$F$9:$F$1048576)","v":0},{"$f":"SUMIF('Purchasing Analysis'!$C$9:$C$1048576,$B24,'Purchasing Analysis'!$J$9:$J$1048576)","v":0},0,null,null,null,null,null,null,null,null,null,"2018-04-15",null,null,null,"Animation"]
[16,"2018-04-16",{"$f":"SUMIF('Purchasing Analysis'!$C$9:$C$1048576,$B25,'Purchasing Analysis'!$I$9:$I$1048576)","v":0},{"$f":"SUMIF('Purchasing Analysis'!$C$9:$C$1048576,$B25,'Purchasing Analysis'!$J$9:$J$1048576)","v":0},0,null,{"$f":"SUMIF('Purchasing Analysis'!$C$9:$C$1048576,$B25,'Purchasing Analysis'!$F$9:$F$1048576)","v":0},{"$f":"SUMIF('Purchasing Analysis'!$C$9:$C$1048576,$B25,'Purchasing Analysis'!$J$9:$J$1048576)","v":0},0,null,null,null,null,null,null,null,null,null,"2018-04-16",null,null,null,"HR Dept."]
[17,"2018-04-17",{"$f":"SUMIF('Purchasing Analysis'!$C$9:$C$1048576,$B26,'Purchasing Analysis'!$I$9:$I$1048576)","v":0},{"$f":"SUMIF('Purchasing Analysis'!$C$9:$C$1048576,$B26,'Purchasing Analysis'!$J$9:$J$1048576)","v":0},0,null,{"$f":"SUMIF('Purchasing Analysis'!$C$9:$C$1048576,$B26,'Purchasing Analysis'!$F$9:$F$1048576)","v":0},{"$f":"SUMIF('Purchasing Analysis'!$C$9:$C$1048576,$B26,'Purchasing Analysis'!$J$9:$J$1048576)","v":0},0,null,null,null,null,null,null,null,null,null,"2018-04-17",null,null,null,"Laundry"]
[18,"2018-04-18",{"$f":"SUMIF('Purchasing Analysis'!$C$9:$C$1048576,$B27,'Purchasing Analysis'!$I$9:$I$1048576)","v":0},{"$f":"SUMIF('Purchasing Analysis'!$C$9:$C$1048576,$B27,'Purchasing Analysis'!$J$9:$J$1048576)","v":0},0,null,{"$f":"SUMIF('Purchasing Analysis'!$C$9:$C$1048576,$B27,'Purchasing Analysis'!$F$9:$F$1048576)","v":0},{"$f":"SUMIF('Purchasing Analysis'!$C$9:$C$1048576,$B27,'Purchasing Analysis'!$J$9:$J$1048576)","v":0},0,null,null,null,null,null,null,null,null,null,"2018-04-18",null,null,null,"Staff Cafeteria"]
[19,"2018-04-19",{"$f":"SUMIF('Purchasing Analysis'!$C$9:$C$1048576,$B28,'Purchasing Analysis'!$I$9:$I$1048576)","v":0},{"$f":"SUMIF('Purchasing Analysis'!$C$9:$C$1048576,$B28,'Purchasing Analysis'!$J$9:$J$1048576)","v":0},0,null,{"$f":"SUMIF('Purchasing Analysis'!$C$9:$C$1048576,$B28,'Purchasing Analysis'!$F$9:$F$1048576)","v":0},{"$f":"SUMIF('Purchasing Analysis'!$C$9:$C$1048576,$B28,'Purchasing Analysis'!$J$9:$J$1048576)","v":0},0,null,null,null,null,null,null,null,null,null,"2018-04-19",null,null,null,"Staff Housing"]
[20,"2018-04-20",{"$f":"SUMIF('Purchasing Analysis'!$C$9:$C$1048576,$B29,'Purchasing Analysis'!$I$9:$I$1048576)","v":0},{"$f":"SUMIF('Purchasing Analysis'!$C$9:$C$1048576,$B29,'Purchasing Analysis'!$J$9:$J$1048576)","v":0},0,null,{"$f":"SUMIF('Purchasing Analysis'!$C$9:$C$1048576,$B29,'Purchasing Analysis'!$F$9:$F$1048576)","v":0},{"$f":"SUMIF('Purchasing Analysis'!$C$9:$C$1048576,$B29,'Purchasing Analysis'!$J$9:$J$1048576)","v":0},0,null,null,null,null,null,null,null,null,null,"2018-04-20"]
[21,"2018-04-21",{"$f":"SUMIF('Purchasing Analysis'!$C$9:$C$1048576,$B30,'Purchasing Analysis'!$I$9:$I$1048576)","v":0},{"$f":"SUMIF('Purchasing Analysis'!$C$9:$C$1048576,$B30,'Purchasing Analysis'!$J$9:$J$1048576)","v":0},0,null,{"$f":"SUMIF('Purchasing Analysis'!$C$9:$C$1048576,$B30,'Purchasing Analysis'!$F$9:$F$1048576)","v":0},{"$f":"SUMIF('Purchasing Analysis'!$C$9:$C$1048576,$B30,'Purchasing Analysis'!$J$9:$J$1048576)","v":0},0,null,null,null,null,null,null,null,null,null,"2018-04-21"]
[22,"2018-04-22",{"$f":"SUMIF('Purchasing Analysis'!$C$9:$C$1048576,$B31,'Purchasing Analysis'!$I$9:$I$1048576)","v":0},{"$f":"SUMIF('Purchasing Analysis'!$C$9:$C$1048576,$B31,'Purchasing Analysis'!$J$9:$J$1048576)","v":0},0,null,{"$f":"SUMIF('Purchasing Analysis'!$C$9:$C$1048576,$B31,'Purchasing Analysis'!$F$9:$F$1048576)","v":0},{"$f":"SUMIF('Purchasing Analysis'!$C$9:$C$1048576,$B31,'Purchasing Analysis'!$J$9:$J$1048576)","v":0},0,null,null,null,null,null,null,null,null,null,"2018-04-22"]
[23,"2018-04-23",{"$f":"SUMIF('Purchasing Analysis'!$C$9:$C$1048576,$B32,'Purchasing Analysis'!$I$9:$I$1048576)","v":0},{"$f":"SUMIF('Purchasing Analysis'!$C$9:$C$1048576,$B32,'Purchasing Analysis'!$J$9:$J$1048576)","v":0},0,null,{"$f":"SUMIF('Purchasing Analysis'!$C$9:$C$1048576,$B32,'Purchasing Analysis'!$F$9:$F$1048576)","v":0},{"$f":"SUMIF('Purchasing Analysis'!$C$9:$C$1048576,$B32,'Purchasing Analysis'!$J$9:$J$1048576)","v":0},0,null,null,null,null,null,null,null,null,null,"2018-04-23"]
[24,"2018-04-24",{"$f":"SUMIF('Purchasing Analysis'!$C$9:$C$1048576,$B33,'Purchasing Analysis'!$I$9:$I$1048576)","v":0},{"$f":"SUMIF('Purchasing Analysis'!$C$9:$C$1048576,$B33,'Purchasing Analysis'!$J$9:$J$1048576)","v":0},0,null,{"$f":"SUMIF('Purchasing Analysis'!$C$9:$C$1048576,$B33,'Purchasing Analysis'!$F$9:$F$1048576)","v":0},{"$f":"SUMIF('Purchasing Analysis'!$C$9:$C$1048576,$B33,'Purchasing Analysis'!$J$9:$J$1048576)","v":0},0,null,null,null,null,null,null,null,null,null,"2018-04-24"]
[25,"2018-04-25",{"$f":"SUMIF('Purchasing Analysis'!$C$9:$C$1048576,$B34,'Purchasing Analysis'!$I$9:$I$1048576)","v":0},{"$f":"SUMIF('Purchasing Analysis'!$C$9:$C$1048576,$B34,'Purchasing Analysis'!$J$9:$J$1048576)","v":0},0,null,{"$f":"SUMIF('Purchasing Analysis'!$C$9:$C$1048576,$B34,'Purchasing Analysis'!$F$9:$F$1048576)","v":0},{"$f":"SUMIF('Purchasing Analysis'!$C$9:$C$1048576,$B34,'Purchasing Analysis'!$J$9:$J$1048576)","v":0},0,null,null,null,null,null,null,null,null,null,"2018-04-25"]
[26,"2018-04-26",{"$f":"SUMIF('Purchasing Analysis'!$C$9:$C$1048576,$B35,'Purchasing Analysis'!$I$9:$I$1048576)","v":0},{"$f":"SUMIF('Purchasing Analysis'!$C$9:$C$1048576,$B35,'Purchasing Analysis'!$J$9:$J$1048576)","v":0},0,null,{"$f":"SUMIF('Purchasing Analysis'!$C$9:$C$1048576,$B35,'Purchasing Analysis'!$F$9:$F$1048576)","v":0},{"$f":"SUMIF('Purchasing Analysis'!$C$9:$C$1048576,$B35,'Purchasing Analysis'!$J$9:$J$1048576)","v":0},0,null,null,null,null,null,null,null,null,null,"2018-04-26"]
[27,"2018-04-27",{"$f":"SUMIF('Purchasing Analysis'!$C$9:$C$1048576,$B36,'Purchasing Analysis'!$I$9:$I$1048576)","v":0},{"$f":"SUMIF('Purchasing Analysis'!$C$9:$C$1048576,$B36,'Purchasing Analysis'!$J$9:$J$1048576)","v":0},0,null,{"$f":"SUMIF('Purchasing Analysis'!$C$9:$C$1048576,$B36,'Purchasing Analysis'!$F$9:$F$1048576)","v":0},{"$f":"SUMIF('Purchasing Analysis'!$C$9:$C$1048576,$B36,'Purchasing Analysis'!$J$9:$J$1048576)","v":0},0,null,null,null,null,null,null,null,null,null,"2018-04-27"]
[28,{"$f":"B36+1","v":"2018-04-28"},{"$f":"SUMIF('Purchasing Analysis'!$C$9:$C$1048576,$B37,'Purchasing Analysis'!$I$9:$I$1048576)","v":0},{"$f":"SUMIF('Purchasing Analysis'!$C$9:$C$1048576,$B37,'Purchasing Analysis'!$J$9:$J$1048576)","v":0},0,null,{"$f":"SUMIF('Purchasing Analysis'!$C$9:$C$1048576,$B37,'Purchasing Analysis'!$F$9:$F$1048576)","v":0},{"$f":"SUMIF('Purchasing Analysis'!$C$9:$C$1048576,$B37,'Purchasing Analysis'!$J$9:$J$1048576)","v":0},0,null,null,null,null,null,null,null,null,null,"2018-04-28"]
[29,"2018-04-29",{"$f":"SUMIF('Purchasing Analysis'!$C$9:$C$1048576,$B38,'Purchasing Analysis'!$I$9:$I$1048576)","v":0},{"$f":"SUMIF('Purchasing Analysis'!$C$9:$C$1048576,$B38,'Purchasing Analysis'!$J$9:$J$1048576)","v":0},0,null,{"$f":"SUMIF('Purchasing Analysis'!$C$9:$C$1048576,$B38,'Purchasing Analysis'!$F$9:$F$1048576)","v":0},{"$f":"SUMIF('Purchasing Analysis'!$C$9:$C$1048576,$B38,'Purchasing Analysis'!$J$9:$J$1048576)","v":0},0,null,null,null,null,null,null,null,null,null,"2018-04-29"]
[30,"2018-04-30",{"$f":"SUMIF('Purchasing Analysis'!$C$9:$C$1048576,$B39,'Purchasing Analysis'!$I$9:$I$1048576)","v":0},{"$f":"SUMIF('Purchasing Analysis'!$C$9:$C$1048576,$B39,'Purchasing Analysis'!$J$9:$J$1048576)","v":0},0,null,{"$f":"SUMIF('Purchasing Analysis'!$C$9:$C$1048576,$B39,'Purchasing Analysis'!$F$9:$F$1048576)","v":0},{"$f":"SUMIF('Purchasing Analysis'!$C$9:$C$1048576,$B39,'Purchasing Analysis'!$J$9:$J$1048576)","v":0},0,null,null,null,null,null,null,null,null,null,"2018-04-30"]
[31,"2018-05-01",{"$f":"SUMIF('Purchasing Analysis'!$C$9:$C$1048576,$B40,'Purchasing Analysis'!$I$9:$I$1048576)","v":0},{"$f":"SUMIF('Purchasing Analysis'!$C$9:$C$1048576,$B40,'Purchasing Analysis'!$J$9:$J$1048576)","v":0},0,null,{"$f":"SUMIF('Purchasing Analysis'!$C$9:$C$1048576,$B40,'Purchasing Analysis'!$F$9:$F$1048576)","v":0},{"$f":"SUMIF('Purchasing Analysis'!$C$9:$C$1048576,$B40,'Purchasing Analysis'!$J$9:$J$1048576)","v":0},0,null,null,null,null,null,null,null,null,null,"2018-05-01"]
[null,"Amount",{"$f":"SUM(C10:C40)","v":20600},{"$f":"SUM(D10:D40)","v":20600},"Paid",null,{"$f":"SUM(G10:G40)","v":45600},{"$f":"SUM(H10:H40)","v":20600},-25000]

{"sheet":"Purchasing Analysis","index":1,"n_rows":5000,"n_cols":15,"rows_kept":5000,"cut":false,"hidden":false,"merged":[[1,9,1,10]]}
[]
[null,null,null,"Daily Purchasing Analysis",null,null,null,null,null,{"$f":"SUM(F4-J4)","v":60600},null,null,null,{"$f":"IF(O11=0,\"\",SEARCH(O11,$A9&\" \"&$B9&\" \"&$C9&\" \"&$D9&\" \"&$E9&\" \"&$F9&\" \"&$G9&\" \"&$H9&\" \"&$I9&\" \"&$J9&\" \"&$L9&\" \"&$M9&\" \"))","v":{"$error":"#VALUE!"}}]
[null,null,null,null,null,"Petty Cash",null,null,"Invoices Amount","Invoices Paid","Paid OR Not"]
[null,null,null,null,null,{"$f":"SUM(F9:F1048576)","v":150600},null,null,{"$f":"SUM(I9:I1048576)","v":104615},{"$f":"SUM(J9:J1048576)","v":90000},{"$f":"IF(AND(I4=0,J4=0),0,IF(I4=J4,\"Paid\",SUM(J4-I4)))","v":-14615}]
[]
[null,null,null,null,null,null,"Search :",null,{"$f":"SUMIF($H$9:$K$1048576,$H$6,$I$9:$I$1048576)","v":0},{"$f":"SUMIF($H$9:$K$1048576,$H$6,$J$9:$J$1048576)","v":0},{"$f":"IF(AND(I6=0,J6=0),0,IF(I6=J6,\"Paid\",SUM(J6-I6)))","v":0}]
[]
["#","Rec. No.","Date Of Purchase","Suppliers","Stores","Petty Cash","Invoice No.","Descriptions","Invoices Amount","Invoices Paid","Paid OR Not","Name Of Buyer","Remarks"]
[1,null,"2018-04-01",null,null,25000,null,"سولار",5000,5000,{"$f":"IF(AND(I9=0,J9=0),0,IF(I9=J9,\"Paid\",SUM(J9-I9)))","v":"Paid"},"Ibrahim ",null,null,{"$f":"DATA!AA11","v":"DONE"}]
[{"$f":"A9+1","v":2},null,"2018-04-01",null,"Engineering",10000,null,"سولار",7800,7800,{"$f":"IF(AND(I10=0,J10=0),0,IF(I10=J10,\"Paid\",SUM(J10-I10)))","v":"Paid"},null,null,null,{"$f":"DATA!AA12","v":"HOLD"}]
[{"$f":"A10+1","v":3},null,"2018-04-11","Mohamed Ezz","Solar & Gas Store",10600,100,"سولار",7800,7800,{"$f":"IF(AND(I11=0,J11=0),0,IF(I11=J11,\"Paid\",SUM(J11-I11)))","v":"Paid"},null,null,null,{"$f":"DATA!AA13","v":"X-(Wrong)-X"}]
[4,null,null,null,null,100000,null,"سولار",7800,7800,"Paid"]
[5,null,null,null,null,5000,null,"سولار",7800,null,-7800]
[6,null,null,null,null,null,null,"سولار",7800,7800,"Paid"]
[7,null,null,null,null,null,null,"سولار",7800,7800,"Paid"]
[8,null,null,null,null,null,null,"سولار",7800,6000,-1800]
[9,null,null,null,null,null,null,null,40000,40000,"Paid"]
[10,null,null,null,null,null,null,null,5000,null,-5000]
[11,null,null,null,null,null,null,null,15,null,-15]
[{"$f":"A19+1","v":12},null,null,null,null,null,null,null,null,null,{"$f":"IF(AND(I20=0,J20=0),0,IF(I20=J20,\"Paid\",SUM(J20-I20)))","v":0}]
[13,null,null,null,null,null,null,null,null,null,0]
[14,null,null,null,null,null,null,null,null,null,0]
[15,null,null,null,null,null,null,null,null,null,0]
[16,null,null,null,null,null,null,null,null,null,0]
[17,null,null,null,null,null,null,null,null,null,0]
[18,null,null,null,null,null,null,null,null,null,0]
[19,null,null,null,null,null,null,null,null,null,0]
[20,null,null,null,null,null,null,null,null,null,0]
[21,null,null,null,null,null,null,null,null,null,0]
[22,null,null,null,null,null,null,null,null,null,0]
[23,null,null,null,null,null,null,null,null,null,0]
[24,null,null,null,null,null,null,null,null,null,0]
[25,null,null,null,null,null,null,null,null,null,0]
[26,null,null,null,null,null,null,null,null,null,0]
[27,null,null,null,null,null,null,null,null,null,0]
[28,null,null,null,null,null,null,null,null,null,0]
[29,null,null,null,null,null,null,null,null,null,0]
[30,null,null,null,null,null,null,null,null,null,0]
[31,null,null,null,null,null,null,null,null,null,0]
[32,null,null,null,null,null,null,null,null,null,0]
[33,null,null,null,null,null,null,null,null,null,0]
[34,null,null,null,null,null,null,null,null,null,0]
[35,null,null,null,null,null,null,null,null,null,0]
[36,null,null,null,null,null,null,null,null,null,0]
[37,null,null,null,null,null,null,null,null,null,0]
[38,null,null,null,null,null,null,null,null,null,0]
[39,null,null,null,null,null,null,null,null,null,0]
[40,null,null,null,null,null,null,null,null,null,0]
[41,null,null,null,null,null,null,null,null,null,0]
[42,null,null,null,null,null,null,null,null,null,0]
[43,null,null,null,null,null,null,null,null,null,0]
[44,null,null,null,null,null,null,null,null,null,0]
[45,null,null,null,null,null,null,null,null,null,0]
[46,null,null,null,null,null,null,null,null,null,0]
[47,null,null,null,null,null,null,null,null,null,0]
[48,null,null,null,null,null,null,null,null,null,0]
[49,null,null,null,null,null,null,null,null,null,0]
[50,null,null,null,null,null,null,null,null,null,0]
[51,null,null,null,null,null,null,null,null,null,0]
[52,null,null,null,null,null,null,null,null,null,0]
[53,null,null,null,null,null,null,null,null,null,0]
[54,null,null,null,null,null,null,null,null,null,0]
[55,null,null,null,null,null,null,null,null,null,0]
[56,null,null,null,null,null,null,null,null,null,0]
[57,null,null,null,null,null,null,null,null,null,0]
[58,null,null,null,null,null,null,null,null,null,0]
[59,null,null,null,null,null,null,null,null,null,0]
[60,null,null,null,null,null,null,null,null,null,0]
[61,null,null,null,null,null,null,null,null,null,0]
[62,null,null,null,null,null,null,null,null,null,0]
[63,null,null,null,null,null,null,null,null,null,0]
[64,null,null,null,null,null,null,null,null,null,0]
[65,null,null,null,null,null,null,null,null,null,0]
[66,null,null,null,null,null,null,null,null,null,0]
[67,null,null,null,null,null,null,null,null,null,0]
[68,null,null,null,null,null,null,null,null,null,0]
[69,null,null,null,null,null,null,null,null,null,0]
[{"$f":"A77+1","v":70},null,null,null,null,null,null,null,null,null,{"$f":"IF(AND(I78=0,J78=0),0,IF(I78=J78,\"Paid\",SUM(J78-I78)))","v":0}]
[71,null,null,null,null,null,null,null,null,null,0]
[72,null,null,null,null,null,null,null,null,null,0]
[73,null,null,null,null,null,null,null,null,null,0]
[74,null,null,null,null,null,null,null,null,null,0]
[75,null,null,null,null,null,null,null,null,null,0]
[76,null,null,null,null,null,null,null,null,null,0]
[77,null,null,null,null,null,null,null,null,null,0]
[78,null,null,null,null,null,null,null,null,null,0]
[79,null,null,null,null,null,null,null,null,null,0]
[80,null,null,null,null,null,null,null,null,null,0]
[81,null,null,null,null,null,null,null,null,null,0]
[82,null,null,null,null,null,null,null,null,null,0]
[83,null,null,null,null,null,null,null,null,null,0]
[84,null,null,null,null,null,null,null,null,null,0]
[85,null,null,null,null,null,null,null,null,null,0]
[86,null,null,null,null,null,null,null,null,null,0]
[87,null,null,null,null,null,null,null,null,null,0]
[88,null,null,null,null,null,null,null,null,null,0]
[89,null,null,null,null,null,null,null,null,null,0]
[90,null,null,null,null,null,null,null,null,null,0]
[91,null,null,null,null,null,null,null,null,null,0]
[92,null,null,null,null,null,null,null,null,null,0]
[93,null,null,null,null,null,null,null,null,null,0]
[94,null,null,null,null,null,null,null,null,null,0]
[95,null,null,null,null,null,null,null,null,null,0]
[96,null,null,null,null,null,null,null,null,null,0]
[97,null,null,null,null,null,null,null,null,null,0]
[98,null,null,null,null,null,null,null,null,null,0]
[99,null,null,null,null,null,null,null,null,null,0]
[100,null,null,null,null,null,null,null,null,null,0]
[101,null,null,null,null,null,null,null,null,null,0]
[102,null,null,null,null,null,null,null,null,null,0]
[103,null,null,null,null,null,null,null,null,null,0]
[104,null,null,null,null,null,null,null,null,null,0]
[105,null,null,null,null,null,null,null,null,null,0]
[106,null,null,null,null,null,null,null,null,null,0]
[107,null,null,null,null,null,null,null,null,null,0]
[108,null,null,null,null,null,null,null,null,null,0]
[109,null,null,null,null,null,null,null,null,null,0]
[110,null,null,null,null,null,null,null,null,null,0]
[111,null,null,null,null,null,null,null,null,null,0]
[112,null,null,null,null,null,null,null,null,null,0]
[113,null,null,null,null,null,null,null,null,null,0]
[114,null,null,null,null,null,null,null,null,null,0]
[115,null,null,null,null,null,null,null,null,null,0]
[116,null,null,null,null,null,null,null,null,null,0]
[117,null,null,null,null,null,null,null,null,null,0]
[118,null,null,null,null,null,null,null,null,null,0]
[119,null,null,null,null,null,null,null,null,null,0]
[120,null,null,null,null,null,null,null,null,null,0]
[121,null,null,null,null,null,null,null,null,null,0]
[122,null,null,null,null,null,null,null,null,null,0]
[123,null,null,null,null,null,null,null,null,null,0]
[124,null,null,null,null,null,null,null,null,null,0]
[125,null,null,null,null,null,null,null,null,null,0]
[126,null,null,null,null,null,null,null,null,null,0]
[127,null,null,null,null,null,null,null,null,null,0]
[128,null,null,null,null,null,null,null,null,null,0]
[129,null,null,null,null,null,null,null,null,null,0]
[130,null,null,null,null,null,null,null,null,null,0]
[131,null,null,null,null,null,null,null,null,null,0]
[132,null,null,null,null,null,null,null,null,null,0]
[133,null,null,null,null,null,null,null,null,null,0]
[{"$f":"A141+1","v":134},null,null,null,null,null,null,null,null,null,{"$f":"IF(AND(I142=0,J142=0),0,IF(I142=J142,\"Paid\",SUM(J142-I142)))","v":0}]
[135,null,null,null,null,null,null,null,null,null,0]
[136,null,null,null,null,null,null,null,null,null,0]
[137,null,null,null,null,null,null,null,null,null,0]
[138,null,null,null,null,null,null,null,null,null,0]
[139,null,null,null,null,null,null,null,null,null,0]
[140,null,null,null,null,null,null,null,null,null,0]
[141,null,null,null,null,null,null,null,null,null,0]
[142,null,null,null,null,null,null,null,null,null,0]
[143,null,null,null,null,null,null,null,null,null,0]
[144,null,null,null,null,null,null,null,null,null,0]
[145,null,null,null,null,null,null,null,null,null,0]
[146,null,null,null,null,null,null,null,null,null,0]
[147,null,null,null,null,null,null,null,null,null,0]
[148,null,null,null,null,null,null,null,null,null,0]
[149,null,null,null,null,null,null,null,null,null,0]
[150,null,null,null,null,null,null,null,null,null,0]
[151,null,null,null,null,null,null,null,null,null,0]
[152,null,null,null,null,null,null,null,null,null,0]
[153,null,null,null,null,null,null,null,null,null,0]
[154,null,null,null,null,null,null,null,null,null,0]
[155,null,null,null,null,null,null,null,null,null,0]
[156,null,null,null,null,null,null,null,null,null,0]
[157,null,null,null,null,null,null,null,null,null,0]
[158,null,null,null,null,null,null,null,null,null,0]
[159,null,null,null,null,null,null,null,null,null,0]
[160,null,null,null,null,null,null,null,null,null,0]
[161,null,null,null,null,null,null,null,null,null,0]
[162,null,null,null,null,null,null,null,null,null,0]
[163,null,null,null,null,null,null,null,null,null,0]
[164,null,null,null,null,null,null,null,null,null,0]
[165,null,null,null,null,null,null,null,null,null,0]
[166,null,null,null,null,null,null,null,null,null,0]
[167,null,null,null,null,null,null,null,null,null,0]
[168,null,null,null,null,null,null,null,null,null,0]
[169,null,null,null,null,null,null,null,null,null,0]
[170,null,null,null,null,null,null,null,null,null,0]
[171,null,null,null,null,null,null,null,null,null,0]
[172,null,null,null,null,null,null,null,null,null,0]
[173,null,null,null,null,null,null,null,null,null,0]
[174,null,null,null,null,null,null,null,null,null,0]
[175,null,null,null,null,null,null,null,null,null,0]
[176,null,null,null,null,null,null,null,null,null,0]
[177,null,null,null,null,null,null,null,null,null,0]
[178,null,null,null,null,null,null,null,null,null,0]
[179,null,null,null,null,null,null,null,null,null,0]
[180,null,null,null,null,null,null,null,null,null,0]
[181,null,null,null,null,null,null,null,null,null,0]
[182,null,null,null,null,null,null,null,null,null,0]
[183,null,null,null,null,null,null,null,null,null,0]
[184,null,null,null,null,null,null,null,null,null,0]
[185,null,null,null,null,null,null,null,null,null,0]
[186,null,null,null,null,null,null,null,null,null,0]
[187,null,null,null,null,null,null,null,null,null,0]
[188,null,null,null,null,null,null,null,null,null,0]
[189,null,null,null,null,null,null,null,null,null,0]
[190,null,null,null,null,null,null,null,null,null,0]
[191,null,null,null,null,null,null,null,null,null,0]
[192,null,null,null,null,null,null,null,null,null,0]
[193,null,null,null,null,null,null,null,null,null,0]
[194,null,null,null,null,null,null,null,null,null,0]
[195,null,null,null,null,null,null,null,null,null,0]
[196,null,null,null,null,null,null,null,null,null,0]
[197,null,null,null,null,null,null,null,null,null,0]
[{"$f":"A205+1","v":198},null,null,null,null,null,null,null,null,null,{"$f":"IF(AND(I206=0,J206=0),0,IF(I206=J206,\"Paid\",SUM(J206-I206)))","v":0}]
[199,null,null,null,null,null,null,null,null,null,0]
[200,null,null,null,null,null,null,null,null,null,0]
[201,null,null,null,null,null,null,null,null,null,0]
[202,null,null,null,null,null,null,null,null,null,0]
[203,null,null,null,null,null,null,null,null,null,0]
[204,null,null,null,null,null,null,null,null,null,0]
[205,null,null,null,null,null,null,null,null,null,0]
[206,null,null,null,null,null,null,null,null,null,0]
[207,null,null,null,null,null,null,null,null,null,0]
[208,null,null,null,null,null,null,null,null,null,0]
[209,null,null,null,null,null,null,null,null,null,0]
[210,null,null,null,null,null,null,null,null,null,0]
[211,null,null,null,null,null,null,null,null,null,0]
[212,null,null,null,null,null,null,null,null,null,0]
[213,null,null,null,null,null,null,null,null,null,0]
[214,null,null,null,null,null,null,null,null,null,0]
[215,null,null,null,null,null,null,null,null,null,0]
[216,null,null,null,null,null,null,null,null,null,0]
[217,null,null,null,null,null,null,null,null,null,0]
[218,null,null,null,null,null,null,null,null,null,0]
[219,null,null,null,null,null,null,null,null,null,0]
[220,null,null,null,null,null,null,null,null,null,0]
[221,null,null,null,null,null,null,null,null,null,0]
[222,null,null,null,null,null,null,null,null,null,0]
[223,null,null,null,null,null,null,null,null,null,0]
[224,null,null,null,null,null,null,null,null,null,0]
[225,null,null,null,null,null,null,null,null,null,0]
[226,null,null,null,null,null,null,null,null,null,0]
[227,null,null,null,null,null,null,null,null,null,0]
[228,null,null,null,null,null,null,null,null,null,0]
[229,null,null,null,null,null,null,null,null,null,0]
[230,null,null,null,null,null,null,null,null,null,0]
[231,null,null,null,null,null,null,null,null,null,0]
[232,null,null,null,null,null,null,null,null,null,0]
[233,null,null,null,null,null,null,null,null,null,0]
[234,null,null,null,null,null,null,null,null,null,0]
[235,null,null,null,null,null,null,null,null,null,0]
[236,null,null,null,null,null,null,null,null,null,0]
[237,null,null,null,null,null,null,null,null,null,0]
[238,null,null,null,null,null,null,null,null,null,0]
[239,null,null,null,null,null,null,null,null,null,0]
[240,null,null,null,null,null,null,null,null,null,0]
[241,null,null,null,null,null,null,null,null,null,0]
[242,null,null,null,null,null,null,null,null,null,0]
[243,null,null,null,null,null,null,null,null,null,0]
[244,null,null,null,null,null,null,null,null,null,0]
[245,null,null,null,null,null,null,null,null,null,0]
[246,null,null,null,null,null,null,null,null,null,0]
[247,null,null,null,null,null,null,null,null,null,0]
[248,null,null,null,null,null,null,null,null,null,0]
[249,null,null,null,null,null,null,null,null,null,0]
[250,null,null,null,null,null,null,null,null,null,0]
[251,null,null,null,null,null,null,null,null,null,0]
[252,null,null,null,null,null,null,null,null,null,0]
[253,null,null,null,null,null,null,null,null,null,0]
[254,null,null,null,null,null,null,null,null,null,0]
[255,null,null,null,null,null,null,null,null,null,0]
[256,null,null,null,null,null,null,null,null,null,0]
[257,null,null,null,null,null,null,null,null,null,0]
[258,null,null,null,null,null,null,null,null,null,0]
[259,null,null,null,null,null,null,null,null,null,0]
[260,null,null,null,null,null,null,null,null,null,0]
[261,null,null,null,null,null,null,null,null,null,0]
[{"$f":"A269+1","v":262},null,null,null,null,null,null,null,null,null,{"$f":"IF(AND(I270=0,J270=0),0,IF(I270=J270,\"Paid\",SUM(J270-I270)))","v":0}]
[263,null,null,null,null,null,null,null,null,null,0]
[264,null,null,null,null,null,null,null,null,null,0]
[265,null,null,null,null,null,null,null,null,null,0]
[266,null,null,null,null,null,null,null,null,null,0]
[267,null,null,null,null,null,null,null,null,null,0]
[268,null,null,null,null,null,null,null,null,null,0]
[269,null,null,null,null,null,null,null,null,null,0]
[270,null,null,null,null,null,null,null,null,null,0]
[271,null,null,null,null,null,null,null,null,null,0]
[272,null,null,null,null,null,null,null,null,null,0]
[273,null,null,null,null,null,null,null,null,null,0]
[274,null,null,null,null,null,null,null,null,null,0]
[275,null,null,null,null,null,null,null,null,null,0]
[276,null,null,null,null,null,null,null,null,null,0]
[277,null,null,null,null,null,null,null,null,null,0]
[278,null,null,null,null,null,null,null,null,null,0]
[279,null,null,null,null,null,null,null,null,null,0]
[280,null,null,null,null,null,null,null,null,null,0]
[281,null,null,null,null,null,null,null,null,null,0]
[282,null,null,null,null,null,null,null,null,null,0]
[283,null,null,null,null,null,null,null,null,null,0]
[284,null,null,null,null,null,null,null,null,null,0]
[285,null,null,null,null,null,null,null,null,null,0]
[286,null,null,null,null,null,null,null,null,null,0]
[287,null,null,null,null,null,null,null,null,null,0]
[288,null,null,null,null,null,null,null,null,null,0]
[289,null,null,null,null,null,null,null,null,null,0]
[290,null,null,null,null,null,null,null,null,null,0]
[291,null,null,null,null,null,null,null,null,null,0]
[292,null,null,null,null,null,null,null,null,null,0]
[293,null,null,null,null,null,null,null,null,null,0]
[294,null,null,null,null,null,null,null,null,null,0]
[295,null,null,null,null,null,null,null,null,null,0]
[296,null,null,null,null,null,null,null,null,null,0]
[297,null,null,null,null,null,null,null,null,null,0]
[298,null,null,null,null,null,null,null,null,null,0]
[299,null,null,null,null,null,null,null,null,null,0]
[300,null,null,null,null,null,null,null,null,null,0]
[301,null,null,null,null,null,null,null,null,null,0]
[302,null,null,null,null,null,null,null,null,null,0]
[303,null,null,null,null,null,null,null,null,null,0]
[304,null,null,null,null,null,null,null,null,null,0]
[305,null,null,null,null,null,null,null,null,null,0]
[306,null,null,null,null,null,null,null,null,null,0]
[307,null,null,null,null,null,null,null,null,null,0]
[308,null,null,null,null,null,null,null,null,null,0]
[309,null,null,null,null,null,null,null,null,null,0]
[310,null,null,null,null,null,null,null,null,null,0]
[311,null,null,null,null,null,null,null,null,null,0]
[312,null,null,null,null,null,null,null,null,null,0]
[313,null,null,null,null,null,null,null,null,null,0]
[314,null,null,null,null,null,null,null,null,null,0]
[315,null,null,null,null,null,null,null,null,null,0]
[316,null,null,null,null,null,null,null,null,null,0]
[317,null,null,null,null,null,null,null,null,null,0]
[318,null,null,null,null,null,null,null,null,null,0]
[319,null,null,null,null,null,null,null,null,null,0]
[320,null,null,null,null,null,null,null,null,null,0]
[321,null,null,null,null,null,null,null,null,null,0]
[322,null,null,null,null,null,null,null,null,null,0]
[323,null,null,null,null,null,null,null,null,null,0]
[324,null,null,null,null,null,null,null,null,null,0]
[325,null,null,null,null,null,null,null,null,null,0]
[{"$f":"A333+1","v":326},null,null,null,null,null,null,null,null,null,{"$f":"IF(AND(I334=0,J334=0),0,IF(I334=J334,\"Paid\",SUM(J334-I334)))","v":0}]
[327,null,null,null,null,null,null,null,null,null,0]
[328,null,null,null,null,null,null,null,null,null,0]
[329,null,null,null,null,null,null,null,null,null,0]
[330,null,null,null,null,null,null,null,null,null,0]
[331,null,null,null,null,null,null,null,null,null,0]
[332,null,null,null,null,null,null,null,null,null,0]
[333,null,null,null,null,null,null,null,null,null,0]
[334,null,null,null,null,null,null,null,null,null,0]
[335,null,null,null,null,null,null,null,null,null,0]
[336,null,null,null,null,null,null,null,null,null,0]
[337,null,null,null,null,null,null,null,null,null,0]
[338,null,null,null,null,null,null,null,null,null,0]
[339,null,null,null,null,null,null,null,null,null,0]
[340,null,null,null,null,null,null,null,null,null,0]
[341,null,null,null,null,null,null,null,null,null,0]
[342,null,null,null,null,null,null,null,null,null,0]
[343,null,null,null,null,null,null,null,null,null,0]
[344,null,null,null,null,null,null,null,null,null,0]
[345,null,null,null,null,null,null,null,null,null,0]
[346,null,null,null,null,null,null,null,null,null,0]
[347,null,null,null,null,null,null,null,null,null,0]
[348,null,null,null,null,null,null,null,null,null,0]
[349,null,null,null,null,null,null,null,null,null,0]
[350,null,null,null,null,null,null,null,null,null,0]
[351,null,null,null,null,null,null,null,null,null,0]
[352,null,null,null,null,null,null,null,null,null,0]
[353,null,null,null,null,null,null,null,null,null,0]
[354,null,null,null,null,null,null,null,null,null,0]
[355,null,null,null,null,null,null,null,null,null,0]
[356,null,null,null,null,null,null,null,null,null,0]
[357,null,null,null,null,null,null,null,null,null,0]
[358,null,null,null,null,null,null,null,null,null,0]
[359,null,null,null,null,null,null,null,null,null,0]
[360,null,null,null,null,null,null,null,null,null,0]
[361,null,null,null,null,null,null,null,null,null,0]
[362,null,null,null,null,null,null,null,null,null,0]
[363,null,null,null,null,null,null,null,null,null,0]
[364,null,null,null,null,null,null,null,null,null,0]
[365,null,null,null,null,null,null,null,null,null,0]
[366,null,null,null,null,null,null,null,null,null,0]
[367,null,null,null,null,null,null,null,null,null,0]
[368,null,null,null,null,null,null,null,null,null,0]
[369,null,null,null,null,null,null,null,null,null,0]
[370,null,null,null,null,null,null,null,null,null,0]
[371,null,null,null,null,null,null,null,null,null,0]
[372,null,null,null,null,null,null,null,null,null,0]
[373,null,null,null,null,null,null,null,null,null,0]
[374,null,null,null,null,null,null,null,null,null,0]
[375,null,null,null,null,null,null,null,null,null,0]
[376,null,null,null,null,null,null,null,null,null,0]
[377,null,null,null,null,null,null,null,null,null,0]
[378,null,null,null,null,null,null,null,null,null,0]
[379,null,null,null,null,null,null,null,null,null,0]
[380,null,null,null,null,null,null,null,null,null,0]
[381,null,null,null,null,null,null,null,null,null,0]
[382,null,null,null,null,null,null,null,null,null,0]
[383,null,null,null,null,null,null,null,null,null,0]
[384,null,null,null,null,null,null,null,null,null,0]
[385,null,null,null,null,null,null,null,null,null,0]
[386,null,null,null,null,null,null,null,null,null,0]
[387,null,null,null,null,null,null,null,null,null,0]
[388,null,null,null,null,null,null,null,null,null,0]
[389,null,null,null,null,null,null,null,null,null,0]
[{"$f":"A397+1","v":390},null,null,null,null,null,null,null,null,null,{"$f":"IF(AND(I398=0,J398=0),0,IF(I398=J398,\"Paid\",SUM(J398-I398)))","v":0}]
[391,null,null,null,null,null,null,null,null,null,0]
[392,null,null,null,null,null,null,null,null,null,0]
[393,null,null,null,null,null,null,null,null,null,0]
[394,null,null,null,null,null,null,null,null,null,0]
[395,null,null,null,null,null,null,null,null,null,0]
[396,null,null,null,null,null,null,null,null,null,0]
[397,null,null,null,null,null,null,null,null,null,0]
[398,null,null,null,null,null,null,null,null,null,0]
[399,null,null,null,null,null,null,null,null,null,0]
[400,null,null,null,null,null,null,null,null,null,0]
[401,null,null,null,null,null,null,null,null,null,0]
[402,null,null,null,null,null,null,null,null,null,0]
[403,null,null,null,null,null,null,null,null,null,0]
[404,null,null,null,null,null,null,null,null,null,0]
[405,null,null,null,null,null,null,null,null,null,0]
[406,null,null,null,null,null,null,null,null,null,0]
[407,null,null,null,null,null,null,null,null,null,0]
[408,null,null,null,null,null,null,null,null,null,0]
[409,null,null,null,null,null,null,null,null,null,0]
[410,null,null,null,null,null,null,null,null,null,0]
[411,null,null,null,null,null,null,null,null,null,0]
[412,null,null,null,null,null,null,null,null,null,0]
[413,null,null,null,null,null,null,null,null,null,0]
[414,null,null,null,null,null,null,null,null,null,0]
[415,null,null,null,null,null,null,null,null,null,0]
[416,null,null,null,null,null,null,null,null,null,0]
[417,null,null,null,null,null,null,null,null,null,0]
[418,null,null,null,null,null,null,null,null,null,0]
[419,null,null,null,null,null,null,null,null,null,0]
[420,null,null,null,null,null,null,null,null,null,0]
[421,null,null,null,null,null,null,null,null,null,0]
[422,null,null,null,null,null,null,null,null,null,0]
[423,null,null,null,null,null,null,null,null,null,0]
[424,null,null,null,null,null,null,null,null,null,0]
[425,null,null,null,null,null,null,null,null,null,0]
[426,null,null,null,null,null,null,null,null,null,0]
[427,null,null,null,null,null,null,null,null,null,0]
[428,null,null,null,null,null,null,null,null,null,0]
[429,null,null,null,null,null,null,null,null,null,0]
[430,null,null,null,null,null,null,null,null,null,0]
[431,null,null,null,null,null,null,null,null,null,0]
[432,null,null,null,null,null,null,null,null,null,0]
[433,null,null,null,null,null,null,null,null,null,0]
[434,null,null,null,null,null,null,null,null,null,0]
[435,null,null,null,null,null,null,null,null,null,0]
[436,null,null,null,null,null,null,null,null,null,0]
[437,null,null,null,null,null,null,null,null,null,0]
[438,null,null,null,null,null,null,null,null,null,0]
[439,null,null,null,null,null,null,null,null,null,0]
[440,null,null,null,null,null,null,null,null,null,0]
[441,null,null,null,null,null,null,null,null,null,0]
[442,null,null,null,null,null,null,null,null,null,0]
[443,null,null,null,null,null,null,null,null,null,0]
[444,null,null,null,null,null,null,null,null,null,0]
[445,null,null,null,null,null,null,null,null,null,0]
[446,null,null,null,null,null,null,null,null,null,0]
[447,null,null,null,null,null,null,null,null,null,0]
[448,null,null,null,null,null,null,null,null,null,0]
[449,null,null,null,null,null,null,null,null,null,0]
[450,null,null,null,null,null,null,null,null,null,0]
[451,null,null,null,null,null,null,null,null,null,0]
[452,null,null,null,null,null,null,null,null,null,0]
[453,null,null,null,null,null,null,null,null,null,0]
[{"$f":"A461+1","v":454},null,null,null,null,null,null,null,null,null,{"$f":"IF(AND(I462=0,J462=0),0,IF(I462=J462,\"Paid\",SUM(J462-I462)))","v":0}]
[455,null,null,null,null,null,null,null,null,null,0]
[456,null,null,null,null,null,null,null,null,null,0]
[457,null,null,null,null,null,null,null,null,null,0]
[458,null,null,null,null,null,null,null,null,null,0]
[459,null,null,null,null,null,null,null,null,null,0]
[460,null,null,null,null,null,null,null,null,null,0]
[461,null,null,null,null,null,null,null,null,null,0]
[462,null,null,null,null,null,null,null,null,null,0]
[463,null,null,null,null,null,null,null,null,null,0]
[464,null,null,null,null,null,null,null,null,null,0]
[465,null,null,null,null,null,null,null,null,null,0]
[466,null,null,null,null,null,null,null,null,null,0]
[467,null,null,null,null,null,null,null,null,null,0]
[468,null,null,null,null,null,null,null,null,null,0]
[469,null,null,null,null,null,null,null,null,null,0]
[470,null,null,null,null,null,null,null,null,null,0]
[471,null,null,null,null,null,null,null,null,null,0]
[472,null,null,null,null,null,null,null,null,null,0]
[473,null,null,null,null,null,null,null,null,null,0]
[474,null,null,null,null,null,null,null,null,null,0]
[475,null,null,null,null,null,null,null,null,null,0]
[476,null,null,null,null,null,null,null,null,null,0]
[477,null,null,null,null,null,null,null,null,null,0]
[478,null,null,null,null,null,null,null,null,null,0]
[479,null,null,null,null,null,null,null,null,null,0]
[480,null,null,null,null,null,null,null,null,null,0]
[481,null,null,null,null,null,null,null,null,null,0]
[482,null,null,null,null,null,null,null,null,null,0]
[483,null,null,null,null,null,null,null,null,null,0]
[484,null,null,null,null,null,null,null,null,null,0]
[485,null,null,null,null,null,null,null,null,null,0]
[486,null,null,null,null,null,null,null,null,null,0]
[487,null,null,null,null,null,null,null,null,null,0]
[488,null,null,null,null,null,null,null,null,null,0]
[489,null,null,null,null,null,null,null,null,null,0]
[490,null,null,null,null,null,null,null,null,null,0]
[491,null,null,null,null,null,null,null,null,null,0]
[492,null,null,null,null,null,null,null,null,null,0]
[493,null,null,null,null,null,null,null,null,null,0]
[494,null,null,null,null,null,null,null,null,null,0]
[495,null,null,null,null,null,null,null,null,null,0]
[496,null,null,null,null,null,null,null,null,null,0]
[497,null,null,null,null,null,null,null,null,null,0]
[498,null,null,null,null,null,null,null,null,null,0]
[499,null,null,null,null,null,null,null,null,null,0]
[500,null,null,null,null,null,null,null,null,null,0]
[501,null,null,null,null,null,null,null,null,null,0]
[502,null,null,null,null,null,null,null,null,null,0]
[503,null,null,null,null,null,null,null,null,null,0]
[504,null,null,null,null,null,null,null,null,null,0]
[505,null,null,null,null,null,null,null,null,null,0]
[506,null,null,null,null,null,null,null,null,null,0]
[507,null,null,null,null,null,null,null,null,null,0]
[508,null,null,null,null,null,null,null,null,null,0]
[509,null,null,null,null,null,null,null,null,null,0]
[510,null,null,null,null,null,null,null,null,null,0]
[511,null,null,null,null,null,null,null,null,null,0]
[512,null,null,null,null,null,null,null,null,null,0]
[513,null,null,null,null,null,null,null,null,null,0]
[514,null,null,null,null,null,null,null,null,null,0]
[515,null,null,null,null,null,null,null,null,null,0]
[516,null,null,null,null,null,null,null,null,null,0]
[517,null,null,null,null,null,null,null,null,null,0]
[{"$f":"A525+1","v":518},null,null,null,null,null,null,null,null,null,{"$f":"IF(AND(I526=0,J526=0),0,IF(I526=J526,\"Paid\",SUM(J526-I526)))","v":0}]
[519,null,null,null,null,null,null,null,null,null,0]
[520,null,null,null,null,null,null,null,null,null,0]
[521,null,null,null,null,null,null,null,null,null,0]
[522,null,null,null,null,null,null,null,null,null,0]
[523,null,null,null,null,null,null,null,null,null,0]
[524,null,null,null,null,null,null,null,null,null,0]
[525,null,null,null,null,null,null,null,null,null,0]
[526,null,null,null,null,null,null,null,null,null,0]
[527,null,null,null,null,null,null,null,null,null,0]
[528,null,null,null,null,null,null,null,null,null,0]
[529,null,null,null,null,null,null,null,null,null,0]
[530,null,null,null,null,null,null,null,null,null,0]
[531,null,null,null,null,null,null,null,null,null,0]
[532,null,null,null,null,null,null,null,null,null,0]
[533,null,null,null,null,null,null,null,null,null,0]
[534,null,null,null,null,null,null,null,null,null,0]
[535,null,null,null,null,null,null,null,null,null,0]
[536,null,null,null,null,null,null,null,null,null,0]
[537,null,null,null,null,null,null,null,null,null,0]
[538,null,null,null,null,null,null,null,null,null,0]
[539,null,null,null,null,null,null,null,null,null,0]
[540,null,null,null,null,null,null,null,null,null,0]
[541,null,null,null,null,null,null,null,null,null,0]
[542,null,null,null,null,null,null,null,null,null,0]
[543,null,null,null,null,null,null,null,null,null,0]
[544,null,null,null,null,null,null,null,null,null,0]
[545,null,null,null,null,null,null,null,null,null,0]
[546,null,null,null,null,null,null,null,null,null,0]
[547,null,null,null,null,null,null,null,null,null,0]
[548,null,null,null,null,null,null,null,null,null,0]
[549,null,null,null,null,null,null,null,null,null,0]
[550,null,null,null,null,null,null,null,null,null,0]
[551,null,null,null,null,null,null,null,null,null,0]
[552,null,null,null,null,null,null,null,null,null,0]
[553,null,null,null,null,null,null,null,null,null,0]
[554,null,null,null,null,null,null,null,null,null,0]
[555,null,null,null,null,null,null,null,null,null,0]
[556,null,null,null,null,null,null,null,null,null,0]
[557,null,null,null,null,null,null,null,null,null,0]
[558,null,null,null,null,null,null,null,null,null,0]
[559,null,null,null,null,null,null,null,null,null,0]
[560,null,null,null,null,null,null,null,null,null,0]
[561,null,null,null,null,null,null,null,null,null,0]
[562,null,null,null,null,null,null,null,null,null,0]
[563,null,null,null,null,null,null,null,null,null,0]
[564,null,null,null,null,null,null,null,null,null,0]
[565,null,null,null,null,null,null,null,null,null,0]
[566,null,null,null,null,null,null,null,null,null,0]
[567,null,null,null,null,null,null,null,null,null,0]
[568,null,null,null,null,null,null,null,null,null,0]
[569,null,null,null,null,null,null,null,null,null,0]
[570,null,null,null,null,null,null,null,null,null,0]
[571,null,null,null,null,null,null,null,null,null,0]
[572,null,null,null,null,null,null,null,null,null,0]
[573,null,null,null,null,null,null,null,null,null,0]
[574,null,null,null,null,null,null,null,null,null,0]
[575,null,null,null,null,null,null,null,null,null,0]
[576,null,null,null,null,null,null,null,null,null,0]
[577,null,null,null,null,null,null,null,null,null,0]
[578,null,null,null,null,null,null,null,null,null,0]
[579,null,null,null,null,null,null,null,null,null,0]
[580,null,null,null,null,null,null,null,null,null,0]
[581,null,null,null,null,null,null,null,null,null,0]
[{"$f":"A589+1","v":582},null,null,null,null,null,null,null,null,null,{"$f":"IF(AND(I590=0,J590=0),0,IF(I590=J590,\"Paid\",SUM(J590-I590)))","v":0}]
[583,null,null,null,null,null,null,null,null,null,0]
[584,null,null,null,null,null,null,null,null,null,0]
[585,null,null,null,null,null,null,null,null,null,0]
[586,null,null,null,null,null,null,null,null,null,0]
[587,null,null,null,null,null,null,null,null,null,0]
[588,null,null,null,null,null,null,null,null,null,0]
[589,null,null,null,null,null,null,null,null,null,0]
[590,null,null,null,null,null,null,null,null,null,0]
[591,null,null,null,null,null,null,null,null,null,0]
[592,null,null,null,null,null,null,null,null,null,0]
[593,null,null,null,null,null,null,null,null,null,0]
[594,null,null,null,null,null,null,null,null,null,0]
[595,null,null,null,null,null,null,null,null,null,0]
[596,null,null,null,null,null,null,null,null,null,0]
[597,null,null,null,null,null,null,null,null,null,0]
[598,null,null,null,null,null,null,null,null,null,0]
[599,null,null,null,null,null,null,null,null,null,0]
[600,null,null,null,null,null,null,null,null,null,0]
[601,null,null,null,null,null,null,null,null,null,0]
[602,null,null,null,null,null,null,null,null,null,0]
[603,null,null,null,null,null,null,null,null,null,0]
[604,null,null,null,null,null,null,null,null,null,0]
[605,null,null,null,null,null,null,null,null,null,0]
[606,null,null,null,null,null,null,null,null,null,0]
[607,null,null,null,null,null,null,null,null,null,0]
[608,null,null,null,null,null,null,null,null,null,0]
[609,null,null,null,null,null,null,null,null,null,0]
[610,null,null,null,null,null,null,null,null,null,0]
[611,null,null,null,null,null,null,null,null,null,0]
[612,null,null,null,null,null,null,null,null,null,0]
[613,null,null,null,null,null,null,null,null,null,0]
[614,null,null,null,null,null,null,null,null,null,0]
[615,null,null,null,null,null,null,null,null,null,0]
[616,null,null,null,null,null,null,null,null,null,0]
[617,null,null,null,null,null,null,null,null,null,0]
[618,null,null,null,null,null,null,null,null,null,0]
[619,null,null,null,null,null,null,null,null,null,0]
[620,null,null,null,null,null,null,null,null,null,0]
[621,null,null,null,null,null,null,null,null,null,0]
[622,null,null,null,null,null,null,null,null,null,0]
[623,null,null,null,null,null,null,null,null,null,0]
[624,null,null,null,null,null,null,null,null,null,0]
[625,null,null,null,null,null,null,null,null,null,0]
[626,null,null,null,null,null,null,null,null,null,0]
[627,null,null,null,null,null,null,null,null,null,0]
[628,null,null,null,null,null,null,null,null,null,0]
[629,null,null,null,null,null,null,null,null,null,0]
[630,null,null,null,null,null,null,null,null,null,0]
[631,null,null,null,null,null,null,null,null,null,0]
[632,null,null,null,null,null,null,null,null,null,0]
[633,null,null,null,null,null,null,null,null,null,0]
[634,null,null,null,null,null,null,null,null,null,0]
[635,null,null,null,null,null,null,null,null,null,0]
[636,null,null,null,null,null,null,null,null,null,0]
[637,null,null,null,null,null,null,null,null,null,0]
[638,null,null,null,null,null,null,null,null,null,0]
[639,null,null,null,null,null,null,null,null,null,0]
[640,null,null,null,null,null,null,null,null,null,0]
[641,null,null,null,null,null,null,null,null,null,0]
[642,null,null,null,null,null,null,null,null,null,0]
[643,null,null,null,null,null,null,null,null,null,0]
[644,null,null,null,null,null,null,null,null,null,0]
[645,null,null,null,null,null,null,null,null,null,0]
[{"$f":"A653+1","v":646},null,null,null,null,null,null,null,null,null,{"$f":"IF(AND(I654=0,J654=0),0,IF(I654=J654,\"Paid\",SUM(J654-I654)))","v":0}]
[647,null,null,null,null,null,null,null,null,null,0]
[648,null,null,null,null,null,null,null,null,null,0]
[649,null,null,null,null,null,null,null,null,null,0]
[650,null,null,null,null,null,null,null,null,null,0]
[651,null,null,null,null,null,null,null,null,null,0]
[652,null,null,null,null,null,null,null,null,null,0]
[653,null,null,null,null,null,null,null,null,null,0]
[654,null,null,null,null,null,null,null,null,null,0]
[655,null,null,null,null,null,null,null,null,null,0]
[656,null,null,null,null,null,null,null,null,null,0]
[657,null,null,null,null,null,null,null,null,null,0]
[658,null,null,null,null,null,null,null,null,null,0]
[659,null,null,null,null,null,null,null,null,null,0]
[660,null,null,null,null,null,null,null,null,null,0]
[661,null,null,null,null,null,null,null,null,null,0]
[662,null,null,null,null,null,null,null,null,null,0]
[663,null,null,null,null,null,null,null,null,null,0]
[664,null,null,null,null,null,null,null,null,null,0]
[665,null,null,null,null,null,null,null,null,null,0]
[666,null,null,null,null,null,null,null,null,null,0]
[667,null,null,null,null,null,null,null,null,null,0]
[668,null,null,null,null,null,null,null,null,null,0]
[669,null,null,null,null,null,null,null,null,null,0]
[670,null,null,null,null,null,null,null,null,null,0]
[671,null,null,null,null,null,null,null,null,null,0]
[672,null,null,null,null,null,null,null,null,null,0]
[673,null,null,null,null,null,null,null,null,null,0]
[674,null,null,null,null,null,null,null,null,null,0]
[675,null,null,null,null,null,null,null,null,null,0]
[676,null,null,null,null,null,null,null,null,null,0]
[677,null,null,null,null,null,null,null,null,null,0]
[678,null,null,null,null,null,null,null,null,null,0]
[679,null,null,null,null,null,null,null,null,null,0]
[680,null,null,null,null,null,null,null,null,null,0]
[681,null,null,null,null,null,null,null,null,null,0]
[682,null,null,null,null,null,null,null,null,null,0]
[683,null,null,null,null,null,null,null,null,null,0]
[684,null,null,null,null,null,null,null,null,null,0]
[685,null,null,null,null,null,null,null,null,null,0]
[686,null,null,null,null,null,null,null,null,null,0]
[687,null,null,null,null,null,null,null,null,null,0]
[688,null,null,null,null,null,null,null,null,null,0]
[689,null,null,null,null,null,null,null,null,null,0]
[690,null,null,null,null,null,null,null,null,null,0]
[691,null,null,null,null,null,null,null,null,null,0]
[692,null,null,null,null,null,null,null,null,null,0]
[693,null,null,null,null,null,null,null,null,null,0]
[694,null,null,null,null,null,null,null,null,null,0]
[695,null,null,null,null,null,null,null,null,null,0]
[696,null,null,null,null,null,null,null,null,null,0]
[697,null,null,null,null,null,null,null,null,null,0]
[698,null,null,null,null,null,null,null,null,null,0]
[699,null,null,null,null,null,null,null,null,null,0]
[700,null,null,null,null,null,null,null,null,null,0]
[701,null,null,null,null,null,null,null,null,null,0]
[702,null,null,null,null,null,null,null,null,null,0]
[703,null,null,null,null,null,null,null,null,null,0]
[704,null,null,null,null,null,null,null,null,null,0]
[705,null,null,null,null,null,null,null,null,null,0]
[706,null,null,null,null,null,null,null,null,null,0]
[707,null,null,null,null,null,null,null,null,null,0]
[708,null,null,null,null,null,null,null,null,null,0]
[709,null,null,null,null,null,null,null,null,null,0]
[{"$f":"A717+1","v":710},null,null,null,null,null,null,null,null,null,{"$f":"IF(AND(I718=0,J718=0),0,IF(I718=J718,\"Paid\",SUM(J718-I718)))","v":0}]
[711,null,null,null,null,null,null,null,null,null,0]
[712,null,null,null,null,null,null,null,null,null,0]
[713,null,null,null,null,null,null,null,null,null,0]
[714,null,null,null,null,null,null,null,null,null,0]
[715,null,null,null,null,null,null,null,null,null,0]
[716,null,null,null,null,null,null,null,null,null,0]
[717,null,null,null,null,null,null,null,null,null,0]
[718,null,null,null,null,null,null,null,null,null,0]
[719,null,null,null,null,null,null,null,null,null,0]
[720,null,null,null,null,null,null,null,null,null,0]
[721,null,null,null,null,null,null,null,null,null,0]
[722,null,null,null,null,null,null,null,null,null,0]
[723,null,null,null,null,null,null,null,null,null,0]
[724,null,null,null,null,null,null,null,null,null,0]
[725,null,null,null,null,null,null,null,null,null,0]
[726,null,null,null,null,null,null,null,null,null,0]
[727,null,null,null,null,null,null,null,null,null,0]
[728,null,null,null,null,null,null,null,null,null,0]
[729,null,null,null,null,null,null,null,null,null,0]
[730,null,null,null,null,null,null,null,null,null,0]
[731,null,null,null,null,null,null,null,null,null,0]
[732,null,null,null,null,null,null,null,null,null,0]
[733,null,null,null,null,null,null,null,null,null,0]
[734,null,null,null,null,null,null,null,null,null,0]
[735,null,null,null,null,null,null,null,null,null,0]
[736,null,null,null,null,null,null,null,null,null,0]
[737,null,null,null,null,null,null,null,null,null,0]
[738,null,null,null,null,null,null,null,null,null,0]
[739,null,null,null,null,null,null,null,null,null,0]
[740,null,null,null,null,null,null,null,null,null,0]
[741,null,null,null,null,null,null,null,null,null,0]
[742,null,null,null,null,null,null,null,null,null,0]
[743,null,null,null,null,null,null,null,null,null,0]
[744,null,null,null,null,null,null,null,null,null,0]
[745,null,null,null,null,null,null,null,null,null,0]
[746,null,null,null,null,null,null,null,null,null,0]
[747,null,null,null,null,null,null,null,null,null,0]
[748,null,null,null,null,null,null,null,null,null,0]
[749,null,null,null,null,null,null,null,null,null,0]
[750,null,null,null,null,null,null,null,null,null,0]
[751,null,null,null,null,null,null,null,null,null,0]
[752,null,null,null,null,null,null,null,null,null,0]
[753,null,null,null,null,null,null,null,null,null,0]
[754,null,null,null,null,null,null,null,null,null,0]
[755,null,null,null,null,null,null,null,null,null,0]
[756,null,null,null,null,null,null,null,null,null,0]
[757,null,null,null,null,null,null,null,null,null,0]
[758,null,null,null,null,null,null,null,null,null,0]
[759,null,null,null,null,null,null,null,null,null,0]
[760,null,null,null,null,null,null,null,null,null,0]
[761,null,null,null,null,null,null,null,null,null,0]
[762,null,null,null,null,null,null,null,null,null,0]
[763,null,null,null,null,null,null,null,null,null,0]
[764,null,null,null,null,null,null,null,null,null,0]
[765,null,null,null,null,null,null,null,null,null,0]
[766,null,null,null,null,null,null,null,null,null,0]
[767,null,null,null,null,null,null,null,null,null,0]
[768,null,null,null,null,null,null,null,null,null,0]
[769,null,null,null,null,null,null,null,null,null,0]
[770,null,null,null,null,null,null,null,null,null,0]
[771,null,null,null,null,null,null,null,null,null,0]
[772,null,null,null,null,null,null,null,null,null,0]
[773,null,null,null,null,null,null,null,null,null,0]
[{"$f":"A781+1","v":774},null,null,null,null,null,null,null,null,null,{"$f":"IF(AND(I782=0,J782=0),0,IF(I782=J782,\"Paid\",SUM(J782-I782)))","v":0}]
[775,null,null,null,null,null,null,null,null,null,0]
[776,null,null,null,null,null,null,null,null,null,0]
[777,null,null,null,null,null,null,null,null,null,0]
[778,null,null,null,null,null,null,null,null,null,0]
[779,null,null,null,null,null,null,null,null,null,0]
[780,null,null,null,null,null,null,null,null,null,0]
[781,null,null,null,null,null,null,null,null,null,0]
[782,null,null,null,null,null,null,null,null,null,0]
[783,null,null,null,null,null,null,null,null,null,0]
[784,null,null,null,null,null,null,null,null,null,0]
[785,null,null,null,null,null,null,null,null,null,0]
[786,null,null,null,null,null,null,null,null,null,0]
[787,null,null,null,null,null,null,null,null,null,0]
[788,null,null,null,null,null,null,null,null,null,0]
[789,null,null,null,null,null,null,null,null,null,0]
[790,null,null,null,null,null,null,null,null,null,0]
[791,null,null,null,null,null,null,null,null,null,0]
[792,null,null,null,null,null,null,null,null,null,0]
[793,null,null,null,null,null,null,null,null,null,0]
[794,null,null,null,null,null,null,null,null,null,0]
[795,null,null,null,null,null,null,null,null,null,0]
[796,null,null,null,null,null,null,null,null,null,0]
[797,null,null,null,null,null,null,null,null,null,0]
[798,null,null,null,null,null,null,null,null,null,0]
[799,null,null,null,null,null,null,null,null,null,0]
[800,null,null,null,null,null,null,null,null,null,0]
[801,null,null,null,null,null,null,null,null,null,0]
[802,null,null,null,null,null,null,null,null,null,0]
[803,null,null,null,null,null,null,null,null,null,0]
[804,null,null,null,null,null,null,null,null,null,0]
[805,null,null,null,null,null,null,null,null,null,0]
[806,null,null,null,null,null,null,null,null,null,0]
[807,null,null,null,null,null,null,null,null,null,0]
[808,null,null,null,null,null,null,null,null,null,0]
[809,null,null,null,null,null,null,null,null,null,0]
[810,null,null,null,null,null,null,null,null,null,0]
[811,null,null,null,null,null,null,null,null,null,0]
[812,null,null,null,null,null,null,null,null,null,0]
[813,null,null,null,null,null,null,null,null,null,0]
[814,null,null,null,null,null,null,null,null,null,0]
[815,null,null,null,null,null,null,null,null,null,0]
[816,null,null,null,null,null,null,null,null,null,0]
[817,null,null,null,null,null,null,null,null,null,0]
[818,null,null,null,null,null,null,null,null,null,0]
[819,null,null,null,null,null,null,null,null,null,0]
[820,null,null,null,null,null,null,null,null,null,0]
[821,null,null,null,null,null,null,null,null,null,0]
[822,null,null,null,null,null,null,null,null,null,0]
[823,null,null,null,null,null,null,null,null,null,0]
[824,null,null,null,null,null,null,null,null,null,0]
[825,null,null,null,null,null,null,null,null,null,0]
[826,null,null,null,null,null,null,null,null,null,0]
[827,null,null,null,null,null,null,null,null,null,0]
[828,null,null,null,null,null,null,null,null,null,0]
[829,null,null,null,null,null,null,null,null,null,0]
[830,null,null,null,null,null,null,null,null,null,0]
[831,null,null,null,null,null,null,null,null,null,0]
[832,null,null,null,null,null,null,null,null,null,0]
[833,null,null,null,null,null,null,null,null,null,0]
[834,null,null,null,null,null,null,null,null,null,0]
[835,null,null,null,null,null,null,null,null,null,0]
[836,null,null,null,null,null,null,null,null,null,0]
[837,null,null,null,null,null,null,null,null,null,0]
[{"$f":"A845+1","v":838},null,null,null,null,null,null,null,null,null,{"$f":"IF(AND(I846=0,J846=0),0,IF(I846=J846,\"Paid\",SUM(J846-I846)))","v":0}]
[839,null,null,null,null,null,null,null,null,null,0]
[840,null,null,null,null,null,null,null,null,null,0]
[841,null,null,null,null,null,null,null,null,null,0]
[842,null,null,null,null,null,null,null,null,null,0]
[843,null,null,null,null,null,null,null,null,null,0]
[844,null,null,null,null,null,null,null,null,null,0]
[845,null,null,null,null,null,null,null,null,null,0]
[846,null,null,null,null,null,null,null,null,null,0]
[847,null,null,null,null,null,null,null,null,null,0]
[848,null,null,null,null,null,null,null,null,null,0]
[849,null,null,null,null,null,null,null,null,null,0]
[850,null,null,null,null,null,null,null,null,null,0]
[851,null,null,null,null,null,null,null,null,null,0]
[852,null,null,null,null,null,null,null,null,null,0]
[853,null,null,null,null,null,null,null,null,null,0]
[854,null,null,null,null,null,null,null,null,null,0]
[855,null,null,null,null,null,null,null,null,null,0]
[856,null,null,null,null,null,null,null,null,null,0]
[857,null,null,null,null,null,null,null,null,null,0]
[858,null,null,null,null,null,null,null,null,null,0]
[859,null,null,null,null,null,null,null,null,null,0]
[860,null,null,null,null,null,null,null,null,null,0]
[861,null,null,null,null,null,null,null,null,null,0]
[862,null,null,null,null,null,null,null,null,null,0]
[863,null,null,null,null,null,null,null,null,null,0]
[864,null,null,null,null,null,null,null,null,null,0]
[865,null,null,null,null,null,null,null,null,null,0]
[866,null,null,null,null,null,null,null,null,null,0]
[867,null,null,null,null,null,null,null,null,null,0]
[868,null,null,null,null,null,null,null,null,null,0]
[869,null,null,null,null,null,null,null,null,null,0]
[870,null,null,null,null,null,null,null,null,null,0]
[871,null,null,null,null,null,null,null,null,null,0]
[872,null,null,null,null,null,null,null,null,null,0]
[873,null,null,null,null,null,null,null,null,null,0]
[874,null,null,null,null,null,null,null,null,null,0]
[875,null,null,null,null,null,null,null,null,null,0]
[876,null,null,null,null,null,null,null,null,null,0]
[877,null,null,null,null,null,null,null,null,null,0]
[878,null,null,null,null,null,null,null,null,null,0]
[879,null,null,null,null,null,null,null,null,null,0]
[880,null,null,null,null,null,null,null,null,null,0]
[881,null,null,null,null,null,null,null,null,null,0]
[882,null,null,null,null,null,null,null,null,null,0]
[883,null,null,null,null,null,null,null,null,null,0]
[884,null,null,null,null,null,null,null,null,null,0]
[885,null,null,null,null,null,null,null,null,null,0]
[886,null,null,null,null,null,null,null,null,null,0]
[887,null,null,null,null,null,null,null,null,null,0]
[888,null,null,null,null,null,null,null,null,null,0]
[889,null,null,null,null,null,null,null,null,null,0]
[890,null,null,null,null,null,null,null,null,null,0]
[891,null,null,null,null,null,null,null,null,null,0]
[892,null,null,null,null,null,null,null,null,null,0]
[893,null,null,null,null,null,null,null,null,null,0]
[894,null,null,null,null,null,null,null,null,null,0]
[895,null,null,null,null,null,null,null,null,null,0]
[896,null,null,null,null,null,null,null,null,null,0]
[897,null,null,null,null,null,null,null,null,null,0]
[898,null,null,null,null,null,null,null,null,null,0]
[899,null,null,null,null,null,null,null,null,null,0]
[900,null,null,null,null,null,null,null,null,null,0]
[901,null,null,null,null,null,null,null,null,null,0]
[{"$f":"A909+1","v":902},null,null,null,null,null,null,null,null,null,{"$f":"IF(AND(I910=0,J910=0),0,IF(I910=J910,\"Paid\",SUM(J910-I910)))","v":0}]
[903,null,null,null,null,null,null,null,null,null,0]
[904,null,null,null,null,null,null,null,null,null,0]
[905,null,null,null,null,null,null,null,null,null,0]
[906,null,null,null,null,null,null,null,null,null,0]
[907,null,null,null,null,null,null,null,null,null,0]
[908,null,null,null,null,null,null,null,null,null,0]
[909,null,null,null,null,null,null,null,null,null,0]
[910,null,null,null,null,null,null,null,null,null,0]
[911,null,null,null,null,null,null,null,null,null,0]
[912,null,null,null,null,null,null,null,null,null,0]
[913,null,null,null,null,null,null,null,null,null,0]
[914,null,null,null,null,null,null,null,null,null,0]
[915,null,null,null,null,null,null,null,null,null,0]
[916,null,null,null,null,null,null,null,null,null,0]
[917,null,null,null,null,null,null,null,null,null,0]
[918,null,null,null,null,null,null,null,null,null,0]
[919,null,null,null,null,null,null,null,null,null,0]
[920,null,null,null,null,null,null,null,null,null,0]
[921,null,null,null,null,null,null,null,null,null,0]
[922,null,null,null,null,null,null,null,null,null,0]
[923,null,null,null,null,null,null,null,null,null,0]
[924,null,null,null,null,null,null,null,null,null,0]
[925,null,null,null,null,null,null,null,null,null,0]
[926,null,null,null,null,null,null,null,null,null,0]
[927,null,null,null,null,null,null,null,null,null,0]
[928,null,null,null,null,null,null,null,null,null,0]
[929,null,null,null,null,null,null,null,null,null,0]
[930,null,null,null,null,null,null,null,null,null,0]
[931,null,null,null,null,null,null,null,null,null,0]
[932,null,null,null,null,null,null,null,null,null,0]
[933,null,null,null,null,null,null,null,null,null,0]
[934,null,null,null,null,null,null,null,null,null,0]
[935,null,null,null,null,null,null,null,null,null,0]
[936,null,null,null,null,null,null,null,null,null,0]
[937,null,null,null,null,null,null,null,null,null,0]
[938,null,null,null,null,null,null,null,null,null,0]
[939,null,null,null,null,null,null,null,null,null,0]
[940,null,null,null,null,null,null,null,null,null,0]
[941,null,null,null,null,null,null,null,null,null,0]
[942,null,null,null,null,null,null,null,null,null,0]
[943,null,null,null,null,null,null,null,null,null,0]
[944,null,null,null,null,null,null,null,null,null,0]
[945,null,null,null,null,null,null,null,null,null,0]
[946,null,null,null,null,null,null,null,null,null,0]
[947,null,null,null,null,null,null,null,null,null,0]
[948,null,null,null,null,null,null,null,null,null,0]
[949,null,null,null,null,null,null,null,null,null,0]
[950,null,null,null,null,null,null,null,null,null,0]
[951,null,null,null,null,null,null,null,null,null,0]
[952,null,null,null,null,null,null,null,null,null,0]
[953,null,null,null,null,null,null,null,null,null,0]
[954,null,null,null,null,null,null,null,null,null,0]
[955,null,null,null,null,null,null,null,null,null,0]
[956,null,null,null,null,null,null,null,null,null,0]
[957,null,null,null,null,null,null,null,null,null,0]
[958,null,null,null,null,null,null,null,null,null,0]
[959,null,null,null,null,null,null,null,null,null,0]
[960,null,null,null,null,null,null,null,null,null,0]
[961,null,null,null,null,null,null,null,null,null,0]
[962,null,null,null,null,null,null,null,null,null,0]
[963,null,null,null,null,null,null,null,null,null,0]
[964,null,null,null,null,null,null,null,null,null,0]
[965,null,null,null,null,null,null,null,null,null,0]
[{"$f":"A973+1","v":966},null,null,null,null,null,null,null,null,null,{"$f":"IF(AND(I974=0,J974=0),0,IF(I974=J974,\"Paid\",SUM(J974-I974)))","v":0}]
[967,null,null,null,null,null,null,null,null,null,0]
[968,null,null,null,null,null,null,null,null,null,0]
[969,null,null,null,null,null,null,null,null,null,0]
[970,null,null,null,null,null,null,null,null,null,0]
[971,null,null,null,null,null,null,null,null,null,0]
[972,null,null,null,null,null,null,null,null,null,0]
[973,null,null,null,null,null,null,null,null,null,0]
[974,null,null,null,null,null,null,null,null,null,0]
[975,null,null,null,null,null,null,null,null,null,0]
[976,null,null,null,null,null,null,null,null,null,0]
[977,null,null,null,null,null,null,null,null,null,0]
[978,null,null,null,null,null,null,null,null,null,0]
[979,null,null,null,null,null,null,null,null,null,0]
[980,null,null,null,null,null,null,null,null,null,0]
[981,null,null,null,null,null,null,null,null,null,0]
[982,null,null,null,null,null,null,null,null,null,0]
[983,null,null,null,null,null,null,null,null,null,0]
[984,null,null,null,null,null,null,null,null,null,0]
[985,null,null,null,null,null,null,null,null,null,0]
[986,null,null,null,null,null,null,null,null,null,0]
[987,null,null,null,null,null,null,null,null,null,0]
[988,null,null,null,null,null,null,null,null,null,0]
[989,null,null,null,null,null,null,null,null,null,0]
[990,null,null,null,null,null,null,null,null,null,0]
[991,null,null,null,null,null,null,null,null,null,0]
[992,null,null,null,null,null,null,null,null,null,0]
[993,null,null,null,null,null,null,null,null,null,0]
[994,null,null,null,null,null,null,null,null,null,0]
[995,null,null,null,null,null,null,null,null,null,0]
[996,null,null,null,null,null,null,null,null,null,0]
[997,null,null,null,null,null,null,null,null,null,0]
[998,null,null,null,null,null,null,null,null,null,0]
[999,null,null,null,null,null,null,null,null,null,0]
[1000,null,null,null,null,null,null,null,null,null,0]
[1001,null,null,null,null,null,null,null,null,null,0]
[1002,null,null,null,null,null,null,null,null,null,0]
[1003,null,null,null,null,null,null,null,null,null,0]
[1004,null,null,null,null,null,null,null,null,null,0]
[1005,null,null,null,null,null,null,null,null,null,0]
[1006,null,null,null,null,null,null,null,null,null,0]
[1007,null,null,null,null,null,null,null,null,null,0]
[1008,null,null,null,null,null,null,null,null,null,0]
[1009,null,null,null,null,null,null,null,null,null,0]
[1010,null,null,null,null,null,null,null,null,null,0]
[1011,null,null,null,null,null,null,null,null,null,0]
[1012,null,null,null,null,null,null,null,null,null,0]
[1013,null,null,null,null,null,null,null,null,null,0]
[1014,null,null,null,null,null,null,null,null,null,0]
[1015,null,null,null,null,null,null,null,null,null,0]
[1016,null,null,null,null,null,null,null,null,null,0]
[1017,null,null,null,null,null,null,null,null,null,0]
[1018,null,null,null,null,null,null,null,null,null,0]
[1019,null,null,null,null,null,null,null,null,null,0]
[1020,null,null,null,null,null,null,null,null,null,0]
[1021,null,null,null,null,null,null,null,null,null,0]
[1022,null,null,null,null,null,null,null,null,null,0]
[1023,null,null,null,null,null,null,null,null,null,0]
[1024,null,null,null,null,null,null,null,null,null,0]
[1025,null,null,null,null,null,null,null,null,null,0]
[1026,null,null,null,null,null,null,null,null,null,0]
[1027,null,null,null,null,null,null,null,null,null,0]
[1028,null,null,null,null,null,null,null,null,null,0]
[1029,null,null,null,null,null,null,null,null,null,0]
[{"$f":"A1037+1","v":1030},null,null,null,null,null,null,null,null,null,{"$f":"IF(AND(I1038=0,J1038=0),0,IF(I1038=J1038,\"Paid\",SUM(J1038-I1038)))","v":0}]
[1031,null,null,null,null,null,null,null,null,null,0]
[1032,null,null,null,null,null,null,null,null,null,0]
[1033,null,null,null,null,null,null,null,null,null,0]
[1034,null,null,null,null,null,null,null,null,null,0]
[1035,null,null,null,null,null,null,null,null,null,0]
[1036,null,null,null,null,null,null,null,null,null,0]
[1037,null,null,null,null,null,null,null,null,null,0]
[1038,null,null,null,null,null,null,null,null,null,0]
[1039,null,null,null,null,null,null,null,null,null,0]
[1040,null,null,null,null,null,null,null,null,null,0]
[1041,null,null,null,null,null,null,null,null,null,0]
[1042,null,null,null,null,null,null,null,null,null,0]
[1043,null,null,null,null,null,null,null,null,null,0]
[1044,null,null,null,null,null,null,null,null,null,0]
[1045,null,null,null,null,null,null,null,null,null,0]
[1046,null,null,null,null,null,null,null,null,null,0]
[1047,null,null,null,null,null,null,null,null,null,0]
[1048,null,null,null,null,null,null,null,null,null,0]
[1049,null,null,null,null,null,null,null,null,null,0]
[1050,null,null,null,null,null,null,null,null,null,0]
[1051,null,null,null,null,null,null,null,null,null,0]
[1052,null,null,null,null,null,null,null,null,null,0]
[1053,null,null,null,null,null,null,null,null,null,0]
[1054,null,null,null,null,null,null,null,null,null,0]
[1055,null,null,null,null,null,null,null,null,null,0]
[1056,null,null,null,null,null,null,null,null,null,0]
[1057,null,null,null,null,null,null,null,null,null,0]
[1058,null,null,null,null,null,null,null,null,null,0]
[1059,null,null,null,null,null,null,null,null,null,0]
[1060,null,null,null,null,null,null,null,null,null,0]
[1061,null,null,null,null,null,null,null,null,null,0]
[1062,null,null,null,null,null,null,null,null,null,0]
[1063,null,null,null,null,null,null,null,null,null,0]
[1064,null,null,null,null,null,null,null,null,null,0]
[1065,null,null,null,null,null,null,null,null,null,0]
[1066,null,null,null,null,null,null,null,null,null,0]
[1067,null,null,null,null,null,null,null,null,null,0]
[1068,null,null,null,null,null,null,null,null,null,0]
[1069,null,null,null,null,null,null,null,null,null,0]
[1070,null,null,null,null,null,null,null,null,null,0]
[1071,null,null,null,null,null,null,null,null,null,0]
[1072,null,null,null,null,null,null,null,null,null,0]
[1073,null,null,null,null,null,null,null,null,null,0]
[1074,null,null,null,null,null,null,null,null,null,0]
[1075,null,null,null,null,null,null,null,null,null,0]
[1076,null,null,null,null,null,null,null,null,null,0]
[1077,null,null,null,null,null,null,null,null,null,0]
[1078,null,null,null,null,null,null,null,null,null,0]
[1079,null,null,null,null,null,null,null,null,null,0]
[1080,null,null,null,null,null,null,null,null,null,0]
[1081,null,null,null,null,null,null,null,null,null,0]
[1082,null,null,null,null,null,null,null,null,null,0]
[1083,null,null,null,null,null,null,null,null,null,0]
[1084,null,null,null,null,null,null,null,null,null,0]
[1085,null,null,null,null,null,null,null,null,null,0]
[1086,null,null,null,null,null,null,null,null,null,0]
[1087,null,null,null,null,null,null,null,null,null,0]
[1088,null,null,null,null,null,null,null,null,null,0]
[1089,null,null,null,null,null,null,null,null,null,0]
[1090,null,null,null,null,null,null,null,null,null,0]
[1091,null,null,null,null,null,null,null,null,null,0]
[1092,null,null,null,null,null,null,null,null,null,0]
[1093,null,null,null,null,null,null,null,null,null,0]
[{"$f":"A1101+1","v":1094},null,null,null,null,null,null,null,null,null,{"$f":"IF(AND(I1102=0,J1102=0),0,IF(I1102=J1102,\"Paid\",SUM(J1102-I1102)))","v":0}]
[1095,null,null,null,null,null,null,null,null,null,0]
[1096,null,null,null,null,null,null,null,null,null,0]
[1097,null,null,null,null,null,null,null,null,null,0]
[1098,null,null,null,null,null,null,null,null,null,0]
[1099,null,null,null,null,null,null,null,null,null,0]
[1100,null,null,null,null,null,null,null,null,null,0]
[1101,null,null,null,null,null,null,null,null,null,0]
[1102,null,null,null,null,null,null,null,null,null,0]
[1103,null,null,null,null,null,null,null,null,null,0]
[1104,null,null,null,null,null,null,null,null,null,0]
[1105,null,null,null,null,null,null,null,null,null,0]
[1106,null,null,null,null,null,null,null,null,null,0]
[1107,null,null,null,null,null,null,null,null,null,0]
[1108,null,null,null,null,null,null,null,null,null,0]
[1109,null,null,null,null,null,null,null,null,null,0]
[1110,null,null,null,null,null,null,null,null,null,0]
[1111,null,null,null,null,null,null,null,null,null,0]
[1112,null,null,null,null,null,null,null,null,null,0]
[1113,null,null,null,null,null,null,null,null,null,0]
[1114,null,null,null,null,null,null,null,null,null,0]
[1115,null,null,null,null,null,null,null,null,null,0]
[1116,null,null,null,null,null,null,null,null,null,0]
[1117,null,null,null,null,null,null,null,null,null,0]
[1118,null,null,null,null,null,null,null,null,null,0]
[1119,null,null,null,null,null,null,null,null,null,0]
[1120,null,null,null,null,null,null,null,null,null,0]
[1121,null,null,null,null,null,null,null,null,null,0]
[1122,null,null,null,null,null,null,null,null,null,0]
[1123,null,null,null,null,null,null,null,null,null,0]
[1124,null,null,null,null,null,null,null,null,null,0]
[1125,null,null,null,null,null,null,null,null,null,0]
[1126,null,null,null,null,null,null,null,null,null,0]
[1127,null,null,null,null,null,null,null,null,null,0]
[1128,null,null,null,null,null,null,null,null,null,0]
[1129,null,null,null,null,null,null,null,null,null,0]
[1130,null,null,null,null,null,null,null,null,null,0]
[1131,null,null,null,null,null,null,null,null,null,0]
[1132,null,null,null,null,null,null,null,null,null,0]
[1133,null,null,null,null,null,null,null,null,null,0]
[1134,null,null,null,null,null,null,null,null,null,0]
[1135,null,null,null,null,null,null,null,null,null,0]
[1136,null,null,null,null,null,null,null,null,null,0]
[1137,null,null,null,null,null,null,null,null,null,0]
[1138,null,null,null,null,null,null,null,null,null,0]
[1139,null,null,null,null,null,null,null,null,null,0]
[1140,null,null,null,null,null,null,null,null,null,0]
[1141,null,null,null,null,null,null,null,null,null,0]
[1142,null,null,null,null,null,null,null,null,null,0]
[1143,null,null,null,null,null,null,null,null,null,0]
[1144,null,null,null,null,null,null,null,null,null,0]
[1145,null,null,null,null,null,null,null,null,null,0]
[1146,null,null,null,null,null,null,null,null,null,0]
[1147,null,null,null,null,null,null,null,null,null,0]
[1148,null,null,null,null,null,null,null,null,null,0]
[1149,null,null,null,null,null,null,null,null,null,0]
[1150,null,null,null,null,null,null,null,null,null,0]
[1151,null,null,null,null,null,null,null,null,null,0]
[1152,null,null,null,null,null,null,null,null,null,0]
[1153,null,null,null,null,null,null,null,null,null,0]
[1154,null,null,null,null,null,null,null,null,null,0]
[1155,null,null,null,null,null,null,null,null,null,0]
[1156,null,null,null,null,null,null,null,null,null,0]
[1157,null,null,null,null,null,null,null,null,null,0]
[{"$f":"A1165+1","v":1158},null,null,null,null,null,null,null,null,null,{"$f":"IF(AND(I1166=0,J1166=0),0,IF(I1166=J1166,\"Paid\",SUM(J1166-I1166)))","v":0}]
[1159,null,null,null,null,null,null,null,null,null,0]
[1160,null,null,null,null,null,null,null,null,null,0]
[1161,null,null,null,null,null,null,null,null,null,0]
[1162,null,null,null,null,null,null,null,null,null,0]
[1163,null,null,null,null,null,null,null,null,null,0]
[1164,null,null,null,null,null,null,null,null,null,0]
[1165,null,null,null,null,null,null,null,null,null,0]
[1166,null,null,null,null,null,null,null,null,null,0]
[1167,null,null,null,null,null,null,null,null,null,0]
[1168,null,null,null,null,null,null,null,null,null,0]
[1169,null,null,null,null,null,null,null,null,null,0]
[1170,null,null,null,null,null,null,null,null,null,0]
[1171,null,null,null,null,null,null,null,null,null,0]
[1172,null,null,null,null,null,null,null,null,null,0]
[1173,null,null,null,null,null,null,null,null,null,0]
[1174,null,null,null,null,null,null,null,null,null,0]
[1175,null,null,null,null,null,null,null,null,null,0]
[1176,null,null,null,null,null,null,null,null,null,0]
[1177,null,null,null,null,null,null,null,null,null,0]
[1178,null,null,null,null,null,null,null,null,null,0]
[1179,null,null,null,null,null,null,null,null,null,0]
[1180,null,null,null,null,null,null,null,null,null,0]
[1181,null,null,null,null,null,null,null,null,null,0]
[1182,null,null,null,null,null,null,null,null,null,0]
[1183,null,null,null,null,null,null,null,null,null,0]
[1184,null,null,null,null,null,null,null,null,null,0]
[1185,null,null,null,null,null,null,null,null,null,0]
[1186,null,null,null,null,null,null,null,null,null,0]
[1187,null,null,null,null,null,null,null,null,null,0]
[1188,null,null,null,null,null,null,null,null,null,0]
[1189,null,null,null,null,null,null,null,null,null,0]
[1190,null,null,null,null,null,null,null,null,null,0]
[1191,null,null,null,null,null,null,null,null,null,0]
[1192,null,null,null,null,null,null,null,null,null,0]
[1193,null,null,null,null,null,null,null,null,null,0]
[1194,null,null,null,null,null,null,null,null,null,0]
[1195,null,null,null,null,null,null,null,null,null,0]
[1196,null,null,null,null,null,null,null,null,null,0]
[1197,null,null,null,null,null,null,null,null,null,0]
[1198,null,null,null,null,null,null,null,null,null,0]
[1199,null,null,null,null,null,null,null,null,null,0]
[1200,null,null,null,null,null,null,null,null,null,0]
[1201,null,null,null,null,null,null,null,null,null,0]
[1202,null,null,null,null,null,null,null,null,null,0]
[1203,null,null,null,null,null,null,null,null,null,0]
[1204,null,null,null,null,null,null,null,null,null,0]
[1205,null,null,null,null,null,null,null,null,null,0]
[1206,null,null,null,null,null,null,null,null,null,0]
[1207,null,null,null,null,null,null,null,null,null,0]
[1208,null,null,null,null,null,null,null,null,null,0]
[1209,null,null,null,null,null,null,null,null,null,0]
[1210,null,null,null,null,null,null,null,null,null,0]
[1211,null,null,null,null,null,null,null,null,null,0]
[1212,null,null,null,null,null,null,null,null,null,0]
[1213,null,null,null,null,null,null,null,null,null,0]
[1214,null,null,null,null,null,null,null,null,null,0]
[1215,null,null,null,null,null,null,null,null,null,0]
[1216,null,null,null,null,null,null,null,null,null,0]
[1217,null,null,null,null,null,null,null,null,null,0]
[1218,null,null,null,null,null,null,null,null,null,0]
[1219,null,null,null,null,null,null,null,null,null,0]
[1220,null,null,null,null,null,null,null,null,null,0]
[1221,null,null,null,null,null,null,null,null,null,0]
[{"$f":"A1229+1","v":1222},null,null,null,null,null,null,null,null,null,{"$f":"IF(AND(I1230=0,J1230=0),0,IF(I1230=J1230,\"Paid\",SUM(J1230-I1230)))","v":0}]
[1223,null,null,null,null,null,null,null,null,null,0]
[1224,null,null,null,null,null,null,null,null,null,0]
[1225,null,null,null,null,null,null,null,null,null,0]
[1226,null,null,null,null,null,null,null,null,null,0]
[1227,null,null,null,null,null,null,null,null,null,0]
[1228,null,null,null,null,null,null,null,null,null,0]
[1229,null,null,null,null,null,null,null,null,null,0]
[1230,null,null,null,null,null,null,null,null,null,0]
[1231,null,null,null,null,null,null,null,null,null,0]
[1232,null,null,null,null,null,null,null,null,null,0]
[1233,null,null,null,null,null,null,null,null,null,0]
[1234,null,null,null,null,null,null,null,null,null,0]
[1235,null,null,null,null,null,null,null,null,null,0]
[1236,null,null,null,null,null,null,null,null,null,0]
[1237,null,null,null,null,null,null,null,null,null,0]
[1238,null,null,null,null,null,null,null,null,null,0]
[1239,null,null,null,null,null,null,null,null,null,0]
[1240,null,null,null,null,null,null,null,null,null,0]
[1241,null,null,null,null,null,null,null,null,null,0]
[1242,null,null,null,null,null,null,null,null,null,0]
[1243,null,null,null,null,null,null,null,null,null,0]
[1244,null,null,null,null,null,null,null,null,null,0]
[1245,null,null,null,null,null,null,null,null,null,0]
[1246,null,null,null,null,null,null,null,null,null,0]
[1247,null,null,null,null,null,null,null,null,null,0]
[1248,null,null,null,null,null,null,null,null,null,0]
[1249,null,null,null,null,null,null,null,null,null,0]
[1250,null,null,null,null,null,null,null,null,null,0]
[1251,null,null,null,null,null,null,null,null,null,0]
[1252,null,null,null,null,null,null,null,null,null,0]
[1253,null,null,null,null,null,null,null,null,null,0]
[1254,null,null,null,null,null,null,null,null,null,0]
[1255,null,null,null,null,null,null,null,null,null,0]
[1256,null,null,null,null,null,null,null,null,null,0]
[1257,null,null,null,null,null,null,null,null,null,0]
[1258,null,null,null,null,null,null,null,null,null,0]
[1259,null,null,null,null,null,null,null,null,null,0]
[1260,null,null,null,null,null,null,null,null,null,0]
[1261,null,null,null,null,null,null,null,null,null,0]
[1262,null,null,null,null,null,null,null,null,null,0]
[1263,null,null,null,null,null,null,null,null,null,0]
[1264,null,null,null,null,null,null,null,null,null,0]
[1265,null,null,null,null,null,null,null,null,null,0]
[1266,null,null,null,null,null,null,null,null,null,0]
[1267,null,null,null,null,null,null,null,null,null,0]
[1268,null,null,null,null,null,null,null,null,null,0]
[1269,null,null,null,null,null,null,null,null,null,0]
[1270,null,null,null,null,null,null,null,null,null,0]
[1271,null,null,null,null,null,null,null,null,null,0]
[1272,null,null,null,null,null,null,null,null,null,0]
[1273,null,null,null,null,null,null,null,null,null,0]
[1274,null,null,null,null,null,null,null,null,null,0]
[1275,null,null,null,null,null,null,null,null,null,0]
[1276,null,null,null,null,null,null,null,null,null,0]
[1277,null,null,null,null,null,null,null,null,null,0]
[1278,null,null,null,null,null,null,null,null,null,0]
[1279,null,null,null,null,null,null,null,null,null,0]
[1280,null,null,null,null,null,null,null,null,null,0]
[1281,null,null,null,null,null,null,null,null,null,0]
[1282,null,null,null,null,null,null,null,null,null,0]
[1283,null,null,null,null,null,null,null,null,null,0]
[1284,null,null,null,null,null,null,null,null,null,0]
[1285,null,null,null,null,null,null,null,null,null,0]
[{"$f":"A1293+1","v":1286},null,null,null,null,null,null,null,null,null,{"$f":"IF(AND(I1294=0,J1294=0),0,IF(I1294=J1294,\"Paid\",SUM(J1294-I1294)))","v":0}]
[1287,null,null,null,null,null,null,null,null,null,0]
[1288,null,null,null,null,null,null,null,null,null,0]
[1289,null,null,null,null,null,null,null,null,null,0]
[1290,null,null,null,null,null,null,null,null,null,0]
[1291,null,null,null,null,null,null,null,null,null,0]
[1292,null,null,null,null,null,null,null,null,null,0]
[1293,null,null,null,null,null,null,null,null,null,0]
[1294,null,null,null,null,null,null,null,null,null,0]
[1295,null,null,null,null,null,null,null,null,null,0]
[1296,null,null,null,null,null,null,null,null,null,0]
[1297,null,null,null,null,null,null,null,null,null,0]
[1298,null,null,null,null,null,null,null,null,null,0]
[1299,null,null,null,null,null,null,null,null,null,0]
[1300,null,null,null,null,null,null,null,null,null,0]
[1301,null,null,null,null,null,null,null,null,null,0]
[1302,null,null,null,null,null,null,null,null,null,0]
[1303,null,null,null,null,null,null,null,null,null,0]
[1304,null,null,null,null,null,null,null,null,null,0]
[1305,null,null,null,null,null,null,null,null,null,0]
[1306,null,null,null,null,null,null,null,null,null,0]
[1307,null,null,null,null,null,null,null,null,null,0]
[1308,null,null,null,null,null,null,null,null,null,0]
[1309,null,null,null,null,null,null,null,null,null,0]
[1310,null,null,null,null,null,null,null,null,null,0]
[1311,null,null,null,null,null,null,null,null,null,0]
[1312,null,null,null,null,null,null,null,null,null,0]
[1313,null,null,null,null,null,null,null,null,null,0]
[1314,null,null,null,null,null,null,null,null,null,0]
[1315,null,null,null,null,null,null,null,null,null,0]
[1316,null,null,null,null,null,null,null,null,null,0]
[1317,null,null,null,null,null,null,null,null,null,0]
[1318,null,null,null,null,null,null,null,null,null,0]
[1319,null,null,null,null,null,null,null,null,null,0]
[1320,null,null,null,null,null,null,null,null,null,0]
[1321,null,null,null,null,null,null,null,null,null,0]
[1322,null,null,null,null,null,null,null,null,null,0]
[1323,null,null,null,null,null,null,null,null,null,0]
[1324,null,null,null,null,null,null,null,null,null,0]
[1325,null,null,null,null,null,null,null,null,null,0]
[1326,null,null,null,null,null,null,null,null,null,0]
[1327,null,null,null,null,null,null,null,null,null,0]
[1328,null,null,null,null,null,null,null,null,null,0]
[1329,null,null,null,null,null,null,null,null,null,0]
[1330,null,null,null,null,null,null,null,null,null,0]
[1331,null,null,null,null,null,null,null,null,null,0]
[1332,null,null,null,null,null,null,null,null,null,0]
[1333,null,null,null,null,null,null,null,null,null,0]
[1334,null,null,null,null,null,null,null,null,null,0]
[1335,null,null,null,null,null,null,null,null,null,0]
[1336,null,null,null,null,null,null,null,null,null,0]
[1337,null,null,null,null,null,null,null,null,null,0]
[1338,null,null,null,null,null,null,null,null,null,0]
[1339,null,null,null,null,null,null,null,null,null,0]
[1340,null,null,null,null,null,null,null,null,null,0]
[1341,null,null,null,null,null,null,null,null,null,0]
[1342,null,null,null,null,null,null,null,null,null,0]
[1343,null,null,null,null,null,null,null,null,null,0]
[1344,null,null,null,null,null,null,null,null,null,0]
[1345,null,null,null,null,null,null,null,null,null,0]
[1346,null,null,null,null,null,null,null,null,null,0]
[1347,null,null,null,null,null,null,null,null,null,0]
[1348,null,null,null,null,null,null,null,null,null,0]
[1349,null,null,null,null,null,null,null,null,null,0]
[{"$f":"A1357+1","v":1350},null,null,null,null,null,null,null,null,null,{"$f":"IF(AND(I1358=0,J1358=0),0,IF(I1358=J1358,\"Paid\",SUM(J1358-I1358)))","v":0}]
[1351,null,null,null,null,null,null,null,null,null,0]
[1352,null,null,null,null,null,null,null,null,null,0]
[1353,null,null,null,null,null,null,null,null,null,0]
[1354,null,null,null,null,null,null,null,null,null,0]
[1355,null,null,null,null,null,null,null,null,null,0]
[1356,null,null,null,null,null,null,null,null,null,0]
[1357,null,null,null,null,null,null,null,null,null,0]
[1358,null,null,null,null,null,null,null,null,null,0]
[1359,null,null,null,null,null,null,null,null,null,0]
[1360,null,null,null,null,null,null,null,null,null,0]
[1361,null,null,null,null,null,null,null,null,null,0]
[1362,null,null,null,null,null,null,null,null,null,0]
[1363,null,null,null,null,null,null,null,null,null,0]
[1364,null,null,null,null,null,null,null,null,null,0]
[1365,null,null,null,null,null,null,null,null,null,0]
[1366,null,null,null,null,null,null,null,null,null,0]
[1367,null,null,null,null,null,null,null,null,null,0]
[1368,null,null,null,null,null,null,null,null,null,0]
[1369,null,null,null,null,null,null,null,null,null,0]
[1370,null,null,null,null,null,null,null,null,null,0]
[1371,null,null,null,null,null,null,null,null,null,0]
[1372,null,null,null,null,null,null,null,null,null,0]
[1373,null,null,null,null,null,null,null,null,null,0]
[1374,null,null,null,null,null,null,null,null,null,0]
[1375,null,null,null,null,null,null,null,null,null,0]
[1376,null,null,null,null,null,null,null,null,null,0]
[1377,null,null,null,null,null,null,null,null,null,0]
[1378,null,null,null,null,null,null,null,null,null,0]
[1379,null,null,null,null,null,null,null,null,null,0]
[1380,null,null,null,null,null,null,null,null,null,0]
[1381,null,null,null,null,null,null,null,null,null,0]
[1382,null,null,null,null,null,null,null,null,null,0]
[1383,null,null,null,null,null,null,null,null,null,0]
[1384,null,null,null,null,null,null,null,null,null,0]
[1385,null,null,null,null,null,null,null,null,null,0]
[1386,null,null,null,null,null,null,null,null,null,0]
[1387,null,null,null,null,null,null,null,null,null,0]
[1388,null,null,null,null,null,null,null,null,null,0]
[1389,null,null,null,null,null,null,null,null,null,0]
[1390,null,null,null,null,null,null,null,null,null,0]
[1391,null,null,null,null,null,null,null,null,null,0]
[1392,null,null,null,null,null,null,null,null,null,0]
[1393,null,null,null,null,null,null,null,null,null,0]
[1394,null,null,null,null,null,null,null,null,null,0]
[1395,null,null,null,null,null,null,null,null,null,0]
[1396,null,null,null,null,null,null,null,null,null,0]
[1397,null,null,null,null,null,null,null,null,null,0]
[1398,null,null,null,null,null,null,null,null,null,0]
[1399,null,null,null,null,null,null,null,null,null,0]
[1400,null,null,null,null,null,null,null,null,null,0]
[1401,null,null,null,null,null,null,null,null,null,0]
[1402,null,null,null,null,null,null,null,null,null,0]
[1403,null,null,null,null,null,null,null,null,null,0]
[1404,null,null,null,null,null,null,null,null,null,0]
[1405,null,null,null,null,null,null,null,null,null,0]
[1406,null,null,null,null,null,null,null,null,null,0]
[1407,null,null,null,null,null,null,null,null,null,0]
[1408,null,null,null,null,null,null,null,null,null,0]
[1409,null,null,null,null,null,null,null,null,null,0]
[1410,null,null,null,null,null,null,null,null,null,0]
[1411,null,null,null,null,null,null,null,null,null,0]
[1412,null,null,null,null,null,null,null,null,null,0]
[1413,null,null,null,null,null,null,null,null,null,0]
[{"$f":"A1421+1","v":1414},null,null,null,null,null,null,null,null,null,{"$f":"IF(AND(I1422=0,J1422=0),0,IF(I1422=J1422,\"Paid\",SUM(J1422-I1422)))","v":0}]
[1415,null,null,null,null,null,null,null,null,null,0]
[1416,null,null,null,null,null,null,null,null,null,0]
[1417,null,null,null,null,null,null,null,null,null,0]
[1418,null,null,null,null,null,null,null,null,null,0]
[1419,null,null,null,null,null,null,null,null,null,0]
[1420,null,null,null,null,null,null,null,null,null,0]
[1421,null,null,null,null,null,null,null,null,null,0]
[1422,null,null,null,null,null,null,null,null,null,0]
[1423,null,null,null,null,null,null,null,null,null,0]
[1424,null,null,null,null,null,null,null,null,null,0]
[1425,null,null,null,null,null,null,null,null,null,0]
[1426,null,null,null,null,null,null,null,null,null,0]
[1427,null,null,null,null,null,null,null,null,null,0]
[1428,null,null,null,null,null,null,null,null,null,0]
[1429,null,null,null,null,null,null,null,null,null,0]
[1430,null,null,null,null,null,null,null,null,null,0]
[1431,null,null,null,null,null,null,null,null,null,0]
[1432,null,null,null,null,null,null,null,null,null,0]
[1433,null,null,null,null,null,null,null,null,null,0]
[1434,null,null,null,null,null,null,null,null,null,0]
[1435,null,null,null,null,null,null,null,null,null,0]
[1436,null,null,null,null,null,null,null,null,null,0]
[1437,null,null,null,null,null,null,null,null,null,0]
[1438,null,null,null,null,null,null,null,null,null,0]
[1439,null,null,null,null,null,null,null,null,null,0]
[1440,null,null,null,null,null,null,null,null,null,0]
[1441,null,null,null,null,null,null,null,null,null,0]
[1442,null,null,null,null,null,null,null,null,null,0]
[1443,null,null,null,null,null,null,null,null,null,0]
[1444,null,null,null,null,null,null,null,null,null,0]
[1445,null,null,null,null,null,null,null,null,null,0]
[1446,null,null,null,null,null,null,null,null,null,0]
[1447,null,null,null,null,null,null,null,null,null,0]
[1448,null,null,null,null,null,null,null,null,null,0]
[1449,null,null,null,null,null,null,null,null,null,0]
[1450,null,null,null,null,null,null,null,null,null,0]
[1451,null,null,null,null,null,null,null,null,null,0]
[1452,null,null,null,null,null,null,null,null,null,0]
[1453,null,null,null,null,null,null,null,null,null,0]
[1454,null,null,null,null,null,null,null,null,null,0]
[1455,null,null,null,null,null,null,null,null,null,0]
[1456,null,null,null,null,null,null,null,null,null,0]
[1457,null,null,null,null,null,null,null,null,null,0]
[1458,null,null,null,null,null,null,null,null,null,0]
[1459,null,null,null,null,null,null,null,null,null,0]
[1460,null,null,null,null,null,null,null,null,null,0]
[1461,null,null,null,null,null,null,null,null,null,0]
[1462,null,null,null,null,null,null,null,null,null,0]
[1463,null,null,null,null,null,null,null,null,null,0]
[1464,null,null,null,null,null,null,null,null,null,0]
[1465,null,null,null,null,null,null,null,null,null,0]
[1466,null,null,null,null,null,null,null,null,null,0]
[1467,null,null,null,null,null,null,null,null,null,0]
[1468,null,null,null,null,null,null,null,null,null,0]
[1469,null,null,null,null,null,null,null,null,null,0]
[1470,null,null,null,null,null,null,null,null,null,0]
[1471,null,null,null,null,null,null,null,null,null,0]
[1472,null,null,null,null,null,null,null,null,null,0]
[1473,null,null,null,null,null,null,null,null,null,0]
[1474,null,null,null,null,null,null,null,null,null,0]
[1475,null,null,null,null,null,null,null,null,null,0]
[1476,null,null,null,null,null,null,null,null,null,0]
[1477,null,null,null,null,null,null,null,null,null,0]
[{"$f":"A1485+1","v":1478},null,null,null,null,null,null,null,null,null,{"$f":"IF(AND(I1486=0,J1486=0),0,IF(I1486=J1486,\"Paid\",SUM(J1486-I1486)))","v":0}]
[1479,null,null,null,null,null,null,null,null,null,0]
[1480,null,null,null,null,null,null,null,null,null,0]
[1481,null,null,null,null,null,null,null,null,null,0]
[1482,null,null,null,null,null,null,null,null,null,0]
[1483,null,null,null,null,null,null,null,null,null,0]
[1484,null,null,null,null,null,null,null,null,null,0]
[1485,null,null,null,null,null,null,null,null,null,0]
[1486,null,null,null,null,null,null,null,null,null,0]
[1487,null,null,null,null,null,null,null,null,null,0]
[1488,null,null,null,null,null,null,null,null,null,0]
[1489,null,null,null,null,null,null,null,null,null,0]
[1490,null,null,null,null,null,null,null,null,null,0]
[1491,null,null,null,null,null,null,null,null,null,0]
[1492,null,null,null,null,null,null,null,null,null,0]
[1493,null,null,null,null,null,null,null,null,null,0]
[1494,null,null,null,null,null,null,null,null,null,0]
[1495,null,null,null,null,null,null,null,null,null,0]
[1496,null,null,null,null,null,null,null,null,null,0]
[1497,null,null,null,null,null,null,null,null,null,0]
[1498,null,null,null,null,null,null,null,null,null,0]
[1499,null,null,null,null,null,null,null,null,null,0]
[1500,null,null,null,null,null,null,null,null,null,0]
[1501,null,null,null,null,null,null,null,null,null,0]
[1502,null,null,null,null,null,null,null,null,null,0]
[1503,null,null,null,null,null,null,null,null,null,0]
[1504,null,null,null,null,null,null,null,null,null,0]
[1505,null,null,null,null,null,null,null,null,null,0]
[1506,null,null,null,null,null,null,null,null,null,0]
[1507,null,null,null,null,null,null,null,null,null,0]
[1508,null,null,null,null,null,null,null,null,null,0]
[1509,null,null,null,null,null,null,null,null,null,0]
[1510,null,null,null,null,null,null,null,null,null,0]
[1511,null,null,null,null,null,null,null,null,null,0]
[1512,null,null,null,null,null,null,null,null,null,0]
[1513,null,null,null,null,null,null,null,null,null,0]
[1514,null,null,null,null,null,null,null,null,null,0]
[1515,null,null,null,null,null,null,null,null,null,0]
[1516,null,null,null,null,null,null,null,null,null,0]
[1517,null,null,null,null,null,null,null,null,null,0]
[1518,null,null,null,null,null,null,null,null,null,0]
[1519,null,null,null,null,null,null,null,null,null,0]
[1520,null,null,null,null,null,null,null,null,null,0]
[1521,null,null,null,null,null,null,null,null,null,0]
[1522,null,null,null,null,null,null,null,null,null,0]
[1523,null,null,null,null,null,null,null,null,null,0]
[1524,null,null,null,null,null,null,null,null,null,0]
[1525,null,null,null,null,null,null,null,null,null,0]
[1526,null,null,null,null,null,null,null,null,null,0]
[1527,null,null,null,null,null,null,null,null,null,0]
[1528,null,null,null,null,null,null,null,null,null,0]
[1529,null,null,null,null,null,null,null,null,null,0]
[1530,null,null,null,null,null,null,null,null,null,0]
[1531,null,null,null,null,null,null,null,null,null,0]
[1532,null,null,null,null,null,null,null,null,null,0]
[1533,null,null,null,null,null,null,null,null,null,0]
[1534,null,null,null,null,null,null,null,null,null,0]
[1535,null,null,null,null,null,null,null,null,null,0]
[1536,null,null,null,null,null,null,null,null,null,0]
[1537,null,null,null,null,null,null,null,null,null,0]
[1538,null,null,null,null,null,null,null,null,null,0]
[1539,null,null,null,null,null,null,null,null,null,0]
[1540,null,null,null,null,null,null,null,null,null,0]
[1541,null,null,null,null,null,null,null,null,null,0]
[{"$f":"A1549+1","v":1542},null,null,null,null,null,null,null,null,null,{"$f":"IF(AND(I1550=0,J1550=0),0,IF(I1550=J1550,\"Paid\",SUM(J1550-I1550)))","v":0}]
[1543,null,null,null,null,null,null,null,null,null,0]
[1544,null,null,null,null,null,null,null,null,null,0]
[1545,null,null,null,null,null,null,null,null,null,0]
[1546,null,null,null,null,null,null,null,null,null,0]
[1547,null,null,null,null,null,null,null,null,null,0]
[1548,null,null,null,null,null,null,null,null,null,0]
[1549,null,null,null,null,null,null,null,null,null,0]
[1550,null,null,null,null,null,null,null,null,null,0]
[1551,null,null,null,null,null,null,null,null,null,0]
[1552,null,null,null,null,null,null,null,null,null,0]
[1553,null,null,null,null,null,null,null,null,null,0]
[1554,null,null,null,null,null,null,null,null,null,0]
[1555,null,null,null,null,null,null,null,null,null,0]
[1556,null,null,null,null,null,null,null,null,null,0]
[1557,null,null,null,null,null,null,null,null,null,0]
[1558,null,null,null,null,null,null,null,null,null,0]
[1559,null,null,null,null,null,null,null,null,null,0]
[1560,null,null,null,null,null,null,null,null,null,0]
[1561,null,null,null,null,null,null,null,null,null,0]
[1562,null,null,null,null,null,null,null,null,null,0]
[1563,null,null,null,null,null,null,null,null,null,0]
[1564,null,null,null,null,null,null,null,null,null,0]
[1565,null,null,null,null,null,null,null,null,null,0]
[1566,null,null,null,null,null,null,null,null,null,0]
[1567,null,null,null,null,null,null,null,null,null,0]
[1568,null,null,null,null,null,null,null,null,null,0]
[1569,null,null,null,null,null,null,null,null,null,0]
[1570,null,null,null,null,null,null,null,null,null,0]
[1571,null,null,null,null,null,null,null,null,null,0]
[1572,null,null,null,null,null,null,null,null,null,0]
[1573,null,null,null,null,null,null,null,null,null,0]
[1574,null,null,null,null,null,null,null,null,null,0]
[1575,null,null,null,null,null,null,null,null,null,0]
[1576,null,null,null,null,null,null,null,null,null,0]
[1577,null,null,null,null,null,null,null,null,null,0]
[1578,null,null,null,null,null,null,null,null,null,0]
[1579,null,null,null,null,null,null,null,null,null,0]
[1580,null,null,null,null,null,null,null,null,null,0]
[1581,null,null,null,null,null,null,null,null,null,0]
[1582,null,null,null,null,null,null,null,null,null,0]
[1583,null,null,null,null,null,null,null,null,null,0]
[1584,null,null,null,null,null,null,null,null,null,0]
[1585,null,null,null,null,null,null,null,null,null,0]
[1586,null,null,null,null,null,null,null,null,null,0]
[1587,null,null,null,null,null,null,null,null,null,0]
[1588,null,null,null,null,null,null,null,null,null,0]
[1589,null,null,null,null,null,null,null,null,null,0]
[1590,null,null,null,null,null,null,null,null,null,0]
[1591,null,null,null,null,null,null,null,null,null,0]
[1592,null,null,null,null,null,null,null,null,null,0]
[1593,null,null,null,null,null,null,null,null,null,0]
[1594,null,null,null,null,null,null,null,null,null,0]
[1595,null,null,null,null,null,null,null,null,null,0]
[1596,null,null,null,null,null,null,null,null,null,0]
[1597,null,null,null,null,null,null,null,null,null,0]
[1598,null,null,null,null,null,null,null,null,null,0]
[1599,null,null,null,null,null,null,null,null,null,0]
[1600,null,null,null,null,null,null,null,null,null,0]
[1601,null,null,null,null,null,null,null,null,null,0]
[1602,null,null,null,null,null,null,null,null,null,0]
[1603,null,null,null,null,null,null,null,null,null,0]
[1604,null,null,null,null,null,null,null,null,null,0]
[1605,null,null,null,null,null,null,null,null,null,0]
[{"$f":"A1613+1","v":1606},null,null,null,null,null,null,null,null,null,{"$f":"IF(AND(I1614=0,J1614=0),0,IF(I1614=J1614,\"Paid\",SUM(J1614-I1614)))","v":0}]
[1607,null,null,null,null,null,null,null,null,null,0]
[1608,null,null,null,null,null,null,null,null,null,0]
[1609,null,null,null,null,null,null,null,null,null,0]
[1610,null,null,null,null,null,null,null,null,null,0]
[1611,null,null,null,null,null,null,null,null,null,0]
[1612,null,null,null,null,null,null,null,null,null,0]
[1613,null,null,null,null,null,null,null,null,null,0]
[1614,null,null,null,null,null,null,null,null,null,0]
[1615,null,null,null,null,null,null,null,null,null,0]
[1616,null,null,null,null,null,null,null,null,null,0]
[1617,null,null,null,null,null,null,null,null,null,0]
[1618,null,null,null,null,null,null,null,null,null,0]
[1619,null,null,null,null,null,null,null,null,null,0]
[1620,null,null,null,null,null,null,null,null,null,0]
[1621,null,null,null,null,null,null,null,null,null,0]
[1622,null,null,null,null,null,null,null,null,null,0]
[1623,null,null,null,null,null,null,null,null,null,0]
[1624,null,null,null,null,null,null,null,null,null,0]
[1625,null,null,null,null,null,null,null,null,null,0]
[1626,null,null,null,null,null,null,null,null,null,0]
[1627,null,null,null,null,null,null,null,null,null,0]
[1628,null,null,null,null,null,null,null,null,null,0]
[1629,null,null,null,null,null,null,null,null,null,0]
[1630,null,null,null,null,null,null,null,null,null,0]
[1631,null,null,null,null,null,null,null,null,null,0]
[1632,null,null,null,null,null,null,null,null,null,0]
[1633,null,null,null,null,null,null,null,null,null,0]
[1634,null,null,null,null,null,null,null,null,null,0]
[1635,null,null,null,null,null,null,null,null,null,0]
[1636,null,null,null,null,null,null,null,null,null,0]
[1637,null,null,null,null,null,null,null,null,null,0]
[1638,null,null,null,null,null,null,null,null,null,0]
[1639,null,null,null,null,null,null,null,null,null,0]
[1640,null,null,null,null,null,null,null,null,null,0]
[1641,null,null,null,null,null,null,null,null,null,0]
[1642,null,null,null,null,null,null,null,null,null,0]
[1643,null,null,null,null,null,null,null,null,null,0]
[1644,null,null,null,null,null,null,null,null,null,0]
[1645,null,null,null,null,null,null,null,null,null,0]
[1646,null,null,null,null,null,null,null,null,null,0]
[1647,null,null,null,null,null,null,null,null,null,0]
[1648,null,null,null,null,null,null,null,null,null,0]
[1649,null,null,null,null,null,null,null,null,null,0]
[1650,null,null,null,null,null,null,null,null,null,0]
[1651,null,null,null,null,null,null,null,null,null,0]
[1652,null,null,null,null,null,null,null,null,null,0]
[1653,null,null,null,null,null,null,null,null,null,0]
[1654,null,null,null,null,null,null,null,null,null,0]
[1655,null,null,null,null,null,null,null,null,null,0]
[1656,null,null,null,null,null,null,null,null,null,0]
[1657,null,null,null,null,null,null,null,null,null,0]
[1658,null,null,null,null,null,null,null,null,null,0]
[1659,null,null,null,null,null,null,null,null,null,0]
[1660,null,null,null,null,null,null,null,null,null,0]
[1661,null,null,null,null,null,null,null,null,null,0]
[1662,null,null,null,null,null,null,null,null,null,0]
[1663,null,null,null,null,null,null,null,null,null,0]
[1664,null,null,null,null,null,null,null,null,null,0]
[1665,null,null,null,null,null,null,null,null,null,0]
[1666,null,null,null,null,null,null,null,null,null,0]
[1667,null,null,null,null,null,null,null,null,null,0]
[1668,null,null,null,null,null,null,null,null,null,0]
[1669,null,null,null,null,null,null,null,null,null,0]
[{"$f":"A1677+1","v":1670},null,null,null,null,null,null,null,null,null,{"$f":"IF(AND(I1678=0,J1678=0),0,IF(I1678=J1678,\"Paid\",SUM(J1678-I1678)))","v":0}]
[1671,null,null,null,null,null,null,null,null,null,0]
[1672,null,null,null,null,null,null,null,null,null,0]
[1673,null,null,null,null,null,null,null,null,null,0]
[1674,null,null,null,null,null,null,null,null,null,0]
[1675,null,null,null,null,null,null,null,null,null,0]
[1676,null,null,null,null,null,null,null,null,null,0]
[1677,null,null,null,null,null,null,null,null,null,0]
[1678,null,null,null,null,null,null,null,null,null,0]
[1679,null,null,null,null,null,null,null,null,null,0]
[1680,null,null,null,null,null,null,null,null,null,0]
[1681,null,null,null,null,null,null,null,null,null,0]
[1682,null,null,null,null,null,null,null,null,null,0]
[1683,null,null,null,null,null,null,null,null,null,0]
[1684,null,null,null,null,null,null,null,null,null,0]
[1685,null,null,null,null,null,null,null,null,null,0]
[1686,null,null,null,null,null,null,null,null,null,0]
[1687,null,null,null,null,null,null,null,null,null,0]
[1688,null,null,null,null,null,null,null,null,null,0]
[1689,null,null,null,null,null,null,null,null,null,0]
[1690,null,null,null,null,null,null,null,null,null,0]
[1691,null,null,null,null,null,null,null,null,null,0]
[1692,null,null,null,null,null,null,null,null,null,0]
[1693,null,null,null,null,null,null,null,null,null,0]
[1694,null,null,null,null,null,null,null,null,null,0]
[1695,null,null,null,null,null,null,null,null,null,0]
[1696,null,null,null,null,null,null,null,null,null,0]
[1697,null,null,null,null,null,null,null,null,null,0]
[1698,null,null,null,null,null,null,null,null,null,0]
[1699,null,null,null,null,null,null,null,null,null,0]
[1700,null,null,null,null,null,null,null,null,null,0]
[1701,null,null,null,null,null,null,null,null,null,0]
[1702,null,null,null,null,null,null,null,null,null,0]
[1703,null,null,null,null,null,null,null,null,null,0]
[1704,null,null,null,null,null,null,null,null,null,0]
[1705,null,null,null,null,null,null,null,null,null,0]
[1706,null,null,null,null,null,null,null,null,null,0]
[1707,null,null,null,null,null,null,null,null,null,0]
[1708,null,null,null,null,null,null,null,null,null,0]
[1709,null,null,null,null,null,null,null,null,null,0]
[1710,null,null,null,null,null,null,null,null,null,0]
[1711,null,null,null,null,null,null,null,null,null,0]
[1712,null,null,null,null,null,null,null,null,null,0]
[1713,null,null,null,null,null,null,null,null,null,0]
[1714,null,null,null,null,null,null,null,null,null,0]
[1715,null,null,null,null,null,null,null,null,null,0]
[1716,null,null,null,null,null,null,null,null,null,0]
[1717,null,null,null,null,null,null,null,null,null,0]
[1718,null,null,null,null,null,null,null,null,null,0]
[1719,null,null,null,null,null,null,null,null,null,0]
[1720,null,null,null,null,null,null,null,null,null,0]
[1721,null,null,null,null,null,null,null,null,null,0]
[1722,null,null,null,null,null,null,null,null,null,0]
[1723,null,null,null,null,null,null,null,null,null,0]
[1724,null,null,null,null,null,null,null,null,null,0]
[1725,null,null,null,null,null,null,null,null,null,0]
[1726,null,null,null,null,null,null,null,null,null,0]
[1727,null,null,null,null,null,null,null,null,null,0]
[1728,null,null,null,null,null,null,null,null,null,0]
[1729,null,null,null,null,null,null,null,null,null,0]
[1730,null,null,null,null,null,null,null,null,null,0]
[1731,null,null,null,null,null,null,null,null,null,0]
[1732,null,null,null,null,null,null,null,null,null,0]
[1733,null,null,null,null,null,null,null,null,null,0]
[{"$f":"A1741+1","v":1734},null,null,null,null,null,null,null,null,null,{"$f":"IF(AND(I1742=0,J1742=0),0,IF(I1742=J1742,\"Paid\",SUM(J1742-I1742)))","v":0}]
[1735,null,null,null,null,null,null,null,null,null,0]
[1736,null,null,null,null,null,null,null,null,null,0]
[1737,null,null,null,null,null,null,null,null,null,0]
[1738,null,null,null,null,null,null,null,null,null,0]
[1739,null,null,null,null,null,null,null,null,null,0]
[1740,null,null,null,null,null,null,null,null,null,0]
[1741,null,null,null,null,null,null,null,null,null,0]
[1742,null,null,null,null,null,null,null,null,null,0]
[1743,null,null,null,null,null,null,null,null,null,0]
[1744,null,null,null,null,null,null,null,null,null,0]
[1745,null,null,null,null,null,null,null,null,null,0]
[1746,null,null,null,null,null,null,null,null,null,0]
[1747,null,null,null,null,null,null,null,null,null,0]
[1748,null,null,null,null,null,null,null,null,null,0]
[1749,null,null,null,null,null,null,null,null,null,0]
[1750,null,null,null,null,null,null,null,null,null,0]
[1751,null,null,null,null,null,null,null,null,null,0]
[1752,null,null,null,null,null,null,null,null,null,0]
[1753,null,null,null,null,null,null,null,null,null,0]
[1754,null,null,null,null,null,null,null,null,null,0]
[1755,null,null,null,null,null,null,null,null,null,0]
[1756,null,null,null,null,null,null,null,null,null,0]
[1757,null,null,null,null,null,null,null,null,null,0]
[1758,null,null,null,null,null,null,null,null,null,0]
[1759,null,null,null,null,null,null,null,null,null,0]
[1760,null,null,null,null,null,null,null,null,null,0]
[1761,null,null,null,null,null,null,null,null,null,0]
[1762,null,null,null,null,null,null,null,null,null,0]
[1763,null,null,null,null,null,null,null,null,null,0]
[1764,null,null,null,null,null,null,null,null,null,0]
[1765,null,null,null,null,null,null,null,null,null,0]
[1766,null,null,null,null,null,null,null,null,null,0]
[1767,null,null,null,null,null,null,null,null,null,0]
[1768,null,null,null,null,null,null,null,null,null,0]
[1769,null,null,null,null,null,null,null,null,null,0]
[1770,null,null,null,null,null,null,null,null,null,0]
[1771,null,null,null,null,null,null,null,null,null,0]
[1772,null,null,null,null,null,null,null,null,null,0]
[1773,null,null,null,null,null,null,null,null,null,0]
[1774,null,null,null,null,null,null,null,null,null,0]
[1775,null,null,null,null,null,null,null,null,null,0]
[1776,null,null,null,null,null,null,null,null,null,0]
[1777,null,null,null,null,null,null,null,null,null,0]
[1778,null,null,null,null,null,null,null,null,null,0]
[1779,null,null,null,null,null,null,null,null,null,0]
[1780,null,null,null,null,null,null,null,null,null,0]
[1781,null,null,null,null,null,null,null,null,null,0]
[1782,null,null,null,null,null,null,null,null,null,0]
[1783,null,null,null,null,null,null,null,null,null,0]
[1784,null,null,null,null,null,null,null,null,null,0]
[1785,null,null,null,null,null,null,null,null,null,0]
[1786,null,null,null,null,null,null,null,null,null,0]
[1787,null,null,null,null,null,null,null,null,null,0]
[1788,null,null,null,null,null,null,null,null,null,0]
[1789,null,null,null,null,null,null,null,null,null,0]
[1790,null,null,null,null,null,null,null,null,null,0]
[1791,null,null,null,null,null,null,null,null,null,0]
[1792,null,null,null,null,null,null,null,null,null,0]
[1793,null,null,null,null,null,null,null,null,null,0]
[1794,null,null,null,null,null,null,null,null,null,0]
[1795,null,null,null,null,null,null,null,null,null,0]
[1796,null,null,null,null,null,null,null,null,null,0]
[1797,null,null,null,null,null,null,null,null,null,0]
[{"$f":"A1805+1","v":1798},null,null,null,null,null,null,null,null,null,{"$f":"IF(AND(I1806=0,J1806=0),0,IF(I1806=J1806,\"Paid\",SUM(J1806-I1806)))","v":0}]
[1799,null,null,null,null,null,null,null,null,null,0]
[1800,null,null,null,null,null,null,null,null,null,0]
[1801,null,null,null,null,null,null,null,null,null,0]
[1802,null,null,null,null,null,null,null,null,null,0]
[1803,null,null,null,null,null,null,null,null,null,0]
[1804,null,null,null,null,null,null,null,null,null,0]
[1805,null,null,null,null,null,null,null,null,null,0]
[1806,null,null,null,null,null,null,null,null,null,0]
[1807,null,null,null,null,null,null,null,null,null,0]
[1808,null,null,null,null,null,null,null,null,null,0]
[1809,null,null,null,null,null,null,null,null,null,0]
[1810,null,null,null,null,null,null,null,null,null,0]
[1811,null,null,null,null,null,null,null,null,null,0]
[1812,null,null,null,null,null,null,null,null,null,0]
[1813,null,null,null,null,null,null,null,null,null,0]
[1814,null,null,null,null,null,null,null,null,null,0]
[1815,null,null,null,null,null,null,null,null,null,0]
[1816,null,null,null,null,null,null,null,null,null,0]
[1817,null,null,null,null,null,null,null,null,null,0]
[1818,null,null,null,null,null,null,null,null,null,0]
[1819,null,null,null,null,null,null,null,null,null,0]
[1820,null,null,null,null,null,null,null,null,null,0]
[1821,null,null,null,null,null,null,null,null,null,0]
[1822,null,null,null,null,null,null,null,null,null,0]
[1823,null,null,null,null,null,null,null,null,null,0]
[1824,null,null,null,null,null,null,null,null,null,0]
[1825,null,null,null,null,null,null,null,null,null,0]
[1826,null,null,null,null,null,null,null,null,null,0]
[1827,null,null,null,null,null,null,null,null,null,0]
[1828,null,null,null,null,null,null,null,null,null,0]
[1829,null,null,null,null,null,null,null,null,null,0]
[1830,null,null,null,null,null,null,null,null,null,0]
[1831,null,null,null,null,null,null,null,null,null,0]
[1832,null,null,null,null,null,null,null,null,null,0]
[1833,null,null,null,null,null,null,null,null,null,0]
[1834,null,null,null,null,null,null,null,null,null,0]
[1835,null,null,null,null,null,null,null,null,null,0]
[1836,null,null,null,null,null,null,null,null,null,0]
[1837,null,null,null,null,null,null,null,null,null,0]
[1838,null,null,null,null,null,null,null,null,null,0]
[1839,null,null,null,null,null,null,null,null,null,0]
[1840,null,null,null,null,null,null,null,null,null,0]
[1841,null,null,null,null,null,null,null,null,null,0]
[1842,null,null,null,null,null,null,null,null,null,0]
[1843,null,null,null,null,null,null,null,null,null,0]
[1844,null,null,null,null,null,null,null,null,null,0]
[1845,null,null,null,null,null,null,null,null,null,0]
[1846,null,null,null,null,null,null,null,null,null,0]
[1847,null,null,null,null,null,null,null,null,null,0]
[1848,null,null,null,null,null,null,null,null,null,0]
[1849,null,null,null,null,null,null,null,null,null,0]
[1850,null,null,null,null,null,null,null,null,null,0]
[1851,null,null,null,null,null,null,null,null,null,0]
[1852,null,null,null,null,null,null,null,null,null,0]
[1853,null,null,null,null,null,null,null,null,null,0]
[1854,null,null,null,null,null,null,null,null,null,0]
[1855,null,null,null,null,null,null,null,null,null,0]
[1856,null,null,null,null,null,null,null,null,null,0]
[1857,null,null,null,null,null,null,null,null,null,0]
[1858,null,null,null,null,null,null,null,null,null,0]
[1859,null,null,null,null,null,null,null,null,null,0]
[1860,null,null,null,null,null,null,null,null,null,0]
[1861,null,null,null,null,null,null,null,null,null,0]
[{"$f":"A1869+1","v":1862},null,null,null,null,null,null,null,null,null,{"$f":"IF(AND(I1870=0,J1870=0),0,IF(I1870=J1870,\"Paid\",SUM(J1870-I1870)))","v":0}]
[1863,null,null,null,null,null,null,null,null,null,0]
[1864,null,null,null,null,null,null,null,null,null,0]
[1865,null,null,null,null,null,null,null,null,null,0]
[1866,null,null,null,null,null,null,null,null,null,0]
[1867,null,null,null,null,null,null,null,null,null,0]
[1868,null,null,null,null,null,null,null,null,null,0]
[1869,null,null,null,null,null,null,null,null,null,0]
[1870,null,null,null,null,null,null,null,null,null,0]
[1871,null,null,null,null,null,null,null,null,null,0]
[1872,null,null,null,null,null,null,null,null,null,0]
[1873,null,null,null,null,null,null,null,null,null,0]
[1874,null,null,null,null,null,null,null,null,null,0]
[1875,null,null,null,null,null,null,null,null,null,0]
[1876,null,null,null,null,null,null,null,null,null,0]
[1877,null,null,null,null,null,null,null,null,null,0]
[1878,null,null,null,null,null,null,null,null,null,0]
[1879,null,null,null,null,null,null,null,null,null,0]
[1880,null,null,null,null,null,null,null,null,null,0]
[1881,null,null,null,null,null,null,null,null,null,0]
[1882,null,null,null,null,null,null,null,null,null,0]
[1883,null,null,null,null,null,null,null,null,null,0]
[1884,null,null,null,null,null,null,null,null,null,0]
[1885,null,null,null,null,null,null,null,null,null,0]
[1886,null,null,null,null,null,null,null,null,null,0]
[1887,null,null,null,null,null,null,null,null,null,0]
[1888,null,null,null,null,null,null,null,null,null,0]
[1889,null,null,null,null,null,null,null,null,null,0]
[1890,null,null,null,null,null,null,null,null,null,0]
[1891,null,null,null,null,null,null,null,null,null,0]
[1892,null,null,null,null,null,null,null,null,null,0]
[1893,null,null,null,null,null,null,null,null,null,0]
[1894,null,null,null,null,null,null,null,null,null,0]
[1895,null,null,null,null,null,null,null,null,null,0]
[1896,null,null,null,null,null,null,null,null,null,0]
[1897,null,null,null,null,null,null,null,null,null,0]
[1898,null,null,null,null,null,null,null,null,null,0]
[1899,null,null,null,null,null,null,null,null,null,0]
[1900,null,null,null,null,null,null,null,null,null,0]
[1901,null,null,null,null,null,null,null,null,null,0]
[1902,null,null,null,null,null,null,null,null,null,0]
[1903,null,null,null,null,null,null,null,null,null,0]
[1904,null,null,null,null,null,null,null,null,null,0]
[1905,null,null,null,null,null,null,null,null,null,0]
[1906,null,null,null,null,null,null,null,null,null,0]
[1907,null,null,null,null,null,null,null,null,null,0]
[1908,null,null,null,null,null,null,null,null,null,0]
[1909,null,null,null,null,null,null,null,null,null,0]
[1910,null,null,null,null,null,null,null,null,null,0]
[1911,null,null,null,null,null,null,null,null,null,0]
[1912,null,null,null,null,null,null,null,null,null,0]
[1913,null,null,null,null,null,null,null,null,null,0]
[1914,null,null,null,null,null,null,null,null,null,0]
[1915,null,null,null,null,null,null,null,null,null,0]
[1916,null,null,null,null,null,null,null,null,null,0]
[1917,null,null,null,null,null,null,null,null,null,0]
[1918,null,null,null,null,null,null,null,null,null,0]
[1919,null,null,null,null,null,null,null,null,null,0]
[1920,null,null,null,null,null,null,null,null,null,0]
[1921,null,null,null,null,null,null,null,null,null,0]
[1922,null,null,null,null,null,null,null,null,null,0]
[1923,null,null,null,null,null,null,null,null,null,0]
[1924,null,null,null,null,null,null,null,null,null,0]
[1925,null,null,null,null,null,null,null,null,null,0]
[{"$f":"A1933+1","v":1926},null,null,null,null,null,null,null,null,null,{"$f":"IF(AND(I1934=0,J1934=0),0,IF(I1934=J1934,\"Paid\",SUM(J1934-I1934)))","v":0}]
[1927,null,null,null,null,null,null,null,null,null,0]
[1928,null,null,null,null,null,null,null,null,null,0]
[1929,null,null,null,null,null,null,null,null,null,0]
[1930,null,null,null,null,null,null,null,null,null,0]
[1931,null,null,null,null,null,null,null,null,null,0]
[1932,null,null,null,null,null,null,null,null,null,0]
[1933,null,null,null,null,null,null,null,null,null,0]
[1934,null,null,null,null,null,null,null,null,null,0]
[1935,null,null,null,null,null,null,null,null,null,0]
[1936,null,null,null,null,null,null,null,null,null,0]
[1937,null,null,null,null,null,null,null,null,null,0]
[1938,null,null,null,null,null,null,null,null,null,0]
[1939,null,null,null,null,null,null,null,null,null,0]
[1940,null,null,null,null,null,null,null,null,null,0]
[1941,null,null,null,null,null,null,null,null,null,0]
[1942,null,null,null,null,null,null,null,null,null,0]
[1943,null,null,null,null,null,null,null,null,null,0]
[1944,null,null,null,null,null,null,null,null,null,0]
[1945,null,null,null,null,null,null,null,null,null,0]
[1946,null,null,null,null,null,null,null,null,null,0]
[1947,null,null,null,null,null,null,null,null,null,0]
[1948,null,null,null,null,null,null,null,null,null,0]
[1949,null,null,null,null,null,null,null,null,null,0]
[1950,null,null,null,null,null,null,null,null,null,0]
[1951,null,null,null,null,null,null,null,null,null,0]
[1952,null,null,null,null,null,null,null,null,null,0]
[1953,null,null,null,null,null,null,null,null,null,0]
[1954,null,null,null,null,null,null,null,null,null,0]
[1955,null,null,null,null,null,null,null,null,null,0]
[1956,null,null,null,null,null,null,null,null,null,0]
[1957,null,null,null,null,null,null,null,null,null,0]
[1958,null,null,null,null,null,null,null,null,null,0]
[1959,null,null,null,null,null,null,null,null,null,0]
[1960,null,null,null,null,null,null,null,null,null,0]
[1961,null,null,null,null,null,null,null,null,null,0]
[1962,null,null,null,null,null,null,null,null,null,0]
[1963,null,null,null,null,null,null,null,null,null,0]
[1964,null,null,null,null,null,null,null,null,null,0]
[1965,null,null,null,null,null,null,null,null,null,0]
[1966,null,null,null,null,null,null,null,null,null,0]
[1967,null,null,null,null,null,null,null,null,null,0]
[1968,null,null,null,null,null,null,null,null,null,0]
[1969,null,null,null,null,null,null,null,null,null,0]
[1970,null,null,null,null,null,null,null,null,null,0]
[1971,null,null,null,null,null,null,null,null,null,0]
[1972,null,null,null,null,null,null,null,null,null,0]
[1973,null,null,null,null,null,null,null,null,null,0]
[1974,null,null,null,null,null,null,null,null,null,0]
[1975,null,null,null,null,null,null,null,null,null,0]
[1976,null,null,null,null,null,null,null,null,null,0]
[1977,null,null,null,null,null,null,null,null,null,0]
[1978,null,null,null,null,null,null,null,null,null,0]
[1979,null,null,null,null,null,null,null,null,null,0]
[1980,null,null,null,null,null,null,null,null,null,0]
[1981,null,null,null,null,null,null,null,null,null,0]
[1982,null,null,null,null,null,null,null,null,null,0]
[1983,null,null,null,null,null,null,null,null,null,0]
[1984,null,null,null,null,null,null,null,null,null,0]
[1985,null,null,null,null,null,null,null,null,null,0]
[1986,null,null,null,null,null,null,null,null,null,0]
[1987,null,null,null,null,null,null,null,null,null,0]
[1988,null,null,null,null,null,null,null,null,null,0]
[1989,null,null,null,null,null,null,null,null,null,0]
[{"$f":"A1997+1","v":1990},null,null,null,null,null,null,null,null,null,{"$f":"IF(AND(I1998=0,J1998=0),0,IF(I1998=J1998,\"Paid\",SUM(J1998-I1998)))","v":0}]
[1991,null,null,null,null,null,null,null,null,null,0]
[1992,null,null,null,null,null,null,null,null,null,0]
[1993,null,null,null,null,null,null,null,null,null,0]
[1994,null,null,null,null,null,null,null,null,null,0]
[1995,null,null,null,null,null,null,null,null,null,0]
[1996,null,null,null,null,null,null,null,null,null,0]
[1997,null,null,null,null,null,null,null,null,null,0]
[1998,null,null,null,null,null,null,null,null,null,0]
[1999,null,null,null,null,null,null,null,null,null,0]
[2000,null,null,null,null,null,null,null,null,null,0]
[2001,null,null,null,null,null,null,null,null,null,0]
[2002,null,null,null,null,null,null,null,null,null,0]
[2003,null,null,null,null,null,null,null,null,null,0]
[2004,null,null,null,null,null,null,null,null,null,0]
[2005,null,null,null,null,null,null,null,null,null,0]
[2006,null,null,null,null,null,null,null,null,null,0]
[2007,null,null,null,null,null,null,null,null,null,0]
[2008,null,null,null,null,null,null,null,null,null,0]
[2009,null,null,null,null,null,null,null,null,null,0]
[2010,null,null,null,null,null,null,null,null,null,0]
[2011,null,null,null,null,null,null,null,null,null,0]
[2012,null,null,null,null,null,null,null,null,null,0]
[2013,null,null,null,null,null,null,null,null,null,0]
[2014,null,null,null,null,null,null,null,null,null,0]
[2015,null,null,null,null,null,null,null,null,null,0]
[2016,null,null,null,null,null,null,null,null,null,0]
[2017,null,null,null,null,null,null,null,null,null,0]
[2018,null,null,null,null,null,null,null,null,null,0]
[2019,null,null,null,null,null,null,null,null,null,0]
[2020,null,null,null,null,null,null,null,null,null,0]
[2021,null,null,null,null,null,null,null,null,null,0]
[2022,null,null,null,null,null,null,null,null,null,0]
[2023,null,null,null,null,null,null,null,null,null,0]
[2024,null,null,null,null,null,null,null,null,null,0]
[2025,null,null,null,null,null,null,null,null,null,0]
[2026,null,null,null,null,null,null,null,null,null,0]
[2027,null,null,null,null,null,null,null,null,null,0]
[2028,null,null,null,null,null,null,null,null,null,0]
[2029,null,null,null,null,null,null,null,null,null,0]
[2030,null,null,null,null,null,null,null,null,null,0]
[2031,null,null,null,null,null,null,null,null,null,0]
[2032,null,null,null,null,null,null,null,null,null,0]
[2033,null,null,null,null,null,null,null,null,null,0]
[2034,null,null,null,null,null,null,null,null,null,0]
[2035,null,null,null,null,null,null,null,null,null,0]
[2036,null,null,null,null,null,null,null,null,null,0]
[2037,null,null,null,null,null,null,null,null,null,0]
[2038,null,null,null,null,null,null,null,null,null,0]
[2039,null,null,null,null,null,null,null,null,null,0]
[2040,null,null,null,null,null,null,null,null,null,0]
[2041,null,null,null,null,null,null,null,null,null,0]
[2042,null,null,null,null,null,null,null,null,null,0]
[2043,null,null,null,null,null,null,null,null,null,0]
[2044,null,null,null,null,null,null,null,null,null,0]
[2045,null,null,null,null,null,null,null,null,null,0]
[2046,null,null,null,null,null,null,null,null,null,0]
[2047,null,null,null,null,null,null,null,null,null,0]
[2048,null,null,null,null,null,null,null,null,null,0]
[2049,null,null,null,null,null,null,null,null,null,0]
[2050,null,null,null,null,null,null,null,null,null,0]
[2051,null,null,null,null,null,null,null,null,null,0]
[2052,null,null,null,null,null,null,null,null,null,0]
[2053,null,null,null,null,null,null,null,null,null,0]
[{"$f":"A2061+1","v":2054},null,null,null,null,null,null,null,null,null,{"$f":"IF(AND(I2062=0,J2062=0),0,IF(I2062=J2062,\"Paid\",SUM(J2062-I2062)))","v":0}]
[2055,null,null,null,null,null,null,null,null,null,0]
[2056,null,null,null,null,null,null,null,null,null,0]
[2057,null,null,null,null,null,null,null,null,null,0]
[2058,null,null,null,null,null,null,null,null,null,0]
[2059,null,null,null,null,null,null,null,null,null,0]
[2060,null,null,null,null,null,null,null,null,null,0]
[2061,null,null,null,null,null,null,null,null,null,0]
[2062,null,null,null,null,null,null,null,null,null,0]
[2063,null,null,null,null,null,null,null,null,null,0]
[2064,null,null,null,null,null,null,null,null,null,0]
[2065,null,null,null,null,null,null,null,null,null,0]
[2066,null,null,null,null,null,null,null,null,null,0]
[2067,null,null,null,null,null,null,null,null,null,0]
[2068,null,null,null,null,null,null,null,null,null,0]
[2069,null,null,null,null,null,null,null,null,null,0]
[2070,null,null,null,null,null,null,null,null,null,0]
[2071,null,null,null,null,null,null,null,null,null,0]
[2072,null,null,null,null,null,null,null,null,null,0]
[2073,null,null,null,null,null,null,null,null,null,0]
[2074,null,null,null,null,null,null,null,null,null,0]
[2075,null,null,null,null,null,null,null,null,null,0]
[2076,null,null,null,null,null,null,null,null,null,0]
[2077,null,null,null,null,null,null,null,null,null,0]
[2078,null,null,null,null,null,null,null,null,null,0]
[2079,null,null,null,null,null,null,null,null,null,0]
[2080,null,null,null,null,null,null,null,null,null,0]
[2081,null,null,null,null,null,null,null,null,null,0]
[2082,null,null,null,null,null,null,null,null,null,0]
[2083,null,null,null,null,null,null,null,null,null,0]
[2084,null,null,null,null,null,null,null,null,null,0]
[2085,null,null,null,null,null,null,null,null,null,0]
[2086,null,null,null,null,null,null,null,null,null,0]
[2087,null,null,null,null,null,null,null,null,null,0]
[2088,null,null,null,null,null,null,null,null,null,0]
[2089,null,null,null,null,null,null,null,null,null,0]
[2090,null,null,null,null,null,null,null,null,null,0]
[2091,null,null,null,null,null,null,null,null,null,0]
[2092,null,null,null,null,null,null,null,null,null,0]
[2093,null,null,null,null,null,null,null,null,null,0]
[2094,null,null,null,null,null,null,null,null,null,0]
[2095,null,null,null,null,null,null,null,null,null,0]
[2096,null,null,null,null,null,null,null,null,null,0]
[2097,null,null,null,null,null,null,null,null,null,0]
[2098,null,null,null,null,null,null,null,null,null,0]
[2099,null,null,null,null,null,null,null,null,null,0]
[2100,null,null,null,null,null,null,null,null,null,0]
[2101,null,null,null,null,null,null,null,null,null,0]
[2102,null,null,null,null,null,null,null,null,null,0]
[2103,null,null,null,null,null,null,null,null,null,0]
[2104,null,null,null,null,null,null,null,null,null,0]
[2105,null,null,null,null,null,null,null,null,null,0]
[2106,null,null,null,null,null,null,null,null,null,0]
[2107,null,null,null,null,null,null,null,null,null,0]
[2108,null,null,null,null,null,null,null,null,null,0]
[2109,null,null,null,null,null,null,null,null,null,0]
[2110,null,null,null,null,null,null,null,null,null,0]
[2111,null,null,null,null,null,null,null,null,null,0]
[2112,null,null,null,null,null,null,null,null,null,0]
[2113,null,null,null,null,null,null,null,null,null,0]
[2114,null,null,null,null,null,null,null,null,null,0]
[2115,null,null,null,null,null,null,null,null,null,0]
[2116,null,null,null,null,null,null,null,null,null,0]
[2117,null,null,null,null,null,null,null,null,null,0]
[{"$f":"A2125+1","v":2118},null,null,null,null,null,null,null,null,null,{"$f":"IF(AND(I2126=0,J2126=0),0,IF(I2126=J2126,\"Paid\",SUM(J2126-I2126)))","v":0}]
[2119,null,null,null,null,null,null,null,null,null,0]
[2120,null,null,null,null,null,null,null,null,null,0]
[2121,null,null,null,null,null,null,null,null,null,0]
[2122,null,null,null,null,null,null,null,null,null,0]
[2123,null,null,null,null,null,null,null,null,null,0]
[2124,null,null,null,null,null,null,null,null,null,0]
[2125,null,null,null,null,null,null,null,null,null,0]
[2126,null,null,null,null,null,null,null,null,null,0]
[2127,null,null,null,null,null,null,null,null,null,0]
[2128,null,null,null,null,null,null,null,null,null,0]
[2129,null,null,null,null,null,null,null,null,null,0]
[2130,null,null,null,null,null,null,null,null,null,0]
[2131,null,null,null,null,null,null,null,null,null,0]
[2132,null,null,null,null,null,null,null,null,null,0]
[2133,null,null,null,null,null,null,null,null,null,0]
[2134,null,null,null,null,null,null,null,null,null,0]
[2135,null,null,null,null,null,null,null,null,null,0]
[2136,null,null,null,null,null,null,null,null,null,0]
[2137,null,null,null,null,null,null,null,null,null,0]
[2138,null,null,null,null,null,null,null,null,null,0]
[2139,null,null,null,null,null,null,null,null,null,0]
[2140,null,null,null,null,null,null,null,null,null,0]
[2141,null,null,null,null,null,null,null,null,null,0]
[2142,null,null,null,null,null,null,null,null,null,0]
[2143,null,null,null,null,null,null,null,null,null,0]
[2144,null,null,null,null,null,null,null,null,null,0]
[2145,null,null,null,null,null,null,null,null,null,0]
[2146,null,null,null,null,null,null,null,null,null,0]
[2147,null,null,null,null,null,null,null,null,null,0]
[2148,null,null,null,null,null,null,null,null,null,0]
[2149,null,null,null,null,null,null,null,null,null,0]
[2150,null,null,null,null,null,null,null,null,null,0]
[2151,null,null,null,null,null,null,null,null,null,0]
[2152,null,null,null,null,null,null,null,null,null,0]
[2153,null,null,null,null,null,null,null,null,null,0]
[2154,null,null,null,null,null,null,null,null,null,0]
[2155,null,null,null,null,null,null,null,null,null,0]
[2156,null,null,null,null,null,null,null,null,null,0]
[2157,null,null,null,null,null,null,null,null,null,0]
[2158,null,null,null,null,null,null,null,null,null,0]
[2159,null,null,null,null,null,null,null,null,null,0]
[2160,null,null,null,null,null,null,null,null,null,0]
[2161,null,null,null,null,null,null,null,null,null,0]
[2162,null,null,null,null,null,null,null,null,null,0]
[2163,null,null,null,null,null,null,null,null,null,0]
[2164,null,null,null,null,null,null,null,null,null,0]
[2165,null,null,null,null,null,null,null,null,null,0]
[2166,null,null,null,null,null,null,null,null,null,0]
[2167,null,null,null,null,null,null,null,null,null,0]
[2168,null,null,null,null,null,null,null,null,null,0]
[2169,null,null,null,null,null,null,null,null,null,0]
[2170,null,null,null,null,null,null,null,null,null,0]
[2171,null,null,null,null,null,null,null,null,null,0]
[2172,null,null,null,null,null,null,null,null,null,0]
[2173,null,null,null,null,null,null,null,null,null,0]
[2174,null,null,null,null,null,null,null,null,null,0]
[2175,null,null,null,null,null,null,null,null,null,0]
[2176,null,null,null,null,null,null,null,null,null,0]
[2177,null,null,null,null,null,null,null,null,null,0]
[2178,null,null,null,null,null,null,null,null,null,0]
[2179,null,null,null,null,null,null,null,null,null,0]
[2180,null,null,null,null,null,null,null,null,null,0]
[2181,null,null,null,null,null,null,null,null,null,0]
[{"$f":"A2189+1","v":2182},null,null,null,null,null,null,null,null,null,{"$f":"IF(AND(I2190=0,J2190=0),0,IF(I2190=J2190,\"Paid\",SUM(J2190-I2190)))","v":0}]
[2183,null,null,null,null,null,null,null,null,null,0]
[2184,null,null,null,null,null,null,null,null,null,0]
[2185,null,null,null,null,null,null,null,null,null,0]
[2186,null,null,null,null,null,null,null,null,null,0]
[2187,null,null,null,null,null,null,null,null,null,0]
[2188,null,null,null,null,null,null,null,null,null,0]
[2189,null,null,null,null,null,null,null,null,null,0]
[2190,null,null,null,null,null,null,null,null,null,0]
[2191,null,null,null,null,null,null,null,null,null,0]
[2192,null,null,null,null,null,null,null,null,null,0]
[2193,null,null,null,null,null,null,null,null,null,0]
[2194,null,null,null,null,null,null,null,null,null,0]
[2195,null,null,null,null,null,null,null,null,null,0]
[2196,null,null,null,null,null,null,null,null,null,0]
[2197,null,null,null,null,null,null,null,null,null,0]
[2198,null,null,null,null,null,null,null,null,null,0]
[2199,null,null,null,null,null,null,null,null,null,0]
[2200,null,null,null,null,null,null,null,null,null,0]
[2201,null,null,null,null,null,null,null,null,null,0]
[2202,null,null,null,null,null,null,null,null,null,0]
[2203,null,null,null,null,null,null,null,null,null,0]
[2204,null,null,null,null,null,null,null,null,null,0]
[2205,null,null,null,null,null,null,null,null,null,0]
[2206,null,null,null,null,null,null,null,null,null,0]
[2207,null,null,null,null,null,null,null,null,null,0]
[2208,null,null,null,null,null,null,null,null,null,0]
[2209,null,null,null,null,null,null,null,null,null,0]
[2210,null,null,null,null,null,null,null,null,null,0]
[2211,null,null,null,null,null,null,null,null,null,0]
[2212,null,null,null,null,null,null,null,null,null,0]
[2213,null,null,null,null,null,null,null,null,null,0]
[2214,null,null,null,null,null,null,null,null,null,0]
[2215,null,null,null,null,null,null,null,null,null,0]
[2216,null,null,null,null,null,null,null,null,null,0]
[2217,null,null,null,null,null,null,null,null,null,0]
[2218,null,null,null,null,null,null,null,null,null,0]
[2219,null,null,null,null,null,null,null,null,null,0]
[2220,null,null,null,null,null,null,null,null,null,0]
[2221,null,null,null,null,null,null,null,null,null,0]
[2222,null,null,null,null,null,null,null,null,null,0]
[2223,null,null,null,null,null,null,null,null,null,0]
[2224,null,null,null,null,null,null,null,null,null,0]
[2225,null,null,null,null,null,null,null,null,null,0]
[2226,null,null,null,null,null,null,null,null,null,0]
[2227,null,null,null,null,null,null,null,null,null,0]
[2228,null,null,null,null,null,null,null,null,null,0]
[2229,null,null,null,null,null,null,null,null,null,0]
[2230,null,null,null,null,null,null,null,null,null,0]
[2231,null,null,null,null,null,null,null,null,null,0]
[2232,null,null,null,null,null,null,null,null,null,0]
[2233,null,null,null,null,null,null,null,null,null,0]
[2234,null,null,null,null,null,null,null,null,null,0]
[2235,null,null,null,null,null,null,null,null,null,0]
[2236,null,null,null,null,null,null,null,null,null,0]
[2237,null,null,null,null,null,null,null,null,null,0]
[2238,null,null,null,null,null,null,null,null,null,0]
[2239,null,null,null,null,null,null,null,null,null,0]
[2240,null,null,null,null,null,null,null,null,null,0]
[2241,null,null,null,null,null,null,null,null,null,0]
[2242,null,null,null,null,null,null,null,null,null,0]
[2243,null,null,null,null,null,null,null,null,null,0]
[2244,null,null,null,null,null,null,null,null,null,0]
[2245,null,null,null,null,null,null,null,null,null,0]
[{"$f":"A2253+1","v":2246},null,null,null,null,null,null,null,null,null,{"$f":"IF(AND(I2254=0,J2254=0),0,IF(I2254=J2254,\"Paid\",SUM(J2254-I2254)))","v":0}]
[2247,null,null,null,null,null,null,null,null,null,0]
[2248,null,null,null,null,null,null,null,null,null,0]
[2249,null,null,null,null,null,null,null,null,null,0]
[2250,null,null,null,null,null,null,null,null,null,0]
[2251,null,null,null,null,null,null,null,null,null,0]
[2252,null,null,null,null,null,null,null,null,null,0]
[2253,null,null,null,null,null,null,null,null,null,0]
[2254,null,null,null,null,null,null,null,null,null,0]
[2255,null,null,null,null,null,null,null,null,null,0]
[2256,null,null,null,null,null,null,null,null,null,0]
[2257,null,null,null,null,null,null,null,null,null,0]
[2258,null,null,null,null,null,null,null,null,null,0]
[2259,null,null,null,null,null,null,null,null,null,0]
[2260,null,null,null,null,null,null,null,null,null,0]
[2261,null,null,null,null,null,null,null,null,null,0]
[2262,null,null,null,null,null,null,null,null,null,0]
[2263,null,null,null,null,null,null,null,null,null,0]
[2264,null,null,null,null,null,null,null,null,null,0]
[2265,null,null,null,null,null,null,null,null,null,0]
[2266,null,null,null,null,null,null,null,null,null,0]
[2267,null,null,null,null,null,null,null,null,null,0]
[2268,null,null,null,null,null,null,null,null,null,0]
[2269,null,null,null,null,null,null,null,null,null,0]
[2270,null,null,null,null,null,null,null,null,null,0]
[2271,null,null,null,null,null,null,null,null,null,0]
[2272,null,null,null,null,null,null,null,null,null,0]
[2273,null,null,null,null,null,null,null,null,null,0]
[2274,null,null,null,null,null,null,null,null,null,0]
[2275,null,null,null,null,null,null,null,null,null,0]
[2276,null,null,null,null,null,null,null,null,null,0]
[2277,null,null,null,null,null,null,null,null,null,0]
[2278,null,null,null,null,null,null,null,null,null,0]
[2279,null,null,null,null,null,null,null,null,null,0]
[2280,null,null,null,null,null,null,null,null,null,0]
[2281,null,null,null,null,null,null,null,null,null,0]
[2282,null,null,null,null,null,null,null,null,null,0]
[2283,null,null,null,null,null,null,null,null,null,0]
[2284,null,null,null,null,null,null,null,null,null,0]
[2285,null,null,null,null,null,null,null,null,null,0]
[2286,null,null,null,null,null,null,null,null,null,0]
[2287,null,null,null,null,null,null,null,null,null,0]
[2288,null,null,null,null,null,null,null,null,null,0]
[2289,null,null,null,null,null,null,null,null,null,0]
[2290,null,null,null,null,null,null,null,null,null,0]
[2291,null,null,null,null,null,null,null,null,null,0]
[2292,null,null,null,null,null,null,null,null,null,0]
[2293,null,null,null,null,null,null,null,null,null,0]
[2294,null,null,null,null,null,null,null,null,null,0]
[2295,null,null,null,null,null,null,null,null,null,0]
[2296,null,null,null,null,null,null,null,null,null,0]
[2297,null,null,null,null,null,null,null,null,null,0]
[2298,null,null,null,null,null,null,null,null,null,0]
[2299,null,null,null,null,null,null,null,null,null,0]
[2300,null,null,null,null,null,null,null,null,null,0]
[2301,null,null,null,null,null,null,null,null,null,0]
[2302,null,null,null,null,null,null,null,null,null,0]
[2303,null,null,null,null,null,null,null,null,null,0]
[2304,null,null,null,null,null,null,null,null,null,0]
[2305,null,null,null,null,null,null,null,null,null,0]
[2306,null,null,null,null,null,null,null,null,null,0]
[2307,null,null,null,null,null,null,null,null,null,0]
[2308,null,null,null,null,null,null,null,null,null,0]
[2309,null,null,null,null,null,null,null,null,null,0]
[{"$f":"A2317+1","v":2310},null,null,null,null,null,null,null,null,null,{"$f":"IF(AND(I2318=0,J2318=0),0,IF(I2318=J2318,\"Paid\",SUM(J2318-I2318)))","v":0}]
[2311,null,null,null,null,null,null,null,null,null,0]
[2312,null,null,null,null,null,null,null,null,null,0]
[2313,null,null,null,null,null,null,null,null,null,0]
[2314,null,null,null,null,null,null,null,null,null,0]
[2315,null,null,null,null,null,null,null,null,null,0]
[2316,null,null,null,null,null,null,null,null,null,0]
[2317,null,null,null,null,null,null,null,null,null,0]
[2318,null,null,null,null,null,null,null,null,null,0]
[2319,null,null,null,null,null,null,null,null,null,0]
[2320,null,null,null,null,null,null,null,null,null,0]
[2321,null,null,null,null,null,null,null,null,null,0]
[2322,null,null,null,null,null,null,null,null,null,0]
[2323,null,null,null,null,null,null,null,null,null,0]
[2324,null,null,null,null,null,null,null,null,null,0]
[2325,null,null,null,null,null,null,null,null,null,0]
[2326,null,null,null,null,null,null,null,null,null,0]
[2327,null,null,null,null,null,null,null,null,null,0]
[2328,null,null,null,null,null,null,null,null,null,0]
[2329,null,null,null,null,null,null,null,null,null,0]
[2330,null,null,null,null,null,null,null,null,null,0]
[2331,null,null,null,null,null,null,null,null,null,0]
[2332,null,null,null,null,null,null,null,null,null,0]
[2333,null,null,null,null,null,null,null,null,null,0]
[2334,null,null,null,null,null,null,null,null,null,0]
[2335,null,null,null,null,null,null,null,null,null,0]
[2336,null,null,null,null,null,null,null,null,null,0]
[2337,null,null,null,null,null,null,null,null,null,0]
[2338,null,null,null,null,null,null,null,null,null,0]
[2339,null,null,null,null,null,null,null,null,null,0]
[2340,null,null,null,null,null,null,null,null,null,0]
[2341,null,null,null,null,null,null,null,null,null,0]
[2342,null,null,null,null,null,null,null,null,null,0]
[2343,null,null,null,null,null,null,null,null,null,0]
[2344,null,null,null,null,null,null,null,null,null,0]
[2345,null,null,null,null,null,null,null,null,null,0]
[2346,null,null,null,null,null,null,null,null,null,0]
[2347,null,null,null,null,null,null,null,null,null,0]
[2348,null,null,null,null,null,null,null,null,null,0]
[2349,null,null,null,null,null,null,null,null,null,0]
[2350,null,null,null,null,null,null,null,null,null,0]
[2351,null,null,null,null,null,null,null,null,null,0]
[2352,null,null,null,null,null,null,null,null,null,0]
[2353,null,null,null,null,null,null,null,null,null,0]
[2354,null,null,null,null,null,null,null,null,null,0]
[2355,null,null,null,null,null,null,null,null,null,0]
[2356,null,null,null,null,null,null,null,null,null,0]
[2357,null,null,null,null,null,null,null,null,null,0]
[2358,null,null,null,null,null,null,null,null,null,0]
[2359,null,null,null,null,null,null,null,null,null,0]
[2360,null,null,null,null,null,null,null,null,null,0]
[2361,null,null,null,null,null,null,null,null,null,0]
[2362,null,null,null,null,null,null,null,null,null,0]
[2363,null,null,null,null,null,null,null,null,null,0]
[2364,null,null,null,null,null,null,null,null,null,0]
[2365,null,null,null,null,null,null,null,null,null,0]
[2366,null,null,null,null,null,null,null,null,null,0]
[2367,null,null,null,null,null,null,null,null,null,0]
[2368,null,null,null,null,null,null,null,null,null,0]
[2369,null,null,null,null,null,null,null,null,null,0]
[2370,null,null,null,null,null,null,null,null,null,0]
[2371,null,null,null,null,null,null,null,null,null,0]
[2372,null,null,null,null,null,null,null,null,null,0]
[2373,null,null,null,null,null,null,null,null,null,0]
[{"$f":"A2381+1","v":2374},null,null,null,null,null,null,null,null,null,{"$f":"IF(AND(I2382=0,J2382=0),0,IF(I2382=J2382,\"Paid\",SUM(J2382-I2382)))","v":0}]
[2375,null,null,null,null,null,null,null,null,null,0]
[2376,null,null,null,null,null,null,null,null,null,0]
[2377,null,null,null,null,null,null,null,null,null,0]
[2378,null,null,null,null,null,null,null,null,null,0]
[2379,null,null,null,null,null,null,null,null,null,0]
[2380,null,null,null,null,null,null,null,null,null,0]
[2381,null,null,null,null,null,null,null,null,null,0]
[2382,null,null,null,null,null,null,null,null,null,0]
[2383,null,null,null,null,null,null,null,null,null,0]
[2384,null,null,null,null,null,null,null,null,null,0]
[2385,null,null,null,null,null,null,null,null,null,0]
[2386,null,null,null,null,null,null,null,null,null,0]
[2387,null,null,null,null,null,null,null,null,null,0]
[2388,null,null,null,null,null,null,null,null,null,0]
[2389,null,null,null,null,null,null,null,null,null,0]
[2390,null,null,null,null,null,null,null,null,null,0]
[2391,null,null,null,null,null,null,null,null,null,0]
[2392,null,null,null,null,null,null,null,null,null,0]
[2393,null,null,null,null,null,null,null,null,null,0]
[2394,null,null,null,null,null,null,null,null,null,0]
[2395,null,null,null,null,null,null,null,null,null,0]
[2396,null,null,null,null,null,null,null,null,null,0]
[2397,null,null,null,null,null,null,null,null,null,0]
[2398,null,null,null,null,null,null,null,null,null,0]
[2399,null,null,null,null,null,null,null,null,null,0]
[2400,null,null,null,null,null,null,null,null,null,0]
[2401,null,null,null,null,null,null,null,null,null,0]
[2402,null,null,null,null,null,null,null,null,null,0]
[2403,null,null,null,null,null,null,null,null,null,0]
[2404,null,null,null,null,null,null,null,null,null,0]
[2405,null,null,null,null,null,null,null,null,null,0]
[2406,null,null,null,null,null,null,null,null,null,0]
[2407,null,null,null,null,null,null,null,null,null,0]
[2408,null,null,null,null,null,null,null,null,null,0]
[2409,null,null,null,null,null,null,null,null,null,0]
[2410,null,null,null,null,null,null,null,null,null,0]
[2411,null,null,null,null,null,null,null,null,null,0]
[2412,null,null,null,null,null,null,null,null,null,0]
[2413,null,null,null,null,null,null,null,null,null,0]
[2414,null,null,null,null,null,null,null,null,null,0]
[2415,null,null,null,null,null,null,null,null,null,0]
[2416,null,null,null,null,null,null,null,null,null,0]
[2417,null,null,null,null,null,null,null,null,null,0]
[2418,null,null,null,null,null,null,null,null,null,0]
[2419,null,null,null,null,null,null,null,null,null,0]
[2420,null,null,null,null,null,null,null,null,null,0]
[2421,null,null,null,null,null,null,null,null,null,0]
[2422,null,null,null,null,null,null,null,null,null,0]
[2423,null,null,null,null,null,null,null,null,null,0]
[2424,null,null,null,null,null,null,null,null,null,0]
[2425,null,null,null,null,null,null,null,null,null,0]
[2426,null,null,null,null,null,null,null,null,null,0]
[2427,null,null,null,null,null,null,null,null,null,0]
[2428,null,null,null,null,null,null,null,null,null,0]
[2429,null,null,null,null,null,null,null,null,null,0]
[2430,null,null,null,null,null,null,null,null,null,0]
[2431,null,null,null,null,null,null,null,null,null,0]
[2432,null,null,null,null,null,null,null,null,null,0]
[2433,null,null,null,null,null,null,null,null,null,0]
[2434,null,null,null,null,null,null,null,null,null,0]
[2435,null,null,null,null,null,null,null,null,null,0]
[2436,null,null,null,null,null,null,null,null,null,0]
[2437,null,null,null,null,null,null,null,null,null,0]
[{"$f":"A2445+1","v":2438},null,null,null,null,null,null,null,null,null,{"$f":"IF(AND(I2446=0,J2446=0),0,IF(I2446=J2446,\"Paid\",SUM(J2446-I2446)))","v":0}]
[2439,null,null,null,null,null,null,null,null,null,0]
[2440,null,null,null,null,null,null,null,null,null,0]
[2441,null,null,null,null,null,null,null,null,null,0]
[2442,null,null,null,null,null,null,null,null,null,0]
[2443,null,null,null,null,null,null,null,null,null,0]
[2444,null,null,null,null,null,null,null,null,null,0]
[2445,null,null,null,null,null,null,null,null,null,0]
[2446,null,null,null,null,null,null,null,null,null,0]
[2447,null,null,null,null,null,null,null,null,null,0]
[2448,null,null,null,null,null,null,null,null,null,0]
[2449,null,null,null,null,null,null,null,null,null,0]
[2450,null,null,null,null,null,null,null,null,null,0]
[2451,null,null,null,null,null,null,null,null,null,0]
[2452,null,null,null,null,null,null,null,null,null,0]
[2453,null,null,null,null,null,null,null,null,null,0]
[2454,null,null,null,null,null,null,null,null,null,0]
[2455,null,null,null,null,null,null,null,null,null,0]
[2456,null,null,null,null,null,null,null,null,null,0]
[2457,null,null,null,null,null,null,null,null,null,0]
[2458,null,null,null,null,null,null,null,null,null,0]
[2459,null,null,null,null,null,null,null,null,null,0]
[2460,null,null,null,null,null,null,null,null,null,0]
[2461,null,null,null,null,null,null,null,null,null,0]
[2462,null,null,null,null,null,null,null,null,null,0]
[2463,null,null,null,null,null,null,null,null,null,0]
[2464,null,null,null,null,null,null,null,null,null,0]
[2465,null,null,null,null,null,null,null,null,null,0]
[2466,null,null,null,null,null,null,null,null,null,0]
[2467,null,null,null,null,null,null,null,null,null,0]
[2468,null,null,null,null,null,null,null,null,null,0]
[2469,null,null,null,null,null,null,null,null,null,0]
[2470,null,null,null,null,null,null,null,null,null,0]
[2471,null,null,null,null,null,null,null,null,null,0]
[2472,null,null,null,null,null,null,null,null,null,0]
[2473,null,null,null,null,null,null,null,null,null,0]
[2474,null,null,null,null,null,null,null,null,null,0]
[2475,null,null,null,null,null,null,null,null,null,0]
[2476,null,null,null,null,null,null,null,null,null,0]
[2477,null,null,null,null,null,null,null,null,null,0]
[2478,null,null,null,null,null,null,null,null,null,0]
[2479,null,null,null,null,null,null,null,null,null,0]
[2480,null,null,null,null,null,null,null,null,null,0]
[2481,null,null,null,null,null,null,null,null,null,0]
[2482,null,null,null,null,null,null,null,null,null,0]
[2483,null,null,null,null,null,null,null,null,null,0]
[2484,null,null,null,null,null,null,null,null,null,0]
[2485,null,null,null,null,null,null,null,null,null,0]
[2486,null,null,null,null,null,null,null,null,null,0]
[2487,null,null,null,null,null,null,null,null,null,0]
[2488,null,null,null,null,null,null,null,null,null,0]
[2489,null,null,null,null,null,null,null,null,null,0]
[2490,null,null,null,null,null,null,null,null,null,0]
[2491,null,null,null,null,null,null,null,null,null,0]
[2492,null,null,null,null,null,null,null,null,null,0]
[2493,null,null,null,null,null,null,null,null,null,0]
[2494,null,null,null,null,null,null,null,null,null,0]
[2495,null,null,null,null,null,null,null,null,null,0]
[2496,null,null,null,null,null,null,null,null,null,0]
[2497,null,null,null,null,null,null,null,null,null,0]
[2498,null,null,null,null,null,null,null,null,null,0]
[2499,null,null,null,null,null,null,null,null,null,0]
[2500,null,null,null,null,null,null,null,null,null,0]
[2501,null,null,null,null,null,null,null,null,null,0]
[{"$f":"A2509+1","v":2502},null,null,null,null,null,null,null,null,null,{"$f":"IF(AND(I2510=0,J2510=0),0,IF(I2510=J2510,\"Paid\",SUM(J2510-I2510)))","v":0}]
[2503,null,null,null,null,null,null,null,null,null,0]
[2504,null,null,null,null,null,null,null,null,null,0]
[2505,null,null,null,null,null,null,null,null,null,0]
[2506,null,null,null,null,null,null,null,null,null,0]
[2507,null,null,null,null,null,null,null,null,null,0]
[2508,null,null,null,null,null,null,null,null,null,0]
[2509,null,null,null,null,null,null,null,null,null,0]
[2510,null,null,null,null,null,null,null,null,null,0]
[2511,null,null,null,null,null,null,null,null,null,0]
[2512,null,null,null,null,null,null,null,null,null,0]
[2513,null,null,null,null,null,null,null,null,null,0]
[2514,null,null,null,null,null,null,null,null,null,0]
[2515,null,null,null,null,null,null,null,null,null,0]
[2516,null,null,null,null,null,null,null,null,null,0]
[2517,null,null,null,null,null,null,null,null,null,0]
[2518,null,null,null,null,null,null,null,null,null,0]
[2519,null,null,null,null,null,null,null,null,null,0]
[2520,null,null,null,null,null,null,null,null,null,0]
[2521,null,null,null,null,null,null,null,null,null,0]
[2522,null,null,null,null,null,null,null,null,null,0]
[2523,null,null,null,null,null,null,null,null,null,0]
[2524,null,null,null,null,null,null,null,null,null,0]
[2525,null,null,null,null,null,null,null,null,null,0]
[2526,null,null,null,null,null,null,null,null,null,0]
[2527,null,null,null,null,null,null,null,null,null,0]
[2528,null,null,null,null,null,null,null,null,null,0]
[2529,null,null,null,null,null,null,null,null,null,0]
[2530,null,null,null,null,null,null,null,null,null,0]
[2531,null,null,null,null,null,null,null,null,null,0]
[2532,null,null,null,null,null,null,null,null,null,0]
[2533,null,null,null,null,null,null,null,null,null,0]
[2534,null,null,null,null,null,null,null,null,null,0]
[2535,null,null,null,null,null,null,null,null,null,0]
[2536,null,null,null,null,null,null,null,null,null,0]
[2537,null,null,null,null,null,null,null,null,null,0]
[2538,null,null,null,null,null,null,null,null,null,0]
[2539,null,null,null,null,null,null,null,null,null,0]
[2540,null,null,null,null,null,null,null,null,null,0]
[2541,null,null,null,null,null,null,null,null,null,0]
[2542,null,null,null,null,null,null,null,null,null,0]
[2543,null,null,null,null,null,null,null,null,null,0]
[2544,null,null,null,null,null,null,null,null,null,0]
[2545,null,null,null,null,null,null,null,null,null,0]
[2546,null,null,null,null,null,null,null,null,null,0]
[2547,null,null,null,null,null,null,null,null,null,0]
[2548,null,null,null,null,null,null,null,null,null,0]
[2549,null,null,null,null,null,null,null,null,null,0]
[2550,null,null,null,null,null,null,null,null,null,0]
[2551,null,null,null,null,null,null,null,null,null,0]
[2552,null,null,null,null,null,null,null,null,null,0]
[2553,null,null,null,null,null,null,null,null,null,0]
[2554,null,null,null,null,null,null,null,null,null,0]
[2555,null,null,null,null,null,null,null,null,null,0]
[2556,null,null,null,null,null,null,null,null,null,0]
[2557,null,null,null,null,null,null,null,null,null,0]
[2558,null,null,null,null,null,null,null,null,null,0]
[2559,null,null,null,null,null,null,null,null,null,0]
[2560,null,null,null,null,null,null,null,null,null,0]
[2561,null,null,null,null,null,null,null,null,null,0]
[2562,null,null,null,null,null,null,null,null,null,0]
[2563,null,null,null,null,null,null,null,null,null,0]
[2564,null,null,null,null,null,null,null,null,null,0]
[2565,null,null,null,null,null,null,null,null,null,0]
[{"$f":"A2573+1","v":2566},null,null,null,null,null,null,null,null,null,{"$f":"IF(AND(I2574=0,J2574=0),0,IF(I2574=J2574,\"Paid\",SUM(J2574-I2574)))","v":0}]
[2567,null,null,null,null,null,null,null,null,null,0]
[2568,null,null,null,null,null,null,null,null,null,0]
[2569,null,null,null,null,null,null,null,null,null,0]
[2570,null,null,null,null,null,null,null,null,null,0]
[2571,null,null,null,null,null,null,null,null,null,0]
[2572,null,null,null,null,null,null,null,null,null,0]
[2573,null,null,null,null,null,null,null,null,null,0]
[2574,null,null,null,null,null,null,null,null,null,0]
[2575,null,null,null,null,null,null,null,null,null,0]
[2576,null,null,null,null,null,null,null,null,null,0]
[2577,null,null,null,null,null,null,null,null,null,0]
[2578,null,null,null,null,null,null,null,null,null,0]
[2579,null,null,null,null,null,null,null,null,null,0]
[2580,null,null,null,null,null,null,null,null,null,0]
[2581,null,null,null,null,null,null,null,null,null,0]
[2582,null,null,null,null,null,null,null,null,null,0]
[2583,null,null,null,null,null,null,null,null,null,0]
[2584,null,null,null,null,null,null,null,null,null,0]
[2585,null,null,null,null,null,null,null,null,null,0]
[2586,null,null,null,null,null,null,null,null,null,0]
[2587,null,null,null,null,null,null,null,null,null,0]
[2588,null,null,null,null,null,null,null,null,null,0]
[2589,null,null,null,null,null,null,null,null,null,0]
[2590,null,null,null,null,null,null,null,null,null,0]
[2591,null,null,null,null,null,null,null,null,null,0]
[2592,null,null,null,null,null,null,null,null,null,0]
[2593,null,null,null,null,null,null,null,null,null,0]
[2594,null,null,null,null,null,null,null,null,null,0]
[2595,null,null,null,null,null,null,null,null,null,0]
[2596,null,null,null,null,null,null,null,null,null,0]
[2597,null,null,null,null,null,null,null,null,null,0]
[2598,null,null,null,null,null,null,null,null,null,0]
[2599,null,null,null,null,null,null,null,null,null,0]
[2600,null,null,null,null,null,null,null,null,null,0]
[2601,null,null,null,null,null,null,null,null,null,0]
[2602,null,null,null,null,null,null,null,null,null,0]
[2603,null,null,null,null,null,null,null,null,null,0]
[2604,null,null,null,null,null,null,null,null,null,0]
[2605,null,null,null,null,null,null,null,null,null,0]
[2606,null,null,null,null,null,null,null,null,null,0]
[2607,null,null,null,null,null,null,null,null,null,0]
[2608,null,null,null,null,null,null,null,null,null,0]
[2609,null,null,null,null,null,null,null,null,null,0]
[2610,null,null,null,null,null,null,null,null,null,0]
[2611,null,null,null,null,null,null,null,null,null,0]
[2612,null,null,null,null,null,null,null,null,null,0]
[2613,null,null,null,null,null,null,null,null,null,0]
[2614,null,null,null,null,null,null,null,null,null,0]
[2615,null,null,null,null,null,null,null,null,null,0]
[2616,null,null,null,null,null,null,null,null,null,0]
[2617,null,null,null,null,null,null,null,null,null,0]
[2618,null,null,null,null,null,null,null,null,null,0]
[2619,null,null,null,null,null,null,null,null,null,0]
[2620,null,null,null,null,null,null,null,null,null,0]
[2621,null,null,null,null,null,null,null,null,null,0]
[2622,null,null,null,null,null,null,null,null,null,0]
[2623,null,null,null,null,null,null,null,null,null,0]
[2624,null,null,null,null,null,null,null,null,null,0]
[2625,null,null,null,null,null,null,null,null,null,0]
[2626,null,null,null,null,null,null,null,null,null,0]
[2627,null,null,null,null,null,null,null,null,null,0]
[2628,null,null,null,null,null,null,null,null,null,0]
[2629,null,null,null,null,null,null,null,null,null,0]
[{"$f":"A2637+1","v":2630},null,null,null,null,null,null,null,null,null,{"$f":"IF(AND(I2638=0,J2638=0),0,IF(I2638=J2638,\"Paid\",SUM(J2638-I2638)))","v":0}]
[2631,null,null,null,null,null,null,null,null,null,0]
[2632,null,null,null,null,null,null,null,null,null,0]
[2633,null,null,null,null,null,null,null,null,null,0]
[2634,null,null,null,null,null,null,null,null,null,0]
[2635,null,null,null,null,null,null,null,null,null,0]
[2636,null,null,null,null,null,null,null,null,null,0]
[2637,null,null,null,null,null,null,null,null,null,0]
[2638,null,null,null,null,null,null,null,null,null,0]
[2639,null,null,null,null,null,null,null,null,null,0]
[2640,null,null,null,null,null,null,null,null,null,0]
[2641,null,null,null,null,null,null,null,null,null,0]
[2642,null,null,null,null,null,null,null,null,null,0]
[2643,null,null,null,null,null,null,null,null,null,0]
[2644,null,null,null,null,null,null,null,null,null,0]
[2645,null,null,null,null,null,null,null,null,null,0]
[2646,null,null,null,null,null,null,null,null,null,0]
[2647,null,null,null,null,null,null,null,null,null,0]
[2648,null,null,null,null,null,null,null,null,null,0]
[2649,null,null,null,null,null,null,null,null,null,0]
[2650,null,null,null,null,null,null,null,null,null,0]
[2651,null,null,null,null,null,null,null,null,null,0]
[2652,null,null,null,null,null,null,null,null,null,0]
[2653,null,null,null,null,null,null,null,null,null,0]
[2654,null,null,null,null,null,null,null,null,null,0]
[2655,null,null,null,null,null,null,null,null,null,0]
[2656,null,null,null,null,null,null,null,null,null,0]
[2657,null,null,null,null,null,null,null,null,null,0]
[2658,null,null,null,null,null,null,null,null,null,0]
[2659,null,null,null,null,null,null,null,null,null,0]
[2660,null,null,null,null,null,null,null,null,null,0]
[2661,null,null,null,null,null,null,null,null,null,0]
[2662,null,null,null,null,null,null,null,null,null,0]
[2663,null,null,null,null,null,null,null,null,null,0]
[2664,null,null,null,null,null,null,null,null,null,0]
[2665,null,null,null,null,null,null,null,null,null,0]
[2666,null,null,null,null,null,null,null,null,null,0]
[2667,null,null,null,null,null,null,null,null,null,0]
[2668,null,null,null,null,null,null,null,null,null,0]
[2669,null,null,null,null,null,null,null,null,null,0]
[2670,null,null,null,null,null,null,null,null,null,0]
[2671,null,null,null,null,null,null,null,null,null,0]
[2672,null,null,null,null,null,null,null,null,null,0]
[2673,null,null,null,null,null,null,null,null,null,0]
[2674,null,null,null,null,null,null,null,null,null,0]
[2675,null,null,null,null,null,null,null,null,null,0]
[2676,null,null,null,null,null,null,null,null,null,0]
[2677,null,null,null,null,null,null,null,null,null,0]
[2678,null,null,null,null,null,null,null,null,null,0]
[2679,null,null,null,null,null,null,null,null,null,0]
[2680,null,null,null,null,null,null,null,null,null,0]
[2681,null,null,null,null,null,null,null,null,null,0]
[2682,null,null,null,null,null,null,null,null,null,0]
[2683,null,null,null,null,null,null,null,null,null,0]
[2684,null,null,null,null,null,null,null,null,null,0]
[2685,null,null,null,null,null,null,null,null,null,0]
[2686,null,null,null,null,null,null,null,null,null,0]
[2687,null,null,null,null,null,null,null,null,null,0]
[2688,null,null,null,null,null,null,null,null,null,0]
[2689,null,null,null,null,null,null,null,null,null,0]
[2690,null,null,null,null,null,null,null,null,null,0]
[2691,null,null,null,null,null,null,null,null,null,0]
[2692,null,null,null,null,null,null,null,null,null,0]
[2693,null,null,null,null,null,null,null,null,null,0]
[{"$f":"A2701+1","v":2694},null,null,null,null,null,null,null,null,null,{"$f":"IF(AND(I2702=0,J2702=0),0,IF(I2702=J2702,\"Paid\",SUM(J2702-I2702)))","v":0}]
[2695,null,null,null,null,null,null,null,null,null,0]
[2696,null,null,null,null,null,null,null,null,null,0]
[2697,null,null,null,null,null,null,null,null,null,0]
[2698,null,null,null,null,null,null,null,null,null,0]
[2699,null,null,null,null,null,null,null,null,null,0]
[2700,null,null,null,null,null,null,null,null,null,0]
[2701,null,null,null,null,null,null,null,null,null,0]
[2702,null,null,null,null,null,null,null,null,null,0]
[2703,null,null,null,null,null,null,null,null,null,0]
[2704,null,null,null,null,null,null,null,null,null,0]
[2705,null,null,null,null,null,null,null,null,null,0]
[2706,null,null,null,null,null,null,null,null,null,0]
[2707,null,null,null,null,null,null,null,null,null,0]
[2708,null,null,null,null,null,null,null,null,null,0]
[2709,null,null,null,null,null,null,null,null,null,0]
[2710,null,null,null,null,null,null,null,null,null,0]
[2711,null,null,null,null,null,null,null,null,null,0]
[2712,null,null,null,null,null,null,null,null,null,0]
[2713,null,null,null,null,null,null,null,null,null,0]
[2714,null,null,null,null,null,null,null,null,null,0]
[2715,null,null,null,null,null,null,null,null,null,0]
[2716,null,null,null,null,null,null,null,null,null,0]
[2717,null,null,null,null,null,null,null,null,null,0]
[2718,null,null,null,null,null,null,null,null,null,0]
[2719,null,null,null,null,null,null,null,null,null,0]
[2720,null,null,null,null,null,null,null,null,null,0]
[2721,null,null,null,null,null,null,null,null,null,0]
[2722,null,null,null,null,null,null,null,null,null,0]
[2723,null,null,null,null,null,null,null,null,null,0]
[2724,null,null,null,null,null,null,null,null,null,0]
[2725,null,null,null,null,null,null,null,null,null,0]
[2726,null,null,null,null,null,null,null,null,null,0]
[2727,null,null,null,null,null,null,null,null,null,0]
[2728,null,null,null,null,null,null,null,null,null,0]
[2729,null,null,null,null,null,null,null,null,null,0]
[2730,null,null,null,null,null,null,null,null,null,0]
[2731,null,null,null,null,null,null,null,null,null,0]
[2732,null,null,null,null,null,null,null,null,null,0]
[2733,null,null,null,null,null,null,null,null,null,0]
[2734,null,null,null,null,null,null,null,null,null,0]
[2735,null,null,null,null,null,null,null,null,null,0]
[2736,null,null,null,null,null,null,null,null,null,0]
[2737,null,null,null,null,null,null,null,null,null,0]
[2738,null,null,null,null,null,null,null,null,null,0]
[2739,null,null,null,null,null,null,null,null,null,0]
[2740,null,null,null,null,null,null,null,null,null,0]
[2741,null,null,null,null,null,null,null,null,null,0]
[2742,null,null,null,null,null,null,null,null,null,0]
[2743,null,null,null,null,null,null,null,null,null,0]
[2744,null,null,null,null,null,null,null,null,null,0]
[2745,null,null,null,null,null,null,null,null,null,0]
[2746,null,null,null,null,null,null,null,null,null,0]
[2747,null,null,null,null,null,null,null,null,null,0]
[2748,null,null,null,null,null,null,null,null,null,0]
[2749,null,null,null,null,null,null,null,null,null,0]
[2750,null,null,null,null,null,null,null,null,null,0]
[2751,null,null,null,null,null,null,null,null,null,0]
[2752,null,null,null,null,null,null,null,null,null,0]
[2753,null,null,null,null,null,null,null,null,null,0]
[2754,null,null,null,null,null,null,null,null,null,0]
[2755,null,null,null,null,null,null,null,null,null,0]
[2756,null,null,null,null,null,null,null,null,null,0]
[2757,null,null,null,null,null,null,null,null,null,0]
[{"$f":"A2765+1","v":2758},null,null,null,null,null,null,null,null,null,{"$f":"IF(AND(I2766=0,J2766=0),0,IF(I2766=J2766,\"Paid\",SUM(J2766-I2766)))","v":0}]
[2759,null,null,null,null,null,null,null,null,null,0]
[2760,null,null,null,null,null,null,null,null,null,0]
[2761,null,null,null,null,null,null,null,null,null,0]
[2762,null,null,null,null,null,null,null,null,null,0]
[2763,null,null,null,null,null,null,null,null,null,0]
[2764,null,null,null,null,null,null,null,null,null,0]
[2765,null,null,null,null,null,null,null,null,null,0]
[2766,null,null,null,null,null,null,null,null,null,0]
[2767,null,null,null,null,null,null,null,null,null,0]
[2768,null,null,null,null,null,null,null,null,null,0]
[2769,null,null,null,null,null,null,null,null,null,0]
[2770,null,null,null,null,null,null,null,null,null,0]
[2771,null,null,null,null,null,null,null,null,null,0]
[2772,null,null,null,null,null,null,null,null,null,0]
[2773,null,null,null,null,null,null,null,null,null,0]
[2774,null,null,null,null,null,null,null,null,null,0]
[2775,null,null,null,null,null,null,null,null,null,0]
[2776,null,null,null,null,null,null,null,null,null,0]
[2777,null,null,null,null,null,null,null,null,null,0]
[2778,null,null,null,null,null,null,null,null,null,0]
[2779,null,null,null,null,null,null,null,null,null,0]
[2780,null,null,null,null,null,null,null,null,null,0]
[2781,null,null,null,null,null,null,null,null,null,0]
[2782,null,null,null,null,null,null,null,null,null,0]
[2783,null,null,null,null,null,null,null,null,null,0]
[2784,null,null,null,null,null,null,null,null,null,0]
[2785,null,null,null,null,null,null,null,null,null,0]
[2786,null,null,null,null,null,null,null,null,null,0]
[2787,null,null,null,null,null,null,null,null,null,0]
[2788,null,null,null,null,null,null,null,null,null,0]
[2789,null,null,null,null,null,null,null,null,null,0]
[2790,null,null,null,null,null,null,null,null,null,0]
[2791,null,null,null,null,null,null,null,null,null,0]
[2792,null,null,null,null,null,null,null,null,null,0]
[2793,null,null,null,null,null,null,null,null,null,0]
[2794,null,null,null,null,null,null,null,null,null,0]
[2795,null,null,null,null,null,null,null,null,null,0]
[2796,null,null,null,null,null,null,null,null,null,0]
[2797,null,null,null,null,null,null,null,null,null,0]
[2798,null,null,null,null,null,null,null,null,null,0]
[2799,null,null,null,null,null,null,null,null,null,0]
[2800,null,null,null,null,null,null,null,null,null,0]
[2801,null,null,null,null,null,null,null,null,null,0]
[2802,null,null,null,null,null,null,null,null,null,0]
[2803,null,null,null,null,null,null,null,null,null,0]
[2804,null,null,null,null,null,null,null,null,null,0]
[2805,null,null,null,null,null,null,null,null,null,0]
[2806,null,null,null,null,null,null,null,null,null,0]
[2807,null,null,null,null,null,null,null,null,null,0]
[2808,null,null,null,null,null,null,null,null,null,0]
[2809,null,null,null,null,null,null,null,null,null,0]
[2810,null,null,null,null,null,null,null,null,null,0]
[2811,null,null,null,null,null,null,null,null,null,0]
[2812,null,null,null,null,null,null,null,null,null,0]
[2813,null,null,null,null,null,null,null,null,null,0]
[2814,null,null,null,null,null,null,null,null,null,0]
[2815,null,null,null,null,null,null,null,null,null,0]
[2816,null,null,null,null,null,null,null,null,null,0]
[2817,null,null,null,null,null,null,null,null,null,0]
[2818,null,null,null,null,null,null,null,null,null,0]
[2819,null,null,null,null,null,null,null,null,null,0]
[2820,null,null,null,null,null,null,null,null,null,0]
[2821,null,null,null,null,null,null,null,null,null,0]
[{"$f":"A2829+1","v":2822},null,null,null,null,null,null,null,null,null,{"$f":"IF(AND(I2830=0,J2830=0),0,IF(I2830=J2830,\"Paid\",SUM(J2830-I2830)))","v":0}]
[2823,null,null,null,null,null,null,null,null,null,0]
[2824,null,null,null,null,null,null,null,null,null,0]
[2825,null,null,null,null,null,null,null,null,null,0]
[2826,null,null,null,null,null,null,null,null,null,0]
[2827,null,null,null,null,null,null,null,null,null,0]
[2828,null,null,null,null,null,null,null,null,null,0]
[2829,null,null,null,null,null,null,null,null,null,0]
[2830,null,null,null,null,null,null,null,null,null,0]
[2831,null,null,null,null,null,null,null,null,null,0]
[2832,null,null,null,null,null,null,null,null,null,0]
[2833,null,null,null,null,null,null,null,null,null,0]
[2834,null,null,null,null,null,null,null,null,null,0]
[2835,null,null,null,null,null,null,null,null,null,0]
[2836,null,null,null,null,null,null,null,null,null,0]
[2837,null,null,null,null,null,null,null,null,null,0]
[2838,null,null,null,null,null,null,null,null,null,0]
[2839,null,null,null,null,null,null,null,null,null,0]
[2840,null,null,null,null,null,null,null,null,null,0]
[2841,null,null,null,null,null,null,null,null,null,0]
[2842,null,null,null,null,null,null,null,null,null,0]
[2843,null,null,null,null,null,null,null,null,null,0]
[2844,null,null,null,null,null,null,null,null,null,0]
[2845,null,null,null,null,null,null,null,null,null,0]
[2846,null,null,null,null,null,null,null,null,null,0]
[2847,null,null,null,null,null,null,null,null,null,0]
[2848,null,null,null,null,null,null,null,null,null,0]
[2849,null,null,null,null,null,null,null,null,null,0]
[2850,null,null,null,null,null,null,null,null,null,0]
[2851,null,null,null,null,null,null,null,null,null,0]
[2852,null,null,null,null,null,null,null,null,null,0]
[2853,null,null,null,null,null,null,null,null,null,0]
[2854,null,null,null,null,null,null,null,null,null,0]
[2855,null,null,null,null,null,null,null,null,null,0]
[2856,null,null,null,null,null,null,null,null,null,0]
[2857,null,null,null,null,null,null,null,null,null,0]
[2858,null,null,null,null,null,null,null,null,null,0]
[2859,null,null,null,null,null,null,null,null,null,0]
[2860,null,null,null,null,null,null,null,null,null,0]
[2861,null,null,null,null,null,null,null,null,null,0]
[2862,null,null,null,null,null,null,null,null,null,0]
[2863,null,null,null,null,null,null,null,null,null,0]
[2864,null,null,null,null,null,null,null,null,null,0]
[2865,null,null,null,null,null,null,null,null,null,0]
[2866,null,null,null,null,null,null,null,null,null,0]
[2867,null,null,null,null,null,null,null,null,null,0]
[2868,null,null,null,null,null,null,null,null,null,0]
[2869,null,null,null,null,null,null,null,null,null,0]
[2870,null,null,null,null,null,null,null,null,null,0]
[2871,null,null,null,null,null,null,null,null,null,0]
[2872,null,null,null,null,null,null,null,null,null,0]
[2873,null,null,null,null,null,null,null,null,null,0]
[2874,null,null,null,null,null,null,null,null,null,0]
[2875,null,null,null,null,null,null,null,null,null,0]
[2876,null,null,null,null,null,null,null,null,null,0]
[2877,null,null,null,null,null,null,null,null,null,0]
[2878,null,null,null,null,null,null,null,null,null,0]
[2879,null,null,null,null,null,null,null,null,null,0]
[2880,null,null,null,null,null,null,null,null,null,0]
[2881,null,null,null,null,null,null,null,null,null,0]
[2882,null,null,null,null,null,null,null,null,null,0]
[2883,null,null,null,null,null,null,null,null,null,0]
[2884,null,null,null,null,null,null,null,null,null,0]
[2885,null,null,null,null,null,null,null,null,null,0]
[{"$f":"A2893+1","v":2886},null,null,null,null,null,null,null,null,null,{"$f":"IF(AND(I2894=0,J2894=0),0,IF(I2894=J2894,\"Paid\",SUM(J2894-I2894)))","v":0}]
[2887,null,null,null,null,null,null,null,null,null,0]
[2888,null,null,null,null,null,null,null,null,null,0]
[2889,null,null,null,null,null,null,null,null,null,0]
[2890,null,null,null,null,null,null,null,null,null,0]
[2891,null,null,null,null,null,null,null,null,null,0]
[2892,null,null,null,null,null,null,null,null,null,0]
[2893,null,null,null,null,null,null,null,null,null,0]
[2894,null,null,null,null,null,null,null,null,null,0]
[2895,null,null,null,null,null,null,null,null,null,0]
[2896,null,null,null,null,null,null,null,null,null,0]
[2897,null,null,null,null,null,null,null,null,null,0]
[2898,null,null,null,null,null,null,null,null,null,0]
[2899,null,null,null,null,null,null,null,null,null,0]
[2900,null,null,null,null,null,null,null,null,null,0]
[2901,null,null,null,null,null,null,null,null,null,0]
[2902,null,null,null,null,null,null,null,null,null,0]
[2903,null,null,null,null,null,null,null,null,null,0]
[2904,null,null,null,null,null,null,null,null,null,0]
[2905,null,null,null,null,null,null,null,null,null,0]
[2906,null,null,null,null,null,null,null,null,null,0]
[2907,null,null,null,null,null,null,null,null,null,0]
[2908,null,null,null,null,null,null,null,null,null,0]
[2909,null,null,null,null,null,null,null,null,null,0]
[2910,null,null,null,null,null,null,null,null,null,0]
[2911,null,null,null,null,null,null,null,null,null,0]
[2912,null,null,null,null,null,null,null,null,null,0]
[2913,null,null,null,null,null,null,null,null,null,0]
[2914,null,null,null,null,null,null,null,null,null,0]
[2915,null,null,null,null,null,null,null,null,null,0]
[2916,null,null,null,null,null,null,null,null,null,0]
[2917,null,null,null,null,null,null,null,null,null,0]
[2918,null,null,null,null,null,null,null,null,null,0]
[2919,null,null,null,null,null,null,null,null,null,0]
[2920,null,null,null,null,null,null,null,null,null,0]
[2921,null,null,null,null,null,null,null,null,null,0]
[2922,null,null,null,null,null,null,null,null,null,0]
[2923,null,null,null,null,null,null,null,null,null,0]
[2924,null,null,null,null,null,null,null,null,null,0]
[2925,null,null,null,null,null,null,null,null,null,0]
[2926,null,null,null,null,null,null,null,null,null,0]
[2927,null,null,null,null,null,null,null,null,null,0]
[2928,null,null,null,null,null,null,null,null,null,0]
[2929,null,null,null,null,null,null,null,null,null,0]
[2930,null,null,null,null,null,null,null,null,null,0]
[2931,null,null,null,null,null,null,null,null,null,0]
[2932,null,null,null,null,null,null,null,null,null,0]
[2933,null,null,null,null,null,null,null,null,null,0]
[2934,null,null,null,null,null,null,null,null,null,0]
[2935,null,null,null,null,null,null,null,null,null,0]
[2936,null,null,null,null,null,null,null,null,null,0]
[2937,null,null,null,null,null,null,null,null,null,0]
[2938,null,null,null,null,null,null,null,null,null,0]
[2939,null,null,null,null,null,null,null,null,null,0]
[2940,null,null,null,null,null,null,null,null,null,0]
[2941,null,null,null,null,null,null,null,null,null,0]
[2942,null,null,null,null,null,null,null,null,null,0]
[2943,null,null,null,null,null,null,null,null,null,0]
[2944,null,null,null,null,null,null,null,null,null,0]
[2945,null,null,null,null,null,null,null,null,null,0]
[2946,null,null,null,null,null,null,null,null,null,0]
[2947,null,null,null,null,null,null,null,null,null,0]
[2948,null,null,null,null,null,null,null,null,null,0]
[2949,null,null,null,null,null,null,null,null,null,0]
[{"$f":"A2957+1","v":2950},null,null,null,null,null,null,null,null,null,{"$f":"IF(AND(I2958=0,J2958=0),0,IF(I2958=J2958,\"Paid\",SUM(J2958-I2958)))","v":0}]
[2951,null,null,null,null,null,null,null,null,null,0]
[2952,null,null,null,null,null,null,null,null,null,0]
[2953,null,null,null,null,null,null,null,null,null,0]
[2954,null,null,null,null,null,null,null,null,null,0]
[2955,null,null,null,null,null,null,null,null,null,0]
[2956,null,null,null,null,null,null,null,null,null,0]
[2957,null,null,null,null,null,null,null,null,null,0]
[2958,null,null,null,null,null,null,null,null,null,0]
[2959,null,null,null,null,null,null,null,null,null,0]
[2960,null,null,null,null,null,null,null,null,null,0]
[2961,null,null,null,null,null,null,null,null,null,0]
[2962,null,null,null,null,null,null,null,null,null,0]
[2963,null,null,null,null,null,null,null,null,null,0]
[2964,null,null,null,null,null,null,null,null,null,0]
[{"$f":"A2972+1","v":2965},null,null,null,null,null,null,null,null,null,{"$f":"IF(AND(I2973=0,J2973=0),0,IF(I2973=J2973,\"Paid\",SUM(J2973-I2973)))","v":0}]
[2966,null,null,null,null,null,null,null,null,null,0]
[2967,null,null,null,null,null,null,null,null,null,0]
[2968,null,null,null,null,null,null,null,null,null,0]
[2969,null,null,null,null,null,null,null,null,null,0]
[2970,null,null,null,null,null,null,null,null,null,0]
[2971,null,null,null,null,null,null,null,null,null,0]
[2972,null,null,null,null,null,null,null,null,null,0]
[2973,null,null,null,null,null,null,null,null,null,0]
[2974,null,null,null,null,null,null,null,null,null,0]
[2975,null,null,null,null,null,null,null,null,null,0]
[2976,null,null,null,null,null,null,null,null,null,0]
[2977,null,null,null,null,null,null,null,null,null,0]
[2978,null,null,null,null,null,null,null,null,null,0]
[2979,null,null,null,null,null,null,null,null,null,0]
[2980,null,null,null,null,null,null,null,null,null,0]
[2981,null,null,null,null,null,null,null,null,null,0]
[2982,null,null,null,null,null,null,null,null,null,0]
[2983,null,null,null,null,null,null,null,null,null,0]
[2984,null,null,null,null,null,null,null,null,null,0]
[2985,null,null,null,null,null,null,null,null,null,0]
[2986,null,null,null,null,null,null,null,null,null,0]
[2987,null,null,null,null,null,null,null,null,null,0]
[2988,null,null,null,null,null,null,null,null,null,0]
[2989,null,null,null,null,null,null,null,null,null,0]
[2990,null,null,null,null,null,null,null,null,null,0]
[2991,null,null,null,null,null,null,null,null,null,0]
[2992,null,null,null,null,null,null,null,null,null,0]
[2993,null,null,null,null,null,null,null,null,null,0]
[2994,null,null,null,null,null,null,null,null,null,0]
[2995,null,null,null,null,null,null,null,null,null,0]
[2996,null,null,null,null,null,null,null,null,null,0]
[2997,null,null,null,null,null,null,null,null,null,0]
[2998,null,null,null,null,null,null,null,null,null,0]
[2999,null,null,null,null,null,null,null,null,null,0]
[3000,null,null,null,null,null,null,null,null,null,0]
[3001,null,null,null,null,null,null,null,null,null,0]
[3002,null,null,null,null,null,null,null,null,null,0]
[3003,null,null,null,null,null,null,null,null,null,0]
[3004,null,null,null,null,null,null,null,null,null,0]
[3005,null,null,null,null,null,null,null,null,null,0]
[3006,null,null,null,null,null,null,null,null,null,0]
[3007,null,null,null,null,null,null,null,null,null,0]
[3008,null,null,null,null,null,null,null,null,null,0]
[3009,null,null,null,null,null,null,null,null,null,0]
[3010,null,null,null,null,null,null,null,null,null,0]
[3011,null,null,null,null,null,null,null,null,null,0]
[3012,null,null,null,null,null,null,null,null,null,0]
[3013,null,null,null,null,null,null,null,null,null,0]
[3014,null,null,null,null,null,null,null,null,null,0]
[3015,null,null,null,null,null,null,null,null,null,0]
[3016,null,null,null,null,null,null,null,null,null,0]
[3017,null,null,null,null,null,null,null,null,null,0]
[3018,null,null,null,null,null,null,null,null,null,0]
[3019,null,null,null,null,null,null,null,null,null,0]
[3020,null,null,null,null,null,null,null,null,null,0]
[3021,null,null,null,null,null,null,null,null,null,0]
[3022,null,null,null,null,null,null,null,null,null,0]
[3023,null,null,null,null,null,null,null,null,null,0]
[3024,null,null,null,null,null,null,null,null,null,0]
[3025,null,null,null,null,null,null,null,null,null,0]
[3026,null,null,null,null,null,null,null,null,null,0]
[3027,null,null,null,null,null,null,null,null,null,0]
[3028,null,null,null,null,null,null,null,null,null,0]
[{"$f":"A3036+1","v":3029},null,null,null,null,null,null,null,null,null,{"$f":"IF(AND(I3037=0,J3037=0),0,IF(I3037=J3037,\"Paid\",SUM(J3037-I3037)))","v":0}]
[3030,null,null,null,null,null,null,null,null,null,0]
[3031,null,null,null,null,null,null,null,null,null,0]
[3032,null,null,null,null,null,null,null,null,null,0]
[3033,null,null,null,null,null,null,null,null,null,0]
[3034,null,null,null,null,null,null,null,null,null,0]
[3035,null,null,null,null,null,null,null,null,null,0]
[3036,null,null,null,null,null,null,null,null,null,0]
[3037,null,null,null,null,null,null,null,null,null,0]
[3038,null,null,null,null,null,null,null,null,null,0]
[3039,null,null,null,null,null,null,null,null,null,0]
[3040,null,null,null,null,null,null,null,null,null,0]
[3041,null,null,null,null,null,null,null,null,null,0]
[3042,null,null,null,null,null,null,null,null,null,0]
[3043,null,null,null,null,null,null,null,null,null,0]
[3044,null,null,null,null,null,null,null,null,null,0]
[3045,null,null,null,null,null,null,null,null,null,0]
[3046,null,null,null,null,null,null,null,null,null,0]
[3047,null,null,null,null,null,null,null,null,null,0]
[3048,null,null,null,null,null,null,null,null,null,0]
[3049,null,null,null,null,null,null,null,null,null,0]
[3050,null,null,null,null,null,null,null,null,null,0]
[3051,null,null,null,null,null,null,null,null,null,0]
[3052,null,null,null,null,null,null,null,null,null,0]
[3053,null,null,null,null,null,null,null,null,null,0]
[3054,null,null,null,null,null,null,null,null,null,0]
[3055,null,null,null,null,null,null,null,null,null,0]
[3056,null,null,null,null,null,null,null,null,null,0]
[3057,null,null,null,null,null,null,null,null,null,0]
[3058,null,null,null,null,null,null,null,null,null,0]
[3059,null,null,null,null,null,null,null,null,null,0]
[3060,null,null,null,null,null,null,null,null,null,0]
[3061,null,null,null,null,null,null,null,null,null,0]
[3062,null,null,null,null,null,null,null,null,null,0]
[3063,null,null,null,null,null,null,null,null,null,0]
[3064,null,null,null,null,null,null,null,null,null,0]
[3065,null,null,null,null,null,null,null,null,null,0]
[3066,null,null,null,null,null,null,null,null,null,0]
[3067,null,null,null,null,null,null,null,null,null,0]
[3068,null,null,null,null,null,null,null,null,null,0]
[3069,null,null,null,null,null,null,null,null,null,0]
[3070,null,null,null,null,null,null,null,null,null,0]
[3071,null,null,null,null,null,null,null,null,null,0]
[3072,null,null,null,null,null,null,null,null,null,0]
[3073,null,null,null,null,null,null,null,null,null,0]
[3074,null,null,null,null,null,null,null,null,null,0]
[3075,null,null,null,null,null,null,null,null,null,0]
[3076,null,null,null,null,null,null,null,null,null,0]
[3077,null,null,null,null,null,null,null,null,null,0]
[3078,null,null,null,null,null,null,null,null,null,0]
[3079,null,null,null,null,null,null,null,null,null,0]
[3080,null,null,null,null,null,null,null,null,null,0]
[3081,null,null,null,null,null,null,null,null,null,0]
[3082,null,null,null,null,null,null,null,null,null,0]
[3083,null,null,null,null,null,null,null,null,null,0]
[3084,null,null,null,null,null,null,null,null,null,0]
[3085,null,null,null,null,null,null,null,null,null,0]
[3086,null,null,null,null,null,null,null,null,null,0]
[3087,null,null,null,null,null,null,null,null,null,0]
[3088,null,null,null,null,null,null,null,null,null,0]
[3089,null,null,null,null,null,null,null,null,null,0]
[3090,null,null,null,null,null,null,null,null,null,0]
[3091,null,null,null,null,null,null,null,null,null,0]
[3092,null,null,null,null,null,null,null,null,null,0]
[{"$f":"A3100+1","v":3093},null,null,null,null,null,null,null,null,null,{"$f":"IF(AND(I3101=0,J3101=0),0,IF(I3101=J3101,\"Paid\",SUM(J3101-I3101)))","v":0}]
[3094,null,null,null,null,null,null,null,null,null,0]
[3095,null,null,null,null,null,null,null,null,null,0]
[3096,null,null,null,null,null,null,null,null,null,0]
[3097,null,null,null,null,null,null,null,null,null,0]
[3098,null,null,null,null,null,null,null,null,null,0]
[3099,null,null,null,null,null,null,null,null,null,0]
[3100,null,null,null,null,null,null,null,null,null,0]
[3101,null,null,null,null,null,null,null,null,null,0]
[3102,null,null,null,null,null,null,null,null,null,0]
[3103,null,null,null,null,null,null,null,null,null,0]
[3104,null,null,null,null,null,null,null,null,null,0]
[3105,null,null,null,null,null,null,null,null,null,0]
[3106,null,null,null,null,null,null,null,null,null,0]
[3107,null,null,null,null,null,null,null,null,null,0]
[3108,null,null,null,null,null,null,null,null,null,0]
[3109,null,null,null,null,null,null,null,null,null,0]
[3110,null,null,null,null,null,null,null,null,null,0]
[3111,null,null,null,null,null,null,null,null,null,0]
[3112,null,null,null,null,null,null,null,null,null,0]
[3113,null,null,null,null,null,null,null,null,null,0]
[3114,null,null,null,null,null,null,null,null,null,0]
[3115,null,null,null,null,null,null,null,null,null,0]
[3116,null,null,null,null,null,null,null,null,null,0]
[3117,null,null,null,null,null,null,null,null,null,0]
[3118,null,null,null,null,null,null,null,null,null,0]
[3119,null,null,null,null,null,null,null,null,null,0]
[3120,null,null,null,null,null,null,null,null,null,0]
[3121,null,null,null,null,null,null,null,null,null,0]
[3122,null,null,null,null,null,null,null,null,null,0]
[3123,null,null,null,null,null,null,null,null,null,0]
[3124,null,null,null,null,null,null,null,null,null,0]
[3125,null,null,null,null,null,null,null,null,null,0]
[3126,null,null,null,null,null,null,null,null,null,0]
[3127,null,null,null,null,null,null,null,null,null,0]
[3128,null,null,null,null,null,null,null,null,null,0]
[3129,null,null,null,null,null,null,null,null,null,0]
[3130,null,null,null,null,null,null,null,null,null,0]
[3131,null,null,null,null,null,null,null,null,null,0]
[3132,null,null,null,null,null,null,null,null,null,0]
[3133,null,null,null,null,null,null,null,null,null,0]
[3134,null,null,null,null,null,null,null,null,null,0]
[3135,null,null,null,null,null,null,null,null,null,0]
[3136,null,null,null,null,null,null,null,null,null,0]
[3137,null,null,null,null,null,null,null,null,null,0]
[3138,null,null,null,null,null,null,null,null,null,0]
[3139,null,null,null,null,null,null,null,null,null,0]
[3140,null,null,null,null,null,null,null,null,null,0]
[3141,null,null,null,null,null,null,null,null,null,0]
[3142,null,null,null,null,null,null,null,null,null,0]
[3143,null,null,null,null,null,null,null,null,null,0]
[3144,null,null,null,null,null,null,null,null,null,0]
[3145,null,null,null,null,null,null,null,null,null,0]
[3146,null,null,null,null,null,null,null,null,null,0]
[3147,null,null,null,null,null,null,null,null,null,0]
[3148,null,null,null,null,null,null,null,null,null,0]
[3149,null,null,null,null,null,null,null,null,null,0]
[3150,null,null,null,null,null,null,null,null,null,0]
[3151,null,null,null,null,null,null,null,null,null,0]
[3152,null,null,null,null,null,null,null,null,null,0]
[3153,null,null,null,null,null,null,null,null,null,0]
[3154,null,null,null,null,null,null,null,null,null,0]
[3155,null,null,null,null,null,null,null,null,null,0]
[3156,null,null,null,null,null,null,null,null,null,0]
[{"$f":"A3164+1","v":3157},null,null,null,null,null,null,null,null,null,{"$f":"IF(AND(I3165=0,J3165=0),0,IF(I3165=J3165,\"Paid\",SUM(J3165-I3165)))","v":0}]
[3158,null,null,null,null,null,null,null,null,null,0]
[3159,null,null,null,null,null,null,null,null,null,0]
[3160,null,null,null,null,null,null,null,null,null,0]
[3161,null,null,null,null,null,null,null,null,null,0]
[3162,null,null,null,null,null,null,null,null,null,0]
[3163,null,null,null,null,null,null,null,null,null,0]
[3164,null,null,null,null,null,null,null,null,null,0]
[3165,null,null,null,null,null,null,null,null,null,0]
[3166,null,null,null,null,null,null,null,null,null,0]
[3167,null,null,null,null,null,null,null,null,null,0]
[3168,null,null,null,null,null,null,null,null,null,0]
[3169,null,null,null,null,null,null,null,null,null,0]
[3170,null,null,null,null,null,null,null,null,null,0]
[3171,null,null,null,null,null,null,null,null,null,0]
[3172,null,null,null,null,null,null,null,null,null,0]
[3173,null,null,null,null,null,null,null,null,null,0]
[3174,null,null,null,null,null,null,null,null,null,0]
[3175,null,null,null,null,null,null,null,null,null,0]
[3176,null,null,null,null,null,null,null,null,null,0]
[3177,null,null,null,null,null,null,null,null,null,0]
[3178,null,null,null,null,null,null,null,null,null,0]
[3179,null,null,null,null,null,null,null,null,null,0]
[3180,null,null,null,null,null,null,null,null,null,0]
[3181,null,null,null,null,null,null,null,null,null,0]
[3182,null,null,null,null,null,null,null,null,null,0]
[3183,null,null,null,null,null,null,null,null,null,0]
[3184,null,null,null,null,null,null,null,null,null,0]
[3185,null,null,null,null,null,null,null,null,null,0]
[3186,null,null,null,null,null,null,null,null,null,0]
[3187,null,null,null,null,null,null,null,null,null,0]
[3188,null,null,null,null,null,null,null,null,null,0]
[3189,null,null,null,null,null,null,null,null,null,0]
[3190,null,null,null,null,null,null,null,null,null,0]
[3191,null,null,null,null,null,null,null,null,null,0]
[3192,null,null,null,null,null,null,null,null,null,0]
[3193,null,null,null,null,null,null,null,null,null,0]
[3194,null,null,null,null,null,null,null,null,null,0]
[3195,null,null,null,null,null,null,null,null,null,0]
[3196,null,null,null,null,null,null,null,null,null,0]
[3197,null,null,null,null,null,null,null,null,null,0]
[3198,null,null,null,null,null,null,null,null,null,0]
[3199,null,null,null,null,null,null,null,null,null,0]
[3200,null,null,null,null,null,null,null,null,null,0]
[3201,null,null,null,null,null,null,null,null,null,0]
[3202,null,null,null,null,null,null,null,null,null,0]
[3203,null,null,null,null,null,null,null,null,null,0]
[3204,null,null,null,null,null,null,null,null,null,0]
[3205,null,null,null,null,null,null,null,null,null,0]
[3206,null,null,null,null,null,null,null,null,null,0]
[3207,null,null,null,null,null,null,null,null,null,0]
[3208,null,null,null,null,null,null,null,null,null,0]
[3209,null,null,null,null,null,null,null,null,null,0]
[3210,null,null,null,null,null,null,null,null,null,0]
[3211,null,null,null,null,null,null,null,null,null,0]
[3212,null,null,null,null,null,null,null,null,null,0]
[3213,null,null,null,null,null,null,null,null,null,0]
[3214,null,null,null,null,null,null,null,null,null,0]
[3215,null,null,null,null,null,null,null,null,null,0]
[3216,null,null,null,null,null,null,null,null,null,0]
[3217,null,null,null,null,null,null,null,null,null,0]
[3218,null,null,null,null,null,null,null,null,null,0]
[3219,null,null,null,null,null,null,null,null,null,0]
[3220,null,null,null,null,null,null,null,null,null,0]
[{"$f":"A3228+1","v":3221},null,null,null,null,null,null,null,null,null,{"$f":"IF(AND(I3229=0,J3229=0),0,IF(I3229=J3229,\"Paid\",SUM(J3229-I3229)))","v":0}]
[3222,null,null,null,null,null,null,null,null,null,0]
[3223,null,null,null,null,null,null,null,null,null,0]
[3224,null,null,null,null,null,null,null,null,null,0]
[3225,null,null,null,null,null,null,null,null,null,0]
[3226,null,null,null,null,null,null,null,null,null,0]
[3227,null,null,null,null,null,null,null,null,null,0]
[3228,null,null,null,null,null,null,null,null,null,0]
[3229,null,null,null,null,null,null,null,null,null,0]
[3230,null,null,null,null,null,null,null,null,null,0]
[3231,null,null,null,null,null,null,null,null,null,0]
[3232,null,null,null,null,null,null,null,null,null,0]
[3233,null,null,null,null,null,null,null,null,null,0]
[3234,null,null,null,null,null,null,null,null,null,0]
[3235,null,null,null,null,null,null,null,null,null,0]
[3236,null,null,null,null,null,null,null,null,null,0]
[3237,null,null,null,null,null,null,null,null,null,0]
[3238,null,null,null,null,null,null,null,null,null,0]
[3239,null,null,null,null,null,null,null,null,null,0]
[3240,null,null,null,null,null,null,null,null,null,0]
[3241,null,null,null,null,null,null,null,null,null,0]
[3242,null,null,null,null,null,null,null,null,null,0]
[3243,null,null,null,null,null,null,null,null,null,0]
[3244,null,null,null,null,null,null,null,null,null,0]
[3245,null,null,null,null,null,null,null,null,null,0]
[3246,null,null,null,null,null,null,null,null,null,0]
[3247,null,null,null,null,null,null,null,null,null,0]
[3248,null,null,null,null,null,null,null,null,null,0]
[3249,null,null,null,null,null,null,null,null,null,0]
[3250,null,null,null,null,null,null,null,null,null,0]
[3251,null,null,null,null,null,null,null,null,null,0]
[3252,null,null,null,null,null,null,null,null,null,0]
[3253,null,null,null,null,null,null,null,null,null,0]
[3254,null,null,null,null,null,null,null,null,null,0]
[3255,null,null,null,null,null,null,null,null,null,0]
[3256,null,null,null,null,null,null,null,null,null,0]
[3257,null,null,null,null,null,null,null,null,null,0]
[3258,null,null,null,null,null,null,null,null,null,0]
[3259,null,null,null,null,null,null,null,null,null,0]
[3260,null,null,null,null,null,null,null,null,null,0]
[3261,null,null,null,null,null,null,null,null,null,0]
[3262,null,null,null,null,null,null,null,null,null,0]
[3263,null,null,null,null,null,null,null,null,null,0]
[3264,null,null,null,null,null,null,null,null,null,0]
[3265,null,null,null,null,null,null,null,null,null,0]
[3266,null,null,null,null,null,null,null,null,null,0]
[3267,null,null,null,null,null,null,null,null,null,0]
[3268,null,null,null,null,null,null,null,null,null,0]
[3269,null,null,null,null,null,null,null,null,null,0]
[3270,null,null,null,null,null,null,null,null,null,0]
[3271,null,null,null,null,null,null,null,null,null,0]
[3272,null,null,null,null,null,null,null,null,null,0]
[3273,null,null,null,null,null,null,null,null,null,0]
[3274,null,null,null,null,null,null,null,null,null,0]
[3275,null,null,null,null,null,null,null,null,null,0]
[3276,null,null,null,null,null,null,null,null,null,0]
[3277,null,null,null,null,null,null,null,null,null,0]
[3278,null,null,null,null,null,null,null,null,null,0]
[3279,null,null,null,null,null,null,null,null,null,0]
[3280,null,null,null,null,null,null,null,null,null,0]
[3281,null,null,null,null,null,null,null,null,null,0]
[3282,null,null,null,null,null,null,null,null,null,0]
[3283,null,null,null,null,null,null,null,null,null,0]
[3284,null,null,null,null,null,null,null,null,null,0]
[{"$f":"A3292+1","v":3285},null,null,null,null,null,null,null,null,null,{"$f":"IF(AND(I3293=0,J3293=0),0,IF(I3293=J3293,\"Paid\",SUM(J3293-I3293)))","v":0}]
[3286,null,null,null,null,null,null,null,null,null,0]
[3287,null,null,null,null,null,null,null,null,null,0]
[3288,null,null,null,null,null,null,null,null,null,0]
[3289,null,null,null,null,null,null,null,null,null,0]
[3290,null,null,null,null,null,null,null,null,null,0]
[3291,null,null,null,null,null,null,null,null,null,0]
[3292,null,null,null,null,null,null,null,null,null,0]
[3293,null,null,null,null,null,null,null,null,null,0]
[3294,null,null,null,null,null,null,null,null,null,0]
[3295,null,null,null,null,null,null,null,null,null,0]
[3296,null,null,null,null,null,null,null,null,null,0]
[3297,null,null,null,null,null,null,null,null,null,0]
[3298,null,null,null,null,null,null,null,null,null,0]
[3299,null,null,null,null,null,null,null,null,null,0]
[3300,null,null,null,null,null,null,null,null,null,0]
[3301,null,null,null,null,null,null,null,null,null,0]
[3302,null,null,null,null,null,null,null,null,null,0]
[3303,null,null,null,null,null,null,null,null,null,0]
[3304,null,null,null,null,null,null,null,null,null,0]
[3305,null,null,null,null,null,null,null,null,null,0]
[3306,null,null,null,null,null,null,null,null,null,0]
[3307,null,null,null,null,null,null,null,null,null,0]
[3308,null,null,null,null,null,null,null,null,null,0]
[3309,null,null,null,null,null,null,null,null,null,0]
[3310,null,null,null,null,null,null,null,null,null,0]
[3311,null,null,null,null,null,null,null,null,null,0]
[3312,null,null,null,null,null,null,null,null,null,0]
[3313,null,null,null,null,null,null,null,null,null,0]
[3314,null,null,null,null,null,null,null,null,null,0]
[3315,null,null,null,null,null,null,null,null,null,0]
[3316,null,null,null,null,null,null,null,null,null,0]
[3317,null,null,null,null,null,null,null,null,null,0]
[3318,null,null,null,null,null,null,null,null,null,0]
[3319,null,null,null,null,null,null,null,null,null,0]
[3320,null,null,null,null,null,null,null,null,null,0]
[3321,null,null,null,null,null,null,null,null,null,0]
[3322,null,null,null,null,null,null,null,null,null,0]
[3323,null,null,null,null,null,null,null,null,null,0]
[3324,null,null,null,null,null,null,null,null,null,0]
[3325,null,null,null,null,null,null,null,null,null,0]
[3326,null,null,null,null,null,null,null,null,null,0]
[3327,null,null,null,null,null,null,null,null,null,0]
[3328,null,null,null,null,null,null,null,null,null,0]
[3329,null,null,null,null,null,null,null,null,null,0]
[3330,null,null,null,null,null,null,null,null,null,0]
[3331,null,null,null,null,null,null,null,null,null,0]
[3332,null,null,null,null,null,null,null,null,null,0]
[3333,null,null,null,null,null,null,null,null,null,0]
[3334,null,null,null,null,null,null,null,null,null,0]
[3335,null,null,null,null,null,null,null,null,null,0]
[3336,null,null,null,null,null,null,null,null,null,0]
[3337,null,null,null,null,null,null,null,null,null,0]
[3338,null,null,null,null,null,null,null,null,null,0]
[3339,null,null,null,null,null,null,null,null,null,0]
[3340,null,null,null,null,null,null,null,null,null,0]
[3341,null,null,null,null,null,null,null,null,null,0]
[3342,null,null,null,null,null,null,null,null,null,0]
[3343,null,null,null,null,null,null,null,null,null,0]
[3344,null,null,null,null,null,null,null,null,null,0]
[3345,null,null,null,null,null,null,null,null,null,0]
[3346,null,null,null,null,null,null,null,null,null,0]
[3347,null,null,null,null,null,null,null,null,null,0]
[3348,null,null,null,null,null,null,null,null,null,0]
[{"$f":"A3356+1","v":3349},null,null,null,null,null,null,null,null,null,{"$f":"IF(AND(I3357=0,J3357=0),0,IF(I3357=J3357,\"Paid\",SUM(J3357-I3357)))","v":0}]
[3350,null,null,null,null,null,null,null,null,null,0]
[3351,null,null,null,null,null,null,null,null,null,0]
[3352,null,null,null,null,null,null,null,null,null,0]
[3353,null,null,null,null,null,null,null,null,null,0]
[3354,null,null,null,null,null,null,null,null,null,0]
[3355,null,null,null,null,null,null,null,null,null,0]
[3356,null,null,null,null,null,null,null,null,null,0]
[3357,null,null,null,null,null,null,null,null,null,0]
[3358,null,null,null,null,null,null,null,null,null,0]
[3359,null,null,null,null,null,null,null,null,null,0]
[3360,null,null,null,null,null,null,null,null,null,0]
[3361,null,null,null,null,null,null,null,null,null,0]
[3362,null,null,null,null,null,null,null,null,null,0]
[3363,null,null,null,null,null,null,null,null,null,0]
[3364,null,null,null,null,null,null,null,null,null,0]
[3365,null,null,null,null,null,null,null,null,null,0]
[3366,null,null,null,null,null,null,null,null,null,0]
[3367,null,null,null,null,null,null,null,null,null,0]
[3368,null,null,null,null,null,null,null,null,null,0]
[3369,null,null,null,null,null,null,null,null,null,0]
[3370,null,null,null,null,null,null,null,null,null,0]
[3371,null,null,null,null,null,null,null,null,null,0]
[3372,null,null,null,null,null,null,null,null,null,0]
[3373,null,null,null,null,null,null,null,null,null,0]
[3374,null,null,null,null,null,null,null,null,null,0]
[3375,null,null,null,null,null,null,null,null,null,0]
[3376,null,null,null,null,null,null,null,null,null,0]
[3377,null,null,null,null,null,null,null,null,null,0]
[3378,null,null,null,null,null,null,null,null,null,0]
[3379,null,null,null,null,null,null,null,null,null,0]
[3380,null,null,null,null,null,null,null,null,null,0]
[3381,null,null,null,null,null,null,null,null,null,0]
[3382,null,null,null,null,null,null,null,null,null,0]
[3383,null,null,null,null,null,null,null,null,null,0]
[3384,null,null,null,null,null,null,null,null,null,0]
[3385,null,null,null,null,null,null,null,null,null,0]
[3386,null,null,null,null,null,null,null,null,null,0]
[3387,null,null,null,null,null,null,null,null,null,0]
[3388,null,null,null,null,null,null,null,null,null,0]
[3389,null,null,null,null,null,null,null,null,null,0]
[3390,null,null,null,null,null,null,null,null,null,0]
[3391,null,null,null,null,null,null,null,null,null,0]
[3392,null,null,null,null,null,null,null,null,null,0]
[3393,null,null,null,null,null,null,null,null,null,0]
[3394,null,null,null,null,null,null,null,null,null,0]
[3395,null,null,null,null,null,null,null,null,null,0]
[3396,null,null,null,null,null,null,null,null,null,0]
[3397,null,null,null,null,null,null,null,null,null,0]
[3398,null,null,null,null,null,null,null,null,null,0]
[3399,null,null,null,null,null,null,null,null,null,0]
[3400,null,null,null,null,null,null,null,null,null,0]
[3401,null,null,null,null,null,null,null,null,null,0]
[3402,null,null,null,null,null,null,null,null,null,0]
[3403,null,null,null,null,null,null,null,null,null,0]
[3404,null,null,null,null,null,null,null,null,null,0]
[3405,null,null,null,null,null,null,null,null,null,0]
[3406,null,null,null,null,null,null,null,null,null,0]
[3407,null,null,null,null,null,null,null,null,null,0]
[3408,null,null,null,null,null,null,null,null,null,0]
[3409,null,null,null,null,null,null,null,null,null,0]
[3410,null,null,null,null,null,null,null,null,null,0]
[3411,null,null,null,null,null,null,null,null,null,0]
[3412,null,null,null,null,null,null,null,null,null,0]
[{"$f":"A3420+1","v":3413},null,null,null,null,null,null,null,null,null,{"$f":"IF(AND(I3421=0,J3421=0),0,IF(I3421=J3421,\"Paid\",SUM(J3421-I3421)))","v":0}]
[3414,null,null,null,null,null,null,null,null,null,0]
[3415,null,null,null,null,null,null,null,null,null,0]
[3416,null,null,null,null,null,null,null,null,null,0]
[3417,null,null,null,null,null,null,null,null,null,0]
[3418,null,null,null,null,null,null,null,null,null,0]
[3419,null,null,null,null,null,null,null,null,null,0]
[3420,null,null,null,null,null,null,null,null,null,0]
[3421,null,null,null,null,null,null,null,null,null,0]
[3422,null,null,null,null,null,null,null,null,null,0]
[3423,null,null,null,null,null,null,null,null,null,0]
[3424,null,null,null,null,null,null,null,null,null,0]
[3425,null,null,null,null,null,null,null,null,null,0]
[3426,null,null,null,null,null,null,null,null,null,0]
[3427,null,null,null,null,null,null,null,null,null,0]
[3428,null,null,null,null,null,null,null,null,null,0]
[3429,null,null,null,null,null,null,null,null,null,0]
[3430,null,null,null,null,null,null,null,null,null,0]
[3431,null,null,null,null,null,null,null,null,null,0]
[3432,null,null,null,null,null,null,null,null,null,0]
[3433,null,null,null,null,null,null,null,null,null,0]
[3434,null,null,null,null,null,null,null,null,null,0]
[3435,null,null,null,null,null,null,null,null,null,0]
[3436,null,null,null,null,null,null,null,null,null,0]
[3437,null,null,null,null,null,null,null,null,null,0]
[3438,null,null,null,null,null,null,null,null,null,0]
[3439,null,null,null,null,null,null,null,null,null,0]
[3440,null,null,null,null,null,null,null,null,null,0]
[3441,null,null,null,null,null,null,null,null,null,0]
[3442,null,null,null,null,null,null,null,null,null,0]
[3443,null,null,null,null,null,null,null,null,null,0]
[3444,null,null,null,null,null,null,null,null,null,0]
[3445,null,null,null,null,null,null,null,null,null,0]
[3446,null,null,null,null,null,null,null,null,null,0]
[3447,null,null,null,null,null,null,null,null,null,0]
[3448,null,null,null,null,null,null,null,null,null,0]
[3449,null,null,null,null,null,null,null,null,null,0]
[3450,null,null,null,null,null,null,null,null,null,0]
[3451,null,null,null,null,null,null,null,null,null,0]
[3452,null,null,null,null,null,null,null,null,null,0]
[3453,null,null,null,null,null,null,null,null,null,0]
[3454,null,null,null,null,null,null,null,null,null,0]
[3455,null,null,null,null,null,null,null,null,null,0]
[3456,null,null,null,null,null,null,null,null,null,0]
[3457,null,null,null,null,null,null,null,null,null,0]
[3458,null,null,null,null,null,null,null,null,null,0]
[3459,null,null,null,null,null,null,null,null,null,0]
[3460,null,null,null,null,null,null,null,null,null,0]
[3461,null,null,null,null,null,null,null,null,null,0]
[3462,null,null,null,null,null,null,null,null,null,0]
[3463,null,null,null,null,null,null,null,null,null,0]
[3464,null,null,null,null,null,null,null,null,null,0]
[3465,null,null,null,null,null,null,null,null,null,0]
[3466,null,null,null,null,null,null,null,null,null,0]
[3467,null,null,null,null,null,null,null,null,null,0]
[3468,null,null,null,null,null,null,null,null,null,0]
[3469,null,null,null,null,null,null,null,null,null,0]
[3470,null,null,null,null,null,null,null,null,null,0]
[3471,null,null,null,null,null,null,null,null,null,0]
[3472,null,null,null,null,null,null,null,null,null,0]
[3473,null,null,null,null,null,null,null,null,null,0]
[3474,null,null,null,null,null,null,null,null,null,0]
[3475,null,null,null,null,null,null,null,null,null,0]
[3476,null,null,null,null,null,null,null,null,null,0]
[{"$f":"A3484+1","v":3477},null,null,null,null,null,null,null,null,null,{"$f":"IF(AND(I3485=0,J3485=0),0,IF(I3485=J3485,\"Paid\",SUM(J3485-I3485)))","v":0}]
[3478,null,null,null,null,null,null,null,null,null,0]
[3479,null,null,null,null,null,null,null,null,null,0]
[3480,null,null,null,null,null,null,null,null,null,0]
[3481,null,null,null,null,null,null,null,null,null,0]
[3482,null,null,null,null,null,null,null,null,null,0]
[3483,null,null,null,null,null,null,null,null,null,0]
[3484,null,null,null,null,null,null,null,null,null,0]
[3485,null,null,null,null,null,null,null,null,null,0]
[3486,null,null,null,null,null,null,null,null,null,0]
[3487,null,null,null,null,null,null,null,null,null,0]
[3488,null,null,null,null,null,null,null,null,null,0]
[3489,null,null,null,null,null,null,null,null,null,0]
[3490,null,null,null,null,null,null,null,null,null,0]
[3491,null,null,null,null,null,null,null,null,null,0]
[3492,null,null,null,null,null,null,null,null,null,0]
[3493,null,null,null,null,null,null,null,null,null,0]
[3494,null,null,null,null,null,null,null,null,null,0]
[3495,null,null,null,null,null,null,null,null,null,0]
[3496,null,null,null,null,null,null,null,null,null,0]
[3497,null,null,null,null,null,null,null,null,null,0]
[3498,null,null,null,null,null,null,null,null,null,0]
[3499,null,null,null,null,null,null,null,null,null,0]
[3500,null,null,null,null,null,null,null,null,null,0]
[3501,null,null,null,null,null,null,null,null,null,0]
[3502,null,null,null,null,null,null,null,null,null,0]
[3503,null,null,null,null,null,null,null,null,null,0]
[3504,null,null,null,null,null,null,null,null,null,0]
[3505,null,null,null,null,null,null,null,null,null,0]
[3506,null,null,null,null,null,null,null,null,null,0]
[3507,null,null,null,null,null,null,null,null,null,0]
[3508,null,null,null,null,null,null,null,null,null,0]
[3509,null,null,null,null,null,null,null,null,null,0]
[3510,null,null,null,null,null,null,null,null,null,0]
[3511,null,null,null,null,null,null,null,null,null,0]
[3512,null,null,null,null,null,null,null,null,null,0]
[3513,null,null,null,null,null,null,null,null,null,0]
[3514,null,null,null,null,null,null,null,null,null,0]
[3515,null,null,null,null,null,null,null,null,null,0]
[3516,null,null,null,null,null,null,null,null,null,0]
[3517,null,null,null,null,null,null,null,null,null,0]
[3518,null,null,null,null,null,null,null,null,null,0]
[3519,null,null,null,null,null,null,null,null,null,0]
[3520,null,null,null,null,null,null,null,null,null,0]
[3521,null,null,null,null,null,null,null,null,null,0]
[3522,null,null,null,null,null,null,null,null,null,0]
[3523,null,null,null,null,null,null,null,null,null,0]
[3524,null,null,null,null,null,null,null,null,null,0]
[3525,null,null,null,null,null,null,null,null,null,0]
[3526,null,null,null,null,null,null,null,null,null,0]
[3527,null,null,null,null,null,null,null,null,null,0]
[3528,null,null,null,null,null,null,null,null,null,0]
[3529,null,null,null,null,null,null,null,null,null,0]
[3530,null,null,null,null,null,null,null,null,null,0]
[3531,null,null,null,null,null,null,null,null,null,0]
[3532,null,null,null,null,null,null,null,null,null,0]
[3533,null,null,null,null,null,null,null,null,null,0]
[3534,null,null,null,null,null,null,null,null,null,0]
[3535,null,null,null,null,null,null,null,null,null,0]
[3536,null,null,null,null,null,null,null,null,null,0]
[3537,null,null,null,null,null,null,null,null,null,0]
[3538,null,null,null,null,null,null,null,null,null,0]
[3539,null,null,null,null,null,null,null,null,null,0]
[3540,null,null,null,null,null,null,null,null,null,0]
[{"$f":"A3548+1","v":3541},null,null,null,null,null,null,null,null,null,{"$f":"IF(AND(I3549=0,J3549=0),0,IF(I3549=J3549,\"Paid\",SUM(J3549-I3549)))","v":0}]
[3542,null,null,null,null,null,null,null,null,null,0]
[3543,null,null,null,null,null,null,null,null,null,0]
[3544,null,null,null,null,null,null,null,null,null,0]
[3545,null,null,null,null,null,null,null,null,null,0]
[3546,null,null,null,null,null,null,null,null,null,0]
[3547,null,null,null,null,null,null,null,null,null,0]
[3548,null,null,null,null,null,null,null,null,null,0]
[3549,null,null,null,null,null,null,null,null,null,0]
[3550,null,null,null,null,null,null,null,null,null,0]
[3551,null,null,null,null,null,null,null,null,null,0]
[3552,null,null,null,null,null,null,null,null,null,0]
[3553,null,null,null,null,null,null,null,null,null,0]
[3554,null,null,null,null,null,null,null,null,null,0]
[3555,null,null,null,null,null,null,null,null,null,0]
[3556,null,null,null,null,null,null,null,null,null,0]
[3557,null,null,null,null,null,null,null,null,null,0]
[3558,null,null,null,null,null,null,null,null,null,0]
[3559,null,null,null,null,null,null,null,null,null,0]
[3560,null,null,null,null,null,null,null,null,null,0]
[3561,null,null,null,null,null,null,null,null,null,0]
[3562,null,null,null,null,null,null,null,null,null,0]
[3563,null,null,null,null,null,null,null,null,null,0]
[3564,null,null,null,null,null,null,null,null,null,0]
[3565,null,null,null,null,null,null,null,null,null,0]
[3566,null,null,null,null,null,null,null,null,null,0]
[3567,null,null,null,null,null,null,null,null,null,0]
[3568,null,null,null,null,null,null,null,null,null,0]
[3569,null,null,null,null,null,null,null,null,null,0]
[3570,null,null,null,null,null,null,null,null,null,0]
[3571,null,null,null,null,null,null,null,null,null,0]
[3572,null,null,null,null,null,null,null,null,null,0]
[3573,null,null,null,null,null,null,null,null,null,0]
[3574,null,null,null,null,null,null,null,null,null,0]
[3575,null,null,null,null,null,null,null,null,null,0]
[3576,null,null,null,null,null,null,null,null,null,0]
[3577,null,null,null,null,null,null,null,null,null,0]
[3578,null,null,null,null,null,null,null,null,null,0]
[3579,null,null,null,null,null,null,null,null,null,0]
[3580,null,null,null,null,null,null,null,null,null,0]
[3581,null,null,null,null,null,null,null,null,null,0]
[3582,null,null,null,null,null,null,null,null,null,0]
[3583,null,null,null,null,null,null,null,null,null,0]
[3584,null,null,null,null,null,null,null,null,null,0]
[3585,null,null,null,null,null,null,null,null,null,0]
[3586,null,null,null,null,null,null,null,null,null,0]
[3587,null,null,null,null,null,null,null,null,null,0]
[3588,null,null,null,null,null,null,null,null,null,0]
[3589,null,null,null,null,null,null,null,null,null,0]
[3590,null,null,null,null,null,null,null,null,null,0]
[3591,null,null,null,null,null,null,null,null,null,0]
[3592,null,null,null,null,null,null,null,null,null,0]
[3593,null,null,null,null,null,null,null,null,null,0]
[3594,null,null,null,null,null,null,null,null,null,0]
[3595,null,null,null,null,null,null,null,null,null,0]
[3596,null,null,null,null,null,null,null,null,null,0]
[3597,null,null,null,null,null,null,null,null,null,0]
[3598,null,null,null,null,null,null,null,null,null,0]
[3599,null,null,null,null,null,null,null,null,null,0]
[3600,null,null,null,null,null,null,null,null,null,0]
[3601,null,null,null,null,null,null,null,null,null,0]
[3602,null,null,null,null,null,null,null,null,null,0]
[3603,null,null,null,null,null,null,null,null,null,0]
[3604,null,null,null,null,null,null,null,null,null,0]
[{"$f":"A3612+1","v":3605},null,null,null,null,null,null,null,null,null,{"$f":"IF(AND(I3613=0,J3613=0),0,IF(I3613=J3613,\"Paid\",SUM(J3613-I3613)))","v":0}]
[3606,null,null,null,null,null,null,null,null,null,0]
[3607,null,null,null,null,null,null,null,null,null,0]
[3608,null,null,null,null,null,null,null,null,null,0]
[3609,null,null,null,null,null,null,null,null,null,0]
[3610,null,null,null,null,null,null,null,null,null,0]
[3611,null,null,null,null,null,null,null,null,null,0]
[3612,null,null,null,null,null,null,null,null,null,0]
[3613,null,null,null,null,null,null,null,null,null,0]
[3614,null,null,null,null,null,null,null,null,null,0]
[3615,null,null,null,null,null,null,null,null,null,0]
[3616,null,null,null,null,null,null,null,null,null,0]
[3617,null,null,null,null,null,null,null,null,null,0]
[3618,null,null,null,null,null,null,null,null,null,0]
[3619,null,null,null,null,null,null,null,null,null,0]
[3620,null,null,null,null,null,null,null,null,null,0]
[3621,null,null,null,null,null,null,null,null,null,0]
[3622,null,null,null,null,null,null,null,null,null,0]
[3623,null,null,null,null,null,null,null,null,null,0]
[3624,null,null,null,null,null,null,null,null,null,0]
[3625,null,null,null,null,null,null,null,null,null,0]
[3626,null,null,null,null,null,null,null,null,null,0]
[3627,null,null,null,null,null,null,null,null,null,0]
[3628,null,null,null,null,null,null,null,null,null,0]
[3629,null,null,null,null,null,null,null,null,null,0]
[3630,null,null,null,null,null,null,null,null,null,0]
[3631,null,null,null,null,null,null,null,null,null,0]
[3632,null,null,null,null,null,null,null,null,null,0]
[3633,null,null,null,null,null,null,null,null,null,0]
[3634,null,null,null,null,null,null,null,null,null,0]
[3635,null,null,null,null,null,null,null,null,null,0]
[3636,null,null,null,null,null,null,null,null,null,0]
[3637,null,null,null,null,null,null,null,null,null,0]
[3638,null,null,null,null,null,null,null,null,null,0]
[3639,null,null,null,null,null,null,null,null,null,0]
[3640,null,null,null,null,null,null,null,null,null,0]
[3641,null,null,null,null,null,null,null,null,null,0]
[3642,null,null,null,null,null,null,null,null,null,0]
[3643,null,null,null,null,null,null,null,null,null,0]
[3644,null,null,null,null,null,null,null,null,null,0]
[3645,null,null,null,null,null,null,null,null,null,0]
[3646,null,null,null,null,null,null,null,null,null,0]
[3647,null,null,null,null,null,null,null,null,null,0]
[3648,null,null,null,null,null,null,null,null,null,0]
[3649,null,null,null,null,null,null,null,null,null,0]
[3650,null,null,null,null,null,null,null,null,null,0]
[3651,null,null,null,null,null,null,null,null,null,0]
[3652,null,null,null,null,null,null,null,null,null,0]
[3653,null,null,null,null,null,null,null,null,null,0]
[3654,null,null,null,null,null,null,null,null,null,0]
[3655,null,null,null,null,null,null,null,null,null,0]
[3656,null,null,null,null,null,null,null,null,null,0]
[3657,null,null,null,null,null,null,null,null,null,0]
[3658,null,null,null,null,null,null,null,null,null,0]
[3659,null,null,null,null,null,null,null,null,null,0]
[3660,null,null,null,null,null,null,null,null,null,0]
[3661,null,null,null,null,null,null,null,null,null,0]
[3662,null,null,null,null,null,null,null,null,null,0]
[3663,null,null,null,null,null,null,null,null,null,0]
[3664,null,null,null,null,null,null,null,null,null,0]
[3665,null,null,null,null,null,null,null,null,null,0]
[3666,null,null,null,null,null,null,null,null,null,0]
[3667,null,null,null,null,null,null,null,null,null,0]
[3668,null,null,null,null,null,null,null,null,null,0]
[{"$f":"A3676+1","v":3669},null,null,null,null,null,null,null,null,null,{"$f":"IF(AND(I3677=0,J3677=0),0,IF(I3677=J3677,\"Paid\",SUM(J3677-I3677)))","v":0}]
[3670,null,null,null,null,null,null,null,null,null,0]
[3671,null,null,null,null,null,null,null,null,null,0]
[3672,null,null,null,null,null,null,null,null,null,0]
[3673,null,null,null,null,null,null,null,null,null,0]
[3674,null,null,null,null,null,null,null,null,null,0]
[3675,null,null,null,null,null,null,null,null,null,0]
[3676,null,null,null,null,null,null,null,null,null,0]
[3677,null,null,null,null,null,null,null,null,null,0]
[3678,null,null,null,null,null,null,null,null,null,0]
[3679,null,null,null,null,null,null,null,null,null,0]
[3680,null,null,null,null,null,null,null,null,null,0]
[3681,null,null,null,null,null,null,null,null,null,0]
[3682,null,null,null,null,null,null,null,null,null,0]
[3683,null,null,null,null,null,null,null,null,null,0]
[3684,null,null,null,null,null,null,null,null,null,0]
[3685,null,null,null,null,null,null,null,null,null,0]
[3686,null,null,null,null,null,null,null,null,null,0]
[3687,null,null,null,null,null,null,null,null,null,0]
[3688,null,null,null,null,null,null,null,null,null,0]
[3689,null,null,null,null,null,null,null,null,null,0]
[3690,null,null,null,null,null,null,null,null,null,0]
[3691,null,null,null,null,null,null,null,null,null,0]
[3692,null,null,null,null,null,null,null,null,null,0]
[3693,null,null,null,null,null,null,null,null,null,0]
[3694,null,null,null,null,null,null,null,null,null,0]
[3695,null,null,null,null,null,null,null,null,null,0]
[3696,null,null,null,null,null,null,null,null,null,0]
[3697,null,null,null,null,null,null,null,null,null,0]
[3698,null,null,null,null,null,null,null,null,null,0]
[3699,null,null,null,null,null,null,null,null,null,0]
[3700,null,null,null,null,null,null,null,null,null,0]
[3701,null,null,null,null,null,null,null,null,null,0]
[3702,null,null,null,null,null,null,null,null,null,0]
[3703,null,null,null,null,null,null,null,null,null,0]
[3704,null,null,null,null,null,null,null,null,null,0]
[3705,null,null,null,null,null,null,null,null,null,0]
[3706,null,null,null,null,null,null,null,null,null,0]
[3707,null,null,null,null,null,null,null,null,null,0]
[3708,null,null,null,null,null,null,null,null,null,0]
[3709,null,null,null,null,null,null,null,null,null,0]
[3710,null,null,null,null,null,null,null,null,null,0]
[3711,null,null,null,null,null,null,null,null,null,0]
[3712,null,null,null,null,null,null,null,null,null,0]
[3713,null,null,null,null,null,null,null,null,null,0]
[3714,null,null,null,null,null,null,null,null,null,0]
[3715,null,null,null,null,null,null,null,null,null,0]
[3716,null,null,null,null,null,null,null,null,null,0]
[3717,null,null,null,null,null,null,null,null,null,0]
[3718,null,null,null,null,null,null,null,null,null,0]
[3719,null,null,null,null,null,null,null,null,null,0]
[3720,null,null,null,null,null,null,null,null,null,0]
[3721,null,null,null,null,null,null,null,null,null,0]
[3722,null,null,null,null,null,null,null,null,null,0]
[3723,null,null,null,null,null,null,null,null,null,0]
[3724,null,null,null,null,null,null,null,null,null,0]
[3725,null,null,null,null,null,null,null,null,null,0]
[3726,null,null,null,null,null,null,null,null,null,0]
[3727,null,null,null,null,null,null,null,null,null,0]
[3728,null,null,null,null,null,null,null,null,null,0]
[3729,null,null,null,null,null,null,null,null,null,0]
[3730,null,null,null,null,null,null,null,null,null,0]
[3731,null,null,null,null,null,null,null,null,null,0]
[3732,null,null,null,null,null,null,null,null,null,0]
[{"$f":"A3740+1","v":3733},null,null,null,null,null,null,null,null,null,{"$f":"IF(AND(I3741=0,J3741=0),0,IF(I3741=J3741,\"Paid\",SUM(J3741-I3741)))","v":0}]
[3734,null,null,null,null,null,null,null,null,null,0]
[3735,null,null,null,null,null,null,null,null,null,0]
[3736,null,null,null,null,null,null,null,null,null,0]
[3737,null,null,null,null,null,null,null,null,null,0]
[3738,null,null,null,null,null,null,null,null,null,0]
[3739,null,null,null,null,null,null,null,null,null,0]
[3740,null,null,null,null,null,null,null,null,null,0]
[3741,null,null,null,null,null,null,null,null,null,0]
[3742,null,null,null,null,null,null,null,null,null,0]
[3743,null,null,null,null,null,null,null,null,null,0]
[3744,null,null,null,null,null,null,null,null,null,0]
[3745,null,null,null,null,null,null,null,null,null,0]
[3746,null,null,null,null,null,null,null,null,null,0]
[3747,null,null,null,null,null,null,null,null,null,0]
[3748,null,null,null,null,null,null,null,null,null,0]
[3749,null,null,null,null,null,null,null,null,null,0]
[3750,null,null,null,null,null,null,null,null,null,0]
[3751,null,null,null,null,null,null,null,null,null,0]
[3752,null,null,null,null,null,null,null,null,null,0]
[3753,null,null,null,null,null,null,null,null,null,0]
[3754,null,null,null,null,null,null,null,null,null,0]
[3755,null,null,null,null,null,null,null,null,null,0]
[3756,null,null,null,null,null,null,null,null,null,0]
[3757,null,null,null,null,null,null,null,null,null,0]
[3758,null,null,null,null,null,null,null,null,null,0]
[3759,null,null,null,null,null,null,null,null,null,0]
[3760,null,null,null,null,null,null,null,null,null,0]
[3761,null,null,null,null,null,null,null,null,null,0]
[3762,null,null,null,null,null,null,null,null,null,0]
[3763,null,null,null,null,null,null,null,null,null,0]
[3764,null,null,null,null,null,null,null,null,null,0]
[3765,null,null,null,null,null,null,null,null,null,0]
[3766,null,null,null,null,null,null,null,null,null,0]
[3767,null,null,null,null,null,null,null,null,null,0]
[3768,null,null,null,null,null,null,null,null,null,0]
[3769,null,null,null,null,null,null,null,null,null,0]
[3770,null,null,null,null,null,null,null,null,null,0]
[3771,null,null,null,null,null,null,null,null,null,0]
[3772,null,null,null,null,null,null,null,null,null,0]
[3773,null,null,null,null,null,null,null,null,null,0]
[3774,null,null,null,null,null,null,null,null,null,0]
[3775,null,null,null,null,null,null,null,null,null,0]
[3776,null,null,null,null,null,null,null,null,null,0]
[3777,null,null,null,null,null,null,null,null,null,0]
[3778,null,null,null,null,null,null,null,null,null,0]
[3779,null,null,null,null,null,null,null,null,null,0]
[3780,null,null,null,null,null,null,null,null,null,0]
[3781,null,null,null,null,null,null,null,null,null,0]
[3782,null,null,null,null,null,null,null,null,null,0]
[3783,null,null,null,null,null,null,null,null,null,0]
[3784,null,null,null,null,null,null,null,null,null,0]
[3785,null,null,null,null,null,null,null,null,null,0]
[3786,null,null,null,null,null,null,null,null,null,0]
[3787,null,null,null,null,null,null,null,null,null,0]
[3788,null,null,null,null,null,null,null,null,null,0]
[3789,null,null,null,null,null,null,null,null,null,0]
[3790,null,null,null,null,null,null,null,null,null,0]
[3791,null,null,null,null,null,null,null,null,null,0]
[3792,null,null,null,null,null,null,null,null,null,0]
[3793,null,null,null,null,null,null,null,null,null,0]
[3794,null,null,null,null,null,null,null,null,null,0]
[3795,null,null,null,null,null,null,null,null,null,0]
[3796,null,null,null,null,null,null,null,null,null,0]
[{"$f":"A3804+1","v":3797},null,null,null,null,null,null,null,null,null,{"$f":"IF(AND(I3805=0,J3805=0),0,IF(I3805=J3805,\"Paid\",SUM(J3805-I3805)))","v":0}]
[3798,null,null,null,null,null,null,null,null,null,0]
[3799,null,null,null,null,null,null,null,null,null,0]
[3800,null,null,null,null,null,null,null,null,null,0]
[3801,null,null,null,null,null,null,null,null,null,0]
[3802,null,null,null,null,null,null,null,null,null,0]
[3803,null,null,null,null,null,null,null,null,null,0]
[3804,null,null,null,null,null,null,null,null,null,0]
[3805,null,null,null,null,null,null,null,null,null,0]
[3806,null,null,null,null,null,null,null,null,null,0]
[3807,null,null,null,null,null,null,null,null,null,0]
[3808,null,null,null,null,null,null,null,null,null,0]
[3809,null,null,null,null,null,null,null,null,null,0]
[3810,null,null,null,null,null,null,null,null,null,0]
[3811,null,null,null,null,null,null,null,null,null,0]
[3812,null,null,null,null,null,null,null,null,null,0]
[3813,null,null,null,null,null,null,null,null,null,0]
[3814,null,null,null,null,null,null,null,null,null,0]
[3815,null,null,null,null,null,null,null,null,null,0]
[3816,null,null,null,null,null,null,null,null,null,0]
[3817,null,null,null,null,null,null,null,null,null,0]
[3818,null,null,null,null,null,null,null,null,null,0]
[3819,null,null,null,null,null,null,null,null,null,0]
[3820,null,null,null,null,null,null,null,null,null,0]
[3821,null,null,null,null,null,null,null,null,null,0]
[3822,null,null,null,null,null,null,null,null,null,0]
[3823,null,null,null,null,null,null,null,null,null,0]
[3824,null,null,null,null,null,null,null,null,null,0]
[3825,null,null,null,null,null,null,null,null,null,0]
[3826,null,null,null,null,null,null,null,null,null,0]
[3827,null,null,null,null,null,null,null,null,null,0]
[3828,null,null,null,null,null,null,null,null,null,0]
[3829,null,null,null,null,null,null,null,null,null,0]
[3830,null,null,null,null,null,null,null,null,null,0]
[3831,null,null,null,null,null,null,null,null,null,0]
[3832,null,null,null,null,null,null,null,null,null,0]
[3833,null,null,null,null,null,null,null,null,null,0]
[3834,null,null,null,null,null,null,null,null,null,0]
[3835,null,null,null,null,null,null,null,null,null,0]
[3836,null,null,null,null,null,null,null,null,null,0]
[3837,null,null,null,null,null,null,null,null,null,0]
[3838,null,null,null,null,null,null,null,null,null,0]
[3839,null,null,null,null,null,null,null,null,null,0]
[3840,null,null,null,null,null,null,null,null,null,0]
[3841,null,null,null,null,null,null,null,null,null,0]
[3842,null,null,null,null,null,null,null,null,null,0]
[3843,null,null,null,null,null,null,null,null,null,0]
[3844,null,null,null,null,null,null,null,null,null,0]
[3845,null,null,null,null,null,null,null,null,null,0]
[3846,null,null,null,null,null,null,null,null,null,0]
[3847,null,null,null,null,null,null,null,null,null,0]
[3848,null,null,null,null,null,null,null,null,null,0]
[3849,null,null,null,null,null,null,null,null,null,0]
[3850,null,null,null,null,null,null,null,null,null,0]
[3851,null,null,null,null,null,null,null,null,null,0]
[3852,null,null,null,null,null,null,null,null,null,0]
[3853,null,null,null,null,null,null,null,null,null,0]
[3854,null,null,null,null,null,null,null,null,null,0]
[3855,null,null,null,null,null,null,null,null,null,0]
[3856,null,null,null,null,null,null,null,null,null,0]
[3857,null,null,null,null,null,null,null,null,null,0]
[3858,null,null,null,null,null,null,null,null,null,0]
[3859,null,null,null,null,null,null,null,null,null,0]
[3860,null,null,null,null,null,null,null,null,null,0]
[{"$f":"A3868+1","v":3861},null,null,null,null,null,null,null,null,null,{"$f":"IF(AND(I3869=0,J3869=0),0,IF(I3869=J3869,\"Paid\",SUM(J3869-I3869)))","v":0}]
[3862,null,null,null,null,null,null,null,null,null,0]
[3863,null,null,null,null,null,null,null,null,null,0]
[3864,null,null,null,null,null,null,null,null,null,0]
[3865,null,null,null,null,null,null,null,null,null,0]
[3866,null,null,null,null,null,null,null,null,null,0]
[3867,null,null,null,null,null,null,null,null,null,0]
[3868,null,null,null,null,null,null,null,null,null,0]
[3869,null,null,null,null,null,null,null,null,null,0]
[3870,null,null,null,null,null,null,null,null,null,0]
[3871,null,null,null,null,null,null,null,null,null,0]
[3872,null,null,null,null,null,null,null,null,null,0]
[3873,null,null,null,null,null,null,null,null,null,0]
[3874,null,null,null,null,null,null,null,null,null,0]
[3875,null,null,null,null,null,null,null,null,null,0]
[3876,null,null,null,null,null,null,null,null,null,0]
[3877,null,null,null,null,null,null,null,null,null,0]
[3878,null,null,null,null,null,null,null,null,null,0]
[3879,null,null,null,null,null,null,null,null,null,0]
[3880,null,null,null,null,null,null,null,null,null,0]
[3881,null,null,null,null,null,null,null,null,null,0]
[3882,null,null,null,null,null,null,null,null,null,0]
[3883,null,null,null,null,null,null,null,null,null,0]
[3884,null,null,null,null,null,null,null,null,null,0]
[3885,null,null,null,null,null,null,null,null,null,0]
[3886,null,null,null,null,null,null,null,null,null,0]
[3887,null,null,null,null,null,null,null,null,null,0]
[3888,null,null,null,null,null,null,null,null,null,0]
[3889,null,null,null,null,null,null,null,null,null,0]
[3890,null,null,null,null,null,null,null,null,null,0]
[3891,null,null,null,null,null,null,null,null,null,0]
[3892,null,null,null,null,null,null,null,null,null,0]
[3893,null,null,null,null,null,null,null,null,null,0]
[3894,null,null,null,null,null,null,null,null,null,0]
[3895,null,null,null,null,null,null,null,null,null,0]
[3896,null,null,null,null,null,null,null,null,null,0]
[3897,null,null,null,null,null,null,null,null,null,0]
[3898,null,null,null,null,null,null,null,null,null,0]
[3899,null,null,null,null,null,null,null,null,null,0]
[3900,null,null,null,null,null,null,null,null,null,0]
[3901,null,null,null,null,null,null,null,null,null,0]
[3902,null,null,null,null,null,null,null,null,null,0]
[3903,null,null,null,null,null,null,null,null,null,0]
[3904,null,null,null,null,null,null,null,null,null,0]
[3905,null,null,null,null,null,null,null,null,null,0]
[3906,null,null,null,null,null,null,null,null,null,0]
[3907,null,null,null,null,null,null,null,null,null,0]
[3908,null,null,null,null,null,null,null,null,null,0]
[3909,null,null,null,null,null,null,null,null,null,0]
[3910,null,null,null,null,null,null,null,null,null,0]
[3911,null,null,null,null,null,null,null,null,null,0]
[3912,null,null,null,null,null,null,null,null,null,0]
[3913,null,null,null,null,null,null,null,null,null,0]
[3914,null,null,null,null,null,null,null,null,null,0]
[3915,null,null,null,null,null,null,null,null,null,0]
[3916,null,null,null,null,null,null,null,null,null,0]
[3917,null,null,null,null,null,null,null,null,null,0]
[3918,null,null,null,null,null,null,null,null,null,0]
[3919,null,null,null,null,null,null,null,null,null,0]
[3920,null,null,null,null,null,null,null,null,null,0]
[3921,null,null,null,null,null,null,null,null,null,0]
[3922,null,null,null,null,null,null,null,null,null,0]
[3923,null,null,null,null,null,null,null,null,null,0]
[3924,null,null,null,null,null,null,null,null,null,0]
[{"$f":"A3932+1","v":3925},null,null,null,null,null,null,null,null,null,{"$f":"IF(AND(I3933=0,J3933=0),0,IF(I3933=J3933,\"Paid\",SUM(J3933-I3933)))","v":0}]
[3926,null,null,null,null,null,null,null,null,null,0]
[3927,null,null,null,null,null,null,null,null,null,0]
[3928,null,null,null,null,null,null,null,null,null,0]
[3929,null,null,null,null,null,null,null,null,null,0]
[3930,null,null,null,null,null,null,null,null,null,0]
[3931,null,null,null,null,null,null,null,null,null,0]
[3932,null,null,null,null,null,null,null,null,null,0]
[3933,null,null,null,null,null,null,null,null,null,0]
[3934,null,null,null,null,null,null,null,null,null,0]
[3935,null,null,null,null,null,null,null,null,null,0]
[3936,null,null,null,null,null,null,null,null,null,0]
[3937,null,null,null,null,null,null,null,null,null,0]
[3938,null,null,null,null,null,null,null,null,null,0]
[3939,null,null,null,null,null,null,null,null,null,0]
[3940,null,null,null,null,null,null,null,null,null,0]
[3941,null,null,null,null,null,null,null,null,null,0]
[3942,null,null,null,null,null,null,null,null,null,0]
[3943,null,null,null,null,null,null,null,null,null,0]
[3944,null,null,null,null,null,null,null,null,null,0]
[3945,null,null,null,null,null,null,null,null,null,0]
[3946,null,null,null,null,null,null,null,null,null,0]
[3947,null,null,null,null,null,null,null,null,null,0]
[3948,null,null,null,null,null,null,null,null,null,0]
[3949,null,null,null,null,null,null,null,null,null,0]
[3950,null,null,null,null,null,null,null,null,null,0]
[3951,null,null,null,null,null,null,null,null,null,0]
[3952,null,null,null,null,null,null,null,null,null,0]
[3953,null,null,null,null,null,null,null,null,null,0]
[3954,null,null,null,null,null,null,null,null,null,0]
[3955,null,null,null,null,null,null,null,null,null,0]
[3956,null,null,null,null,null,null,null,null,null,0]
[3957,null,null,null,null,null,null,null,null,null,0]
[3958,null,null,null,null,null,null,null,null,null,0]
[3959,null,null,null,null,null,null,null,null,null,0]
[3960,null,null,null,null,null,null,null,null,null,0]
[3961,null,null,null,null,null,null,null,null,null,0]
[3962,null,null,null,null,null,null,null,null,null,0]
[3963,null,null,null,null,null,null,null,null,null,0]
[3964,null,null,null,null,null,null,null,null,null,0]
[3965,null,null,null,null,null,null,null,null,null,0]
[3966,null,null,null,null,null,null,null,null,null,0]
[3967,null,null,null,null,null,null,null,null,null,0]
[3968,null,null,null,null,null,null,null,null,null,0]
[3969,null,null,null,null,null,null,null,null,null,0]
[3970,null,null,null,null,null,null,null,null,null,0]
[3971,null,null,null,null,null,null,null,null,null,0]
[3972,null,null,null,null,null,null,null,null,null,0]
[3973,null,null,null,null,null,null,null,null,null,0]
[3974,null,null,null,null,null,null,null,null,null,0]
[3975,null,null,null,null,null,null,null,null,null,0]
[3976,null,null,null,null,null,null,null,null,null,0]
[3977,null,null,null,null,null,null,null,null,null,0]
[3978,null,null,null,null,null,null,null,null,null,0]
[3979,null,null,null,null,null,null,null,null,null,0]
[3980,null,null,null,null,null,null,null,null,null,0]
[3981,null,null,null,null,null,null,null,null,null,0]
[3982,null,null,null,null,null,null,null,null,null,0]
[3983,null,null,null,null,null,null,null,null,null,0]
[3984,null,null,null,null,null,null,null,null,null,0]
[3985,null,null,null,null,null,null,null,null,null,0]
[3986,null,null,null,null,null,null,null,null,null,0]
[3987,null,null,null,null,null,null,null,null,null,0]
[3988,null,null,null,null,null,null,null,null,null,0]
[{"$f":"A3996+1","v":3989},null,null,null,null,null,null,null,null,null,{"$f":"IF(AND(I3997=0,J3997=0),0,IF(I3997=J3997,\"Paid\",SUM(J3997-I3997)))","v":0}]
[3990,null,null,null,null,null,null,null,null,null,0]
[3991,null,null,null,null,null,null,null,null,null,0]
[3992,null,null,null,null,null,null,null,null,null,0]
[3993,null,null,null,null,null,null,null,null,null,0]
[3994,null,null,null,null,null,null,null,null,null,0]
[3995,null,null,null,null,null,null,null,null,null,0]
[3996,null,null,null,null,null,null,null,null,null,0]
[3997,null,null,null,null,null,null,null,null,null,0]
[3998,null,null,null,null,null,null,null,null,null,0]
[3999,null,null,null,null,null,null,null,null,null,0]
[4000,null,null,null,null,null,null,null,null,null,0]
[4001,null,null,null,null,null,null,null,null,null,0]
[4002,null,null,null,null,null,null,null,null,null,0]
[4003,null,null,null,null,null,null,null,null,null,0]
[4004,null,null,null,null,null,null,null,null,null,0]
[4005,null,null,null,null,null,null,null,null,null,0]
[4006,null,null,null,null,null,null,null,null,null,0]
[4007,null,null,null,null,null,null,null,null,null,0]
[4008,null,null,null,null,null,null,null,null,null,0]
[4009,null,null,null,null,null,null,null,null,null,0]
[4010,null,null,null,null,null,null,null,null,null,0]
[4011,null,null,null,null,null,null,null,null,null,0]
[4012,null,null,null,null,null,null,null,null,null,0]
[4013,null,null,null,null,null,null,null,null,null,0]
[4014,null,null,null,null,null,null,null,null,null,0]
[4015,null,null,null,null,null,null,null,null,null,0]
[4016,null,null,null,null,null,null,null,null,null,0]
[4017,null,null,null,null,null,null,null,null,null,0]
[4018,null,null,null,null,null,null,null,null,null,0]
[4019,null,null,null,null,null,null,null,null,null,0]
[4020,null,null,null,null,null,null,null,null,null,0]
[4021,null,null,null,null,null,null,null,null,null,0]
[4022,null,null,null,null,null,null,null,null,null,0]
[4023,null,null,null,null,null,null,null,null,null,0]
[4024,null,null,null,null,null,null,null,null,null,0]
[4025,null,null,null,null,null,null,null,null,null,0]
[4026,null,null,null,null,null,null,null,null,null,0]
[4027,null,null,null,null,null,null,null,null,null,0]
[4028,null,null,null,null,null,null,null,null,null,0]
[4029,null,null,null,null,null,null,null,null,null,0]
[4030,null,null,null,null,null,null,null,null,null,0]
[4031,null,null,null,null,null,null,null,null,null,0]
[4032,null,null,null,null,null,null,null,null,null,0]
[4033,null,null,null,null,null,null,null,null,null,0]
[4034,null,null,null,null,null,null,null,null,null,0]
[4035,null,null,null,null,null,null,null,null,null,0]
[4036,null,null,null,null,null,null,null,null,null,0]
[4037,null,null,null,null,null,null,null,null,null,0]
[4038,null,null,null,null,null,null,null,null,null,0]
[4039,null,null,null,null,null,null,null,null,null,0]
[4040,null,null,null,null,null,null,null,null,null,0]
[4041,null,null,null,null,null,null,null,null,null,0]
[4042,null,null,null,null,null,null,null,null,null,0]
[4043,null,null,null,null,null,null,null,null,null,0]
[4044,null,null,null,null,null,null,null,null,null,0]
[4045,null,null,null,null,null,null,null,null,null,0]
[4046,null,null,null,null,null,null,null,null,null,0]
[4047,null,null,null,null,null,null,null,null,null,0]
[4048,null,null,null,null,null,null,null,null,null,0]
[4049,null,null,null,null,null,null,null,null,null,0]
[4050,null,null,null,null,null,null,null,null,null,0]
[4051,null,null,null,null,null,null,null,null,null,0]
[4052,null,null,null,null,null,null,null,null,null,0]
[{"$f":"A4060+1","v":4053},null,null,null,null,null,null,null,null,null,{"$f":"IF(AND(I4061=0,J4061=0),0,IF(I4061=J4061,\"Paid\",SUM(J4061-I4061)))","v":0}]
[4054,null,null,null,null,null,null,null,null,null,0]
[4055,null,null,null,null,null,null,null,null,null,0]
[4056,null,null,null,null,null,null,null,null,null,0]
[4057,null,null,null,null,null,null,null,null,null,0]
[4058,null,null,null,null,null,null,null,null,null,0]
[4059,null,null,null,null,null,null,null,null,null,0]
[4060,null,null,null,null,null,null,null,null,null,0]
[4061,null,null,null,null,null,null,null,null,null,0]
[4062,null,null,null,null,null,null,null,null,null,0]
[4063,null,null,null,null,null,null,null,null,null,0]
[4064,null,null,null,null,null,null,null,null,null,0]
[4065,null,null,null,null,null,null,null,null,null,0]
[4066,null,null,null,null,null,null,null,null,null,0]
[4067,null,null,null,null,null,null,null,null,null,0]
[4068,null,null,null,null,null,null,null,null,null,0]
[4069,null,null,null,null,null,null,null,null,null,0]
[4070,null,null,null,null,null,null,null,null,null,0]
[4071,null,null,null,null,null,null,null,null,null,0]
[4072,null,null,null,null,null,null,null,null,null,0]
[4073,null,null,null,null,null,null,null,null,null,0]
[4074,null,null,null,null,null,null,null,null,null,0]
[4075,null,null,null,null,null,null,null,null,null,0]
[4076,null,null,null,null,null,null,null,null,null,0]
[4077,null,null,null,null,null,null,null,null,null,0]
[4078,null,null,null,null,null,null,null,null,null,0]
[4079,null,null,null,null,null,null,null,null,null,0]
[4080,null,null,null,null,null,null,null,null,null,0]
[4081,null,null,null,null,null,null,null,null,null,0]
[4082,null,null,null,null,null,null,null,null,null,0]
[4083,null,null,null,null,null,null,null,null,null,0]
[4084,null,null,null,null,null,null,null,null,null,0]
[4085,null,null,null,null,null,null,null,null,null,0]
[4086,null,null,null,null,null,null,null,null,null,0]
[4087,null,null,null,null,null,null,null,null,null,0]
[4088,null,null,null,null,null,null,null,null,null,0]
[4089,null,null,null,null,null,null,null,null,null,0]
[4090,null,null,null,null,null,null,null,null,null,0]
[4091,null,null,null,null,null,null,null,null,null,0]
[4092,null,null,null,null,null,null,null,null,null,0]
[4093,null,null,null,null,null,null,null,null,null,0]
[4094,null,null,null,null,null,null,null,null,null,0]
[4095,null,null,null,null,null,null,null,null,null,0]
[4096,null,null,null,null,null,null,null,null,null,0]
[4097,null,null,null,null,null,null,null,null,null,0]
[4098,null,null,null,null,null,null,null,null,null,0]
[4099,null,null,null,null,null,null,null,null,null,0]
[4100,null,null,null,null,null,null,null,null,null,0]
[4101,null,null,null,null,null,null,null,null,null,0]
[4102,null,null,null,null,null,null,null,null,null,0]
[4103,null,null,null,null,null,null,null,null,null,0]
[4104,null,null,null,null,null,null,null,null,null,0]
[4105,null,null,null,null,null,null,null,null,null,0]
[4106,null,null,null,null,null,null,null,null,null,0]
[4107,null,null,null,null,null,null,null,null,null,0]
[4108,null,null,null,null,null,null,null,null,null,0]
[4109,null,null,null,null,null,null,null,null,null,0]
[4110,null,null,null,null,null,null,null,null,null,0]
[4111,null,null,null,null,null,null,null,null,null,0]
[4112,null,null,null,null,null,null,null,null,null,0]
[4113,null,null,null,null,null,null,null,null,null,0]
[4114,null,null,null,null,null,null,null,null,null,0]
[4115,null,null,null,null,null,null,null,null,null,0]
[4116,null,null,null,null,null,null,null,null,null,0]
[{"$f":"A4124+1","v":4117},null,null,null,null,null,null,null,null,null,{"$f":"IF(AND(I4125=0,J4125=0),0,IF(I4125=J4125,\"Paid\",SUM(J4125-I4125)))","v":0}]
[4118,null,null,null,null,null,null,null,null,null,0]
[4119,null,null,null,null,null,null,null,null,null,0]
[4120,null,null,null,null,null,null,null,null,null,0]
[4121,null,null,null,null,null,null,null,null,null,0]
[4122,null,null,null,null,null,null,null,null,null,0]
[4123,null,null,null,null,null,null,null,null,null,0]
[4124,null,null,null,null,null,null,null,null,null,0]
[4125,null,null,null,null,null,null,null,null,null,0]
[4126,null,null,null,null,null,null,null,null,null,0]
[4127,null,null,null,null,null,null,null,null,null,0]
[4128,null,null,null,null,null,null,null,null,null,0]
[4129,null,null,null,null,null,null,null,null,null,0]
[4130,null,null,null,null,null,null,null,null,null,0]
[4131,null,null,null,null,null,null,null,null,null,0]
[4132,null,null,null,null,null,null,null,null,null,0]
[4133,null,null,null,null,null,null,null,null,null,0]
[4134,null,null,null,null,null,null,null,null,null,0]
[4135,null,null,null,null,null,null,null,null,null,0]
[4136,null,null,null,null,null,null,null,null,null,0]
[4137,null,null,null,null,null,null,null,null,null,0]
[4138,null,null,null,null,null,null,null,null,null,0]
[4139,null,null,null,null,null,null,null,null,null,0]
[4140,null,null,null,null,null,null,null,null,null,0]
[4141,null,null,null,null,null,null,null,null,null,0]
[4142,null,null,null,null,null,null,null,null,null,0]
[4143,null,null,null,null,null,null,null,null,null,0]
[4144,null,null,null,null,null,null,null,null,null,0]
[4145,null,null,null,null,null,null,null,null,null,0]
[4146,null,null,null,null,null,null,null,null,null,0]
[4147,null,null,null,null,null,null,null,null,null,0]
[4148,null,null,null,null,null,null,null,null,null,0]
[4149,null,null,null,null,null,null,null,null,null,0]
[4150,null,null,null,null,null,null,null,null,null,0]
[4151,null,null,null,null,null,null,null,null,null,0]
[4152,null,null,null,null,null,null,null,null,null,0]
[4153,null,null,null,null,null,null,null,null,null,0]
[4154,null,null,null,null,null,null,null,null,null,0]
[4155,null,null,null,null,null,null,null,null,null,0]
[4156,null,null,null,null,null,null,null,null,null,0]
[4157,null,null,null,null,null,null,null,null,null,0]
[4158,null,null,null,null,null,null,null,null,null,0]
[4159,null,null,null,null,null,null,null,null,null,0]
[4160,null,null,null,null,null,null,null,null,null,0]
[4161,null,null,null,null,null,null,null,null,null,0]
[4162,null,null,null,null,null,null,null,null,null,0]
[4163,null,null,null,null,null,null,null,null,null,0]
[4164,null,null,null,null,null,null,null,null,null,0]
[4165,null,null,null,null,null,null,null,null,null,0]
[4166,null,null,null,null,null,null,null,null,null,0]
[4167,null,null,null,null,null,null,null,null,null,0]
[4168,null,null,null,null,null,null,null,null,null,0]
[4169,null,null,null,null,null,null,null,null,null,0]
[4170,null,null,null,null,null,null,null,null,null,0]
[4171,null,null,null,null,null,null,null,null,null,0]
[4172,null,null,null,null,null,null,null,null,null,0]
[4173,null,null,null,null,null,null,null,null,null,0]
[4174,null,null,null,null,null,null,null,null,null,0]
[4175,null,null,null,null,null,null,null,null,null,0]
[4176,null,null,null,null,null,null,null,null,null,0]
[4177,null,null,null,null,null,null,null,null,null,0]
[4178,null,null,null,null,null,null,null,null,null,0]
[4179,null,null,null,null,null,null,null,null,null,0]
[4180,null,null,null,null,null,null,null,null,null,0]
[{"$f":"A4188+1","v":4181},null,null,null,null,null,null,null,null,null,{"$f":"IF(AND(I4189=0,J4189=0),0,IF(I4189=J4189,\"Paid\",SUM(J4189-I4189)))","v":0}]
[4182,null,null,null,null,null,null,null,null,null,0]
[4183,null,null,null,null,null,null,null,null,null,0]
[4184,null,null,null,null,null,null,null,null,null,0]
[4185,null,null,null,null,null,null,null,null,null,0]
[4186,null,null,null,null,null,null,null,null,null,0]
[4187,null,null,null,null,null,null,null,null,null,0]
[4188,null,null,null,null,null,null,null,null,null,0]
[4189,null,null,null,null,null,null,null,null,null,0]
[4190,null,null,null,null,null,null,null,null,null,0]
[4191,null,null,null,null,null,null,null,null,null,0]
[4192,null,null,null,null,null,null,null,null,null,0]
[4193,null,null,null,null,null,null,null,null,null,0]
[4194,null,null,null,null,null,null,null,null,null,0]
[4195,null,null,null,null,null,null,null,null,null,0]
[4196,null,null,null,null,null,null,null,null,null,0]
[4197,null,null,null,null,null,null,null,null,null,0]
[4198,null,null,null,null,null,null,null,null,null,0]
[4199,null,null,null,null,null,null,null,null,null,0]
[4200,null,null,null,null,null,null,null,null,null,0]
[4201,null,null,null,null,null,null,null,null,null,0]
[4202,null,null,null,null,null,null,null,null,null,0]
[4203,null,null,null,null,null,null,null,null,null,0]
[4204,null,null,null,null,null,null,null,null,null,0]
[4205,null,null,null,null,null,null,null,null,null,0]
[4206,null,null,null,null,null,null,null,null,null,0]
[4207,null,null,null,null,null,null,null,null,null,0]
[4208,null,null,null,null,null,null,null,null,null,0]
[4209,null,null,null,null,null,null,null,null,null,0]
[4210,null,null,null,null,null,null,null,null,null,0]
[4211,null,null,null,null,null,null,null,null,null,0]
[4212,null,null,null,null,null,null,null,null,null,0]
[4213,null,null,null,null,null,null,null,null,null,0]
[4214,null,null,null,null,null,null,null,null,null,0]
[4215,null,null,null,null,null,null,null,null,null,0]
[4216,null,null,null,null,null,null,null,null,null,0]
[4217,null,null,null,null,null,null,null,null,null,0]
[4218,null,null,null,null,null,null,null,null,null,0]
[4219,null,null,null,null,null,null,null,null,null,0]
[4220,null,null,null,null,null,null,null,null,null,0]
[4221,null,null,null,null,null,null,null,null,null,0]
[4222,null,null,null,null,null,null,null,null,null,0]
[4223,null,null,null,null,null,null,null,null,null,0]
[4224,null,null,null,null,null,null,null,null,null,0]
[4225,null,null,null,null,null,null,null,null,null,0]
[4226,null,null,null,null,null,null,null,null,null,0]
[4227,null,null,null,null,null,null,null,null,null,0]
[4228,null,null,null,null,null,null,null,null,null,0]
[4229,null,null,null,null,null,null,null,null,null,0]
[4230,null,null,null,null,null,null,null,null,null,0]
[4231,null,null,null,null,null,null,null,null,null,0]
[4232,null,null,null,null,null,null,null,null,null,0]
[4233,null,null,null,null,null,null,null,null,null,0]
[4234,null,null,null,null,null,null,null,null,null,0]
[4235,null,null,null,null,null,null,null,null,null,0]
[4236,null,null,null,null,null,null,null,null,null,0]
[4237,null,null,null,null,null,null,null,null,null,0]
[4238,null,null,null,null,null,null,null,null,null,0]
[4239,null,null,null,null,null,null,null,null,null,0]
[4240,null,null,null,null,null,null,null,null,null,0]
[4241,null,null,null,null,null,null,null,null,null,0]
[4242,null,null,null,null,null,null,null,null,null,0]
[4243,null,null,null,null,null,null,null,null,null,0]
[4244,null,null,null,null,null,null,null,null,null,0]
[{"$f":"A4252+1","v":4245},null,null,null,null,null,null,null,null,null,{"$f":"IF(AND(I4253=0,J4253=0),0,IF(I4253=J4253,\"Paid\",SUM(J4253-I4253)))","v":0}]
[4246,null,null,null,null,null,null,null,null,null,0]
[4247,null,null,null,null,null,null,null,null,null,0]
[4248,null,null,null,null,null,null,null,null,null,0]
[4249,null,null,null,null,null,null,null,null,null,0]
[4250,null,null,null,null,null,null,null,null,null,0]
[4251,null,null,null,null,null,null,null,null,null,0]
[4252,null,null,null,null,null,null,null,null,null,0]
[4253,null,null,null,null,null,null,null,null,null,0]
[4254,null,null,null,null,null,null,null,null,null,0]
[4255,null,null,null,null,null,null,null,null,null,0]
[4256,null,null,null,null,null,null,null,null,null,0]
[4257,null,null,null,null,null,null,null,null,null,0]
[4258,null,null,null,null,null,null,null,null,null,0]
[4259,null,null,null,null,null,null,null,null,null,0]
[4260,null,null,null,null,null,null,null,null,null,0]
[4261,null,null,null,null,null,null,null,null,null,0]
[4262,null,null,null,null,null,null,null,null,null,0]
[4263,null,null,null,null,null,null,null,null,null,0]
[4264,null,null,null,null,null,null,null,null,null,0]
[4265,null,null,null,null,null,null,null,null,null,0]
[4266,null,null,null,null,null,null,null,null,null,0]
[4267,null,null,null,null,null,null,null,null,null,0]
[4268,null,null,null,null,null,null,null,null,null,0]
[4269,null,null,null,null,null,null,null,null,null,0]
[4270,null,null,null,null,null,null,null,null,null,0]
[4271,null,null,null,null,null,null,null,null,null,0]
[4272,null,null,null,null,null,null,null,null,null,0]
[4273,null,null,null,null,null,null,null,null,null,0]
[4274,null,null,null,null,null,null,null,null,null,0]
[4275,null,null,null,null,null,null,null,null,null,0]
[4276,null,null,null,null,null,null,null,null,null,0]
[4277,null,null,null,null,null,null,null,null,null,0]
[4278,null,null,null,null,null,null,null,null,null,0]
[4279,null,null,null,null,null,null,null,null,null,0]
[4280,null,null,null,null,null,null,null,null,null,0]
[4281,null,null,null,null,null,null,null,null,null,0]
[4282,null,null,null,null,null,null,null,null,null,0]
[4283,null,null,null,null,null,null,null,null,null,0]
[4284,null,null,null,null,null,null,null,null,null,0]
[4285,null,null,null,null,null,null,null,null,null,0]
[4286,null,null,null,null,null,null,null,null,null,0]
[4287,null,null,null,null,null,null,null,null,null,0]
[4288,null,null,null,null,null,null,null,null,null,0]
[4289,null,null,null,null,null,null,null,null,null,0]
[4290,null,null,null,null,null,null,null,null,null,0]
[4291,null,null,null,null,null,null,null,null,null,0]
[4292,null,null,null,null,null,null,null,null,null,0]
[4293,null,null,null,null,null,null,null,null,null,0]
[4294,null,null,null,null,null,null,null,null,null,0]
[4295,null,null,null,null,null,null,null,null,null,0]
[4296,null,null,null,null,null,null,null,null,null,0]
[4297,null,null,null,null,null,null,null,null,null,0]
[4298,null,null,null,null,null,null,null,null,null,0]
[4299,null,null,null,null,null,null,null,null,null,0]
[4300,null,null,null,null,null,null,null,null,null,0]
[4301,null,null,null,null,null,null,null,null,null,0]
[4302,null,null,null,null,null,null,null,null,null,0]
[4303,null,null,null,null,null,null,null,null,null,0]
[4304,null,null,null,null,null,null,null,null,null,0]
[4305,null,null,null,null,null,null,null,null,null,0]
[4306,null,null,null,null,null,null,null,null,null,0]
[4307,null,null,null,null,null,null,null,null,null,0]
[4308,null,null,null,null,null,null,null,null,null,0]
[{"$f":"A4316+1","v":4309},null,null,null,null,null,null,null,null,null,{"$f":"IF(AND(I4317=0,J4317=0),0,IF(I4317=J4317,\"Paid\",SUM(J4317-I4317)))","v":0}]
[4310,null,null,null,null,null,null,null,null,null,0]
[4311,null,null,null,null,null,null,null,null,null,0]
[4312,null,null,null,null,null,null,null,null,null,0]
[4313,null,null,null,null,null,null,null,null,null,0]
[4314,null,null,null,null,null,null,null,null,null,0]
[4315,null,null,null,null,null,null,null,null,null,0]
[4316,null,null,null,null,null,null,null,null,null,0]
[4317,null,null,null,null,null,null,null,null,null,0]
[4318,null,null,null,null,null,null,null,null,null,0]
[4319,null,null,null,null,null,null,null,null,null,0]
[4320,null,null,null,null,null,null,null,null,null,0]
[4321,null,null,null,null,null,null,null,null,null,0]
[4322,null,null,null,null,null,null,null,null,null,0]
[4323,null,null,null,null,null,null,null,null,null,0]
[4324,null,null,null,null,null,null,null,null,null,0]
[4325,null,null,null,null,null,null,null,null,null,0]
[4326,null,null,null,null,null,null,null,null,null,0]
[4327,null,null,null,null,null,null,null,null,null,0]
[4328,null,null,null,null,null,null,null,null,null,0]
[4329,null,null,null,null,null,null,null,null,null,0]
[4330,null,null,null,null,null,null,null,null,null,0]
[4331,null,null,null,null,null,null,null,null,null,0]
[4332,null,null,null,null,null,null,null,null,null,0]
[4333,null,null,null,null,null,null,null,null,null,0]
[4334,null,null,null,null,null,null,null,null,null,0]
[4335,null,null,null,null,null,null,null,null,null,0]
[4336,null,null,null,null,null,null,null,null,null,0]
[4337,null,null,null,null,null,null,null,null,null,0]
[4338,null,null,null,null,null,null,null,null,null,0]
[4339,null,null,null,null,null,null,null,null,null,0]
[4340,null,null,null,null,null,null,null,null,null,0]
[4341,null,null,null,null,null,null,null,null,null,0]
[4342,null,null,null,null,null,null,null,null,null,0]
[4343,null,null,null,null,null,null,null,null,null,0]
[4344,null,null,null,null,null,null,null,null,null,0]
[4345,null,null,null,null,null,null,null,null,null,0]
[4346,null,null,null,null,null,null,null,null,null,0]
[4347,null,null,null,null,null,null,null,null,null,0]
[4348,null,null,null,null,null,null,null,null,null,0]
[4349,null,null,null,null,null,null,null,null,null,0]
[4350,null,null,null,null,null,null,null,null,null,0]
[4351,null,null,null,null,null,null,null,null,null,0]
[4352,null,null,null,null,null,null,null,null,null,0]
[4353,null,null,null,null,null,null,null,null,null,0]
[4354,null,null,null,null,null,null,null,null,null,0]
[4355,null,null,null,null,null,null,null,null,null,0]
[4356,null,null,null,null,null,null,null,null,null,0]
[4357,null,null,null,null,null,null,null,null,null,0]
[4358,null,null,null,null,null,null,null,null,null,0]
[4359,null,null,null,null,null,null,null,null,null,0]
[4360,null,null,null,null,null,null,null,null,null,0]
[4361,null,null,null,null,null,null,null,null,null,0]
[4362,null,null,null,null,null,null,null,null,null,0]
[4363,null,null,null,null,null,null,null,null,null,0]
[4364,null,null,null,null,null,null,null,null,null,0]
[4365,null,null,null,null,null,null,null,null,null,0]
[4366,null,null,null,null,null,null,null,null,null,0]
[4367,null,null,null,null,null,null,null,null,null,0]
[4368,null,null,null,null,null,null,null,null,null,0]
[4369,null,null,null,null,null,null,null,null,null,0]
[4370,null,null,null,null,null,null,null,null,null,0]
[4371,null,null,null,null,null,null,null,null,null,0]
[4372,null,null,null,null,null,null,null,null,null,0]
[{"$f":"A4380+1","v":4373},null,null,null,null,null,null,null,null,null,{"$f":"IF(AND(I4381=0,J4381=0),0,IF(I4381=J4381,\"Paid\",SUM(J4381-I4381)))","v":0}]
[4374,null,null,null,null,null,null,null,null,null,0]
[4375,null,null,null,null,null,null,null,null,null,0]
[4376,null,null,null,null,null,null,null,null,null,0]
[4377,null,null,null,null,null,null,null,null,null,0]
[4378,null,null,null,null,null,null,null,null,null,0]
[4379,null,null,null,null,null,null,null,null,null,0]
[4380,null,null,null,null,null,null,null,null,null,0]
[4381,null,null,null,null,null,null,null,null,null,0]
[4382,null,null,null,null,null,null,null,null,null,0]
[4383,null,null,null,null,null,null,null,null,null,0]
[4384,null,null,null,null,null,null,null,null,null,0]
[4385,null,null,null,null,null,null,null,null,null,0]
[4386,null,null,null,null,null,null,null,null,null,0]
[4387,null,null,null,null,null,null,null,null,null,0]
[4388,null,null,null,null,null,null,null,null,null,0]
[4389,null,null,null,null,null,null,null,null,null,0]
[4390,null,null,null,null,null,null,null,null,null,0]
[4391,null,null,null,null,null,null,null,null,null,0]
[4392,null,null,null,null,null,null,null,null,null,0]
[4393,null,null,null,null,null,null,null,null,null,0]
[4394,null,null,null,null,null,null,null,null,null,0]
[4395,null,null,null,null,null,null,null,null,null,0]
[4396,null,null,null,null,null,null,null,null,null,0]
[4397,null,null,null,null,null,null,null,null,null,0]
[4398,null,null,null,null,null,null,null,null,null,0]
[4399,null,null,null,null,null,null,null,null,null,0]
[4400,null,null,null,null,null,null,null,null,null,0]
[4401,null,null,null,null,null,null,null,null,null,0]
[4402,null,null,null,null,null,null,null,null,null,0]
[4403,null,null,null,null,null,null,null,null,null,0]
[4404,null,null,null,null,null,null,null,null,null,0]
[4405,null,null,null,null,null,null,null,null,null,0]
[4406,null,null,null,null,null,null,null,null,null,0]
[4407,null,null,null,null,null,null,null,null,null,0]
[4408,null,null,null,null,null,null,null,null,null,0]
[4409,null,null,null,null,null,null,null,null,null,0]
[4410,null,null,null,null,null,null,null,null,null,0]
[4411,null,null,null,null,null,null,null,null,null,0]
[4412,null,null,null,null,null,null,null,null,null,0]
[4413,null,null,null,null,null,null,null,null,null,0]
[4414,null,null,null,null,null,null,null,null,null,0]
[4415,null,null,null,null,null,null,null,null,null,0]
[4416,null,null,null,null,null,null,null,null,null,0]
[4417,null,null,null,null,null,null,null,null,null,0]
[4418,null,null,null,null,null,null,null,null,null,0]
[4419,null,null,null,null,null,null,null,null,null,0]
[4420,null,null,null,null,null,null,null,null,null,0]
[4421,null,null,null,null,null,null,null,null,null,0]
[4422,null,null,null,null,null,null,null,null,null,0]
[4423,null,null,null,null,null,null,null,null,null,0]
[4424,null,null,null,null,null,null,null,null,null,0]
[4425,null,null,null,null,null,null,null,null,null,0]
[4426,null,null,null,null,null,null,null,null,null,0]
[4427,null,null,null,null,null,null,null,null,null,0]
[4428,null,null,null,null,null,null,null,null,null,0]
[4429,null,null,null,null,null,null,null,null,null,0]
[4430,null,null,null,null,null,null,null,null,null,0]
[4431,null,null,null,null,null,null,null,null,null,0]
[4432,null,null,null,null,null,null,null,null,null,0]
[4433,null,null,null,null,null,null,null,null,null,0]
[4434,null,null,null,null,null,null,null,null,null,0]
[4435,null,null,null,null,null,null,null,null,null,0]
[4436,null,null,null,null,null,null,null,null,null,0]
[{"$f":"A4444+1","v":4437},null,null,null,null,null,null,null,null,null,{"$f":"IF(AND(I4445=0,J4445=0),0,IF(I4445=J4445,\"Paid\",SUM(J4445-I4445)))","v":0}]
[4438,null,null,null,null,null,null,null,null,null,0]
[4439,null,null,null,null,null,null,null,null,null,0]
[4440,null,null,null,null,null,null,null,null,null,0]
[4441,null,null,null,null,null,null,null,null,null,0]
[4442,null,null,null,null,null,null,null,null,null,0]
[4443,null,null,null,null,null,null,null,null,null,0]
[4444,null,null,null,null,null,null,null,null,null,0]
[4445,null,null,null,null,null,null,null,null,null,0]
[4446,null,null,null,null,null,null,null,null,null,0]
[4447,null,null,null,null,null,null,null,null,null,0]
[4448,null,null,null,null,null,null,null,null,null,0]
[4449,null,null,null,null,null,null,null,null,null,0]
[4450,null,null,null,null,null,null,null,null,null,0]
[4451,null,null,null,null,null,null,null,null,null,0]
[4452,null,null,null,null,null,null,null,null,null,0]
[4453,null,null,null,null,null,null,null,null,null,0]
[4454,null,null,null,null,null,null,null,null,null,0]
[4455,null,null,null,null,null,null,null,null,null,0]
[4456,null,null,null,null,null,null,null,null,null,0]
[4457,null,null,null,null,null,null,null,null,null,0]
[4458,null,null,null,null,null,null,null,null,null,0]
[4459,null,null,null,null,null,null,null,null,null,0]
[4460,null,null,null,null,null,null,null,null,null,0]
[4461,null,null,null,null,null,null,null,null,null,0]
[4462,null,null,null,null,null,null,null,null,null,0]
[4463,null,null,null,null,null,null,null,null,null,0]
[4464,null,null,null,null,null,null,null,null,null,0]
[4465,null,null,null,null,null,null,null,null,null,0]
[4466,null,null,null,null,null,null,null,null,null,0]
[4467,null,null,null,null,null,null,null,null,null,0]
[4468,null,null,null,null,null,null,null,null,null,0]
[4469,null,null,null,null,null,null,null,null,null,0]
[4470,null,null,null,null,null,null,null,null,null,0]
[4471,null,null,null,null,null,null,null,null,null,0]
[4472,null,null,null,null,null,null,null,null,null,0]
[4473,null,null,null,null,null,null,null,null,null,0]
[4474,null,null,null,null,null,null,null,null,null,0]
[4475,null,null,null,null,null,null,null,null,null,0]
[4476,null,null,null,null,null,null,null,null,null,0]
[4477,null,null,null,null,null,null,null,null,null,0]
[4478,null,null,null,null,null,null,null,null,null,0]
[4479,null,null,null,null,null,null,null,null,null,0]
[4480,null,null,null,null,null,null,null,null,null,0]
[4481,null,null,null,null,null,null,null,null,null,0]
[4482,null,null,null,null,null,null,null,null,null,0]
[4483,null,null,null,null,null,null,null,null,null,0]
[4484,null,null,null,null,null,null,null,null,null,0]
[4485,null,null,null,null,null,null,null,null,null,0]
[4486,null,null,null,null,null,null,null,null,null,0]
[4487,null,null,null,null,null,null,null,null,null,0]
[4488,null,null,null,null,null,null,null,null,null,0]
[4489,null,null,null,null,null,null,null,null,null,0]
[4490,null,null,null,null,null,null,null,null,null,0]
[4491,null,null,null,null,null,null,null,null,null,0]
[4492,null,null,null,null,null,null,null,null,null,0]
[4493,null,null,null,null,null,null,null,null,null,0]
[4494,null,null,null,null,null,null,null,null,null,0]
[4495,null,null,null,null,null,null,null,null,null,0]
[4496,null,null,null,null,null,null,null,null,null,0]
[4497,null,null,null,null,null,null,null,null,null,0]
[4498,null,null,null,null,null,null,null,null,null,0]
[4499,null,null,null,null,null,null,null,null,null,0]
[4500,null,null,null,null,null,null,null,null,null,0]
[{"$f":"A4508+1","v":4501},null,null,null,null,null,null,null,null,null,{"$f":"IF(AND(I4509=0,J4509=0),0,IF(I4509=J4509,\"Paid\",SUM(J4509-I4509)))","v":0}]
[4502,null,null,null,null,null,null,null,null,null,0]
[4503,null,null,null,null,null,null,null,null,null,0]
[4504,null,null,null,null,null,null,null,null,null,0]
[4505,null,null,null,null,null,null,null,null,null,0]
[4506,null,null,null,null,null,null,null,null,null,0]
[4507,null,null,null,null,null,null,null,null,null,0]
[4508,null,null,null,null,null,null,null,null,null,0]
[4509,null,null,null,null,null,null,null,null,null,0]
[4510,null,null,null,null,null,null,null,null,null,0]
[4511,null,null,null,null,null,null,null,null,null,0]
[4512,null,null,null,null,null,null,null,null,null,0]
[4513,null,null,null,null,null,null,null,null,null,0]
[4514,null,null,null,null,null,null,null,null,null,0]
[4515,null,null,null,null,null,null,null,null,null,0]
[4516,null,null,null,null,null,null,null,null,null,0]
[4517,null,null,null,null,null,null,null,null,null,0]
[4518,null,null,null,null,null,null,null,null,null,0]
[4519,null,null,null,null,null,null,null,null,null,0]
[4520,null,null,null,null,null,null,null,null,null,0]
[4521,null,null,null,null,null,null,null,null,null,0]
[4522,null,null,null,null,null,null,null,null,null,0]
[4523,null,null,null,null,null,null,null,null,null,0]
[4524,null,null,null,null,null,null,null,null,null,0]
[4525,null,null,null,null,null,null,null,null,null,0]
[4526,null,null,null,null,null,null,null,null,null,0]
[4527,null,null,null,null,null,null,null,null,null,0]
[4528,null,null,null,null,null,null,null,null,null,0]
[4529,null,null,null,null,null,null,null,null,null,0]
[4530,null,null,null,null,null,null,null,null,null,0]
[4531,null,null,null,null,null,null,null,null,null,0]
[4532,null,null,null,null,null,null,null,null,null,0]
[4533,null,null,null,null,null,null,null,null,null,0]
[4534,null,null,null,null,null,null,null,null,null,0]
[4535,null,null,null,null,null,null,null,null,null,0]
[4536,null,null,null,null,null,null,null,null,null,0]
[4537,null,null,null,null,null,null,null,null,null,0]
[4538,null,null,null,null,null,null,null,null,null,0]
[4539,null,null,null,null,null,null,null,null,null,0]
[4540,null,null,null,null,null,null,null,null,null,0]
[4541,null,null,null,null,null,null,null,null,null,0]
[4542,null,null,null,null,null,null,null,null,null,0]
[4543,null,null,null,null,null,null,null,null,null,0]
[4544,null,null,null,null,null,null,null,null,null,0]
[4545,null,null,null,null,null,null,null,null,null,0]
[4546,null,null,null,null,null,null,null,null,null,0]
[4547,null,null,null,null,null,null,null,null,null,0]
[4548,null,null,null,null,null,null,null,null,null,0]
[4549,null,null,null,null,null,null,null,null,null,0]
[4550,null,null,null,null,null,null,null,null,null,0]
[4551,null,null,null,null,null,null,null,null,null,0]
[4552,null,null,null,null,null,null,null,null,null,0]
[4553,null,null,null,null,null,null,null,null,null,0]
[4554,null,null,null,null,null,null,null,null,null,0]
[4555,null,null,null,null,null,null,null,null,null,0]
[4556,null,null,null,null,null,null,null,null,null,0]
[4557,null,null,null,null,null,null,null,null,null,0]
[4558,null,null,null,null,null,null,null,null,null,0]
[4559,null,null,null,null,null,null,null,null,null,0]
[4560,null,null,null,null,null,null,null,null,null,0]
[4561,null,null,null,null,null,null,null,null,null,0]
[4562,null,null,null,null,null,null,null,null,null,0]
[4563,null,null,null,null,null,null,null,null,null,0]
[4564,null,null,null,null,null,null,null,null,null,0]
[{"$f":"A4572+1","v":4565},null,null,null,null,null,null,null,null,null,{"$f":"IF(AND(I4573=0,J4573=0),0,IF(I4573=J4573,\"Paid\",SUM(J4573-I4573)))","v":0}]
[4566,null,null,null,null,null,null,null,null,null,0]
[4567,null,null,null,null,null,null,null,null,null,0]
[4568,null,null,null,null,null,null,null,null,null,0]
[4569,null,null,null,null,null,null,null,null,null,0]
[4570,null,null,null,null,null,null,null,null,null,0]
[4571,null,null,null,null,null,null,null,null,null,0]
[4572,null,null,null,null,null,null,null,null,null,0]
[4573,null,null,null,null,null,null,null,null,null,0]
[4574,null,null,null,null,null,null,null,null,null,0]
[4575,null,null,null,null,null,null,null,null,null,0]
[4576,null,null,null,null,null,null,null,null,null,0]
[4577,null,null,null,null,null,null,null,null,null,0]
[4578,null,null,null,null,null,null,null,null,null,0]
[4579,null,null,null,null,null,null,null,null,null,0]
[4580,null,null,null,null,null,null,null,null,null,0]
[4581,null,null,null,null,null,null,null,null,null,0]
[4582,null,null,null,null,null,null,null,null,null,0]
[4583,null,null,null,null,null,null,null,null,null,0]
[4584,null,null,null,null,null,null,null,null,null,0]
[4585,null,null,null,null,null,null,null,null,null,0]
[4586,null,null,null,null,null,null,null,null,null,0]
[4587,null,null,null,null,null,null,null,null,null,0]
[4588,null,null,null,null,null,null,null,null,null,0]
[4589,null,null,null,null,null,null,null,null,null,0]
[4590,null,null,null,null,null,null,null,null,null,0]
[4591,null,null,null,null,null,null,null,null,null,0]
[4592,null,null,null,null,null,null,null,null,null,0]
[4593,null,null,null,null,null,null,null,null,null,0]
[4594,null,null,null,null,null,null,null,null,null,0]
[4595,null,null,null,null,null,null,null,null,null,0]
[4596,null,null,null,null,null,null,null,null,null,0]
[4597,null,null,null,null,null,null,null,null,null,0]
[4598,null,null,null,null,null,null,null,null,null,0]
[4599,null,null,null,null,null,null,null,null,null,0]
[4600,null,null,null,null,null,null,null,null,null,0]
[4601,null,null,null,null,null,null,null,null,null,0]
[4602,null,null,null,null,null,null,null,null,null,0]
[4603,null,null,null,null,null,null,null,null,null,0]
[4604,null,null,null,null,null,null,null,null,null,0]
[4605,null,null,null,null,null,null,null,null,null,0]
[4606,null,null,null,null,null,null,null,null,null,0]
[4607,null,null,null,null,null,null,null,null,null,0]
[4608,null,null,null,null,null,null,null,null,null,0]
[4609,null,null,null,null,null,null,null,null,null,0]
[4610,null,null,null,null,null,null,null,null,null,0]
[4611,null,null,null,null,null,null,null,null,null,0]
[4612,null,null,null,null,null,null,null,null,null,0]
[4613,null,null,null,null,null,null,null,null,null,0]
[4614,null,null,null,null,null,null,null,null,null,0]
[4615,null,null,null,null,null,null,null,null,null,0]
[4616,null,null,null,null,null,null,null,null,null,0]
[4617,null,null,null,null,null,null,null,null,null,0]
[4618,null,null,null,null,null,null,null,null,null,0]
[4619,null,null,null,null,null,null,null,null,null,0]
[4620,null,null,null,null,null,null,null,null,null,0]
[4621,null,null,null,null,null,null,null,null,null,0]
[4622,null,null,null,null,null,null,null,null,null,0]
[4623,null,null,null,null,null,null,null,null,null,0]
[4624,null,null,null,null,null,null,null,null,null,0]
[4625,null,null,null,null,null,null,null,null,null,0]
[4626,null,null,null,null,null,null,null,null,null,0]
[4627,null,null,null,null,null,null,null,null,null,0]
[4628,null,null,null,null,null,null,null,null,null,0]
[{"$f":"A4636+1","v":4629},null,null,null,null,null,null,null,null,null,{"$f":"IF(AND(I4637=0,J4637=0),0,IF(I4637=J4637,\"Paid\",SUM(J4637-I4637)))","v":0}]
[4630,null,null,null,null,null,null,null,null,null,0]
[4631,null,null,null,null,null,null,null,null,null,0]
[4632,null,null,null,null,null,null,null,null,null,0]
[4633,null,null,null,null,null,null,null,null,null,0]
[4634,null,null,null,null,null,null,null,null,null,0]
[4635,null,null,null,null,null,null,null,null,null,0]
[4636,null,null,null,null,null,null,null,null,null,0]
[4637,null,null,null,null,null,null,null,null,null,0]
[4638,null,null,null,null,null,null,null,null,null,0]
[4639,null,null,null,null,null,null,null,null,null,0]
[4640,null,null,null,null,null,null,null,null,null,0]
[4641,null,null,null,null,null,null,null,null,null,0]
[4642,null,null,null,null,null,null,null,null,null,0]
[4643,null,null,null,null,null,null,null,null,null,0]
[4644,null,null,null,null,null,null,null,null,null,0]
[4645,null,null,null,null,null,null,null,null,null,0]
[4646,null,null,null,null,null,null,null,null,null,0]
[4647,null,null,null,null,null,null,null,null,null,0]
[4648,null,null,null,null,null,null,null,null,null,0]
[4649,null,null,null,null,null,null,null,null,null,0]
[4650,null,null,null,null,null,null,null,null,null,0]
[4651,null,null,null,null,null,null,null,null,null,0]
[4652,null,null,null,null,null,null,null,null,null,0]
[4653,null,null,null,null,null,null,null,null,null,0]
[4654,null,null,null,null,null,null,null,null,null,0]
[4655,null,null,null,null,null,null,null,null,null,0]
[4656,null,null,null,null,null,null,null,null,null,0]
[4657,null,null,null,null,null,null,null,null,null,0]
[4658,null,null,null,null,null,null,null,null,null,0]
[4659,null,null,null,null,null,null,null,null,null,0]
[4660,null,null,null,null,null,null,null,null,null,0]
[4661,null,null,null,null,null,null,null,null,null,0]
[4662,null,null,null,null,null,null,null,null,null,0]
[4663,null,null,null,null,null,null,null,null,null,0]
[4664,null,null,null,null,null,null,null,null,null,0]
[4665,null,null,null,null,null,null,null,null,null,0]
[4666,null,null,null,null,null,null,null,null,null,0]
[4667,null,null,null,null,null,null,null,null,null,0]
[4668,null,null,null,null,null,null,null,null,null,0]
[4669,null,null,null,null,null,null,null,null,null,0]
[4670,null,null,null,null,null,null,null,null,null,0]
[4671,null,null,null,null,null,null,null,null,null,0]
[4672,null,null,null,null,null,null,null,null,null,0]
[4673,null,null,null,null,null,null,null,null,null,0]
[4674,null,null,null,null,null,null,null,null,null,0]
[4675,null,null,null,null,null,null,null,null,null,0]
[4676,null,null,null,null,null,null,null,null,null,0]
[4677,null,null,null,null,null,null,null,null,null,0]
[4678,null,null,null,null,null,null,null,null,null,0]
[4679,null,null,null,null,null,null,null,null,null,0]
[4680,null,null,null,null,null,null,null,null,null,0]
[4681,null,null,null,null,null,null,null,null,null,0]
[4682,null,null,null,null,null,null,null,null,null,0]
[4683,null,null,null,null,null,null,null,null,null,0]
[4684,null,null,null,null,null,null,null,null,null,0]
[4685,null,null,null,null,null,null,null,null,null,0]
[4686,null,null,null,null,null,null,null,null,null,0]
[4687,null,null,null,null,null,null,null,null,null,0]
[4688,null,null,null,null,null,null,null,null,null,0]
[4689,null,null,null,null,null,null,null,null,null,0]
[4690,null,null,null,null,null,null,null,null,null,0]
[4691,null,null,null,null,null,null,null,null,null,0]
[4692,null,null,null,null,null,null,null,null,null,0]
[{"$f":"A4700+1","v":4693},null,null,null,null,null,null,null,null,null,{"$f":"IF(AND(I4701=0,J4701=0),0,IF(I4701=J4701,\"Paid\",SUM(J4701-I4701)))","v":0}]
[4694,null,null,null,null,null,null,null,null,null,0]
[4695,null,null,null,null,null,null,null,null,null,0]
[4696,null,null,null,null,null,null,null,null,null,0]
[4697,null,null,null,null,null,null,null,null,null,0]
[4698,null,null,null,null,null,null,null,null,null,0]
[4699,null,null,null,null,null,null,null,null,null,0]
[4700,null,null,null,null,null,null,null,null,null,0]
[4701,null,null,null,null,null,null,null,null,null,0]
[4702,null,null,null,null,null,null,null,null,null,0]
[4703,null,null,null,null,null,null,null,null,null,0]
[4704,null,null,null,null,null,null,null,null,null,0]
[4705,null,null,null,null,null,null,null,null,null,0]
[4706,null,null,null,null,null,null,null,null,null,0]
[4707,null,null,null,null,null,null,null,null,null,0]
[4708,null,null,null,null,null,null,null,null,null,0]
[4709,null,null,null,null,null,null,null,null,null,0]
[4710,null,null,null,null,null,null,null,null,null,0]
[4711,null,null,null,null,null,null,null,null,null,0]
[4712,null,null,null,null,null,null,null,null,null,0]
[4713,null,null,null,null,null,null,null,null,null,0]
[4714,null,null,null,null,null,null,null,null,null,0]
[4715,null,null,null,null,null,null,null,null,null,0]
[4716,null,null,null,null,null,null,null,null,null,0]
[4717,null,null,null,null,null,null,null,null,null,0]
[4718,null,null,null,null,null,null,null,null,null,0]
[4719,null,null,null,null,null,null,null,null,null,0]
[4720,null,null,null,null,null,null,null,null,null,0]
[4721,null,null,null,null,null,null,null,null,null,0]
[4722,null,null,null,null,null,null,null,null,null,0]
[4723,null,null,null,null,null,null,null,null,null,0]
[4724,null,null,null,null,null,null,null,null,null,0]
[4725,null,null,null,null,null,null,null,null,null,0]
[4726,null,null,null,null,null,null,null,null,null,0]
[4727,null,null,null,null,null,null,null,null,null,0]
[4728,null,null,null,null,null,null,null,null,null,0]
[4729,null,null,null,null,null,null,null,null,null,0]
[4730,null,null,null,null,null,null,null,null,null,0]
[4731,null,null,null,null,null,null,null,null,null,0]
[4732,null,null,null,null,null,null,null,null,null,0]
[4733,null,null,null,null,null,null,null,null,null,0]
[4734,null,null,null,null,null,null,null,null,null,0]
[4735,null,null,null,null,null,null,null,null,null,0]
[4736,null,null,null,null,null,null,null,null,null,0]
[4737,null,null,null,null,null,null,null,null,null,0]
[4738,null,null,null,null,null,null,null,null,null,0]
[4739,null,null,null,null,null,null,null,null,null,0]
[4740,null,null,null,null,null,null,null,null,null,0]
[4741,null,null,null,null,null,null,null,null,null,0]
[4742,null,null,null,null,null,null,null,null,null,0]
[4743,null,null,null,null,null,null,null,null,null,0]
[4744,null,null,null,null,null,null,null,null,null,0]
[4745,null,null,null,null,null,null,null,null,null,0]
[4746,null,null,null,null,null,null,null,null,null,0]
[4747,null,null,null,null,null,null,null,null,null,0]
[4748,null,null,null,null,null,null,null,null,null,0]
[4749,null,null,null,null,null,null,null,null,null,0]
[4750,null,null,null,null,null,null,null,null,null,0]
[4751,null,null,null,null,null,null,null,null,null,0]
[4752,null,null,null,null,null,null,null,null,null,0]
[4753,null,null,null,null,null,null,null,null,null,0]
[4754,null,null,null,null,null,null,null,null,null,0]
[4755,null,null,null,null,null,null,null,null,null,0]
[4756,null,null,null,null,null,null,null,null,null,0]
[{"$f":"A4764+1","v":4757},null,null,null,null,null,null,null,null,null,{"$f":"IF(AND(I4765=0,J4765=0),0,IF(I4765=J4765,\"Paid\",SUM(J4765-I4765)))","v":0}]
[4758,null,null,null,null,null,null,null,null,null,0]
[4759,null,null,null,null,null,null,null,null,null,0]
[4760,null,null,null,null,null,null,null,null,null,0]
[4761,null,null,null,null,null,null,null,null,null,0]
[4762,null,null,null,null,null,null,null,null,null,0]
[4763,null,null,null,null,null,null,null,null,null,0]
[4764,null,null,null,null,null,null,null,null,null,0]
[4765,null,null,null,null,null,null,null,null,null,0]
[4766,null,null,null,null,null,null,null,null,null,0]
[4767,null,null,null,null,null,null,null,null,null,0]
[4768,null,null,null,null,null,null,null,null,null,0]
[4769,null,null,null,null,null,null,null,null,null,0]
[4770,null,null,null,null,null,null,null,null,null,0]
[4771,null,null,null,null,null,null,null,null,null,0]
[4772,null,null,null,null,null,null,null,null,null,0]
[4773,null,null,null,null,null,null,null,null,null,0]
[4774,null,null,null,null,null,null,null,null,null,0]
[4775,null,null,null,null,null,null,null,null,null,0]
[4776,null,null,null,null,null,null,null,null,null,0]
[4777,null,null,null,null,null,null,null,null,null,0]
[4778,null,null,null,null,null,null,null,null,null,0]
[4779,null,null,null,null,null,null,null,null,null,0]
[4780,null,null,null,null,null,null,null,null,null,0]
[4781,null,null,null,null,null,null,null,null,null,0]
[4782,null,null,null,null,null,null,null,null,null,0]
[4783,null,null,null,null,null,null,null,null,null,0]
[4784,null,null,null,null,null,null,null,null,null,0]
[4785,null,null,null,null,null,null,null,null,null,0]
[4786,null,null,null,null,null,null,null,null,null,0]
[4787,null,null,null,null,null,null,null,null,null,0]
[4788,null,null,null,null,null,null,null,null,null,0]
[4789,null,null,null,null,null,null,null,null,null,0]
[4790,null,null,null,null,null,null,null,null,null,0]
[4791,null,null,null,null,null,null,null,null,null,0]
[4792,null,null,null,null,null,null,null,null,null,0]
[4793,null,null,null,null,null,null,null,null,null,0]
[4794,null,null,null,null,null,null,null,null,null,0]
[4795,null,null,null,null,null,null,null,null,null,0]
[4796,null,null,null,null,null,null,null,null,null,0]
[4797,null,null,null,null,null,null,null,null,null,0]
[4798,null,null,null,null,null,null,null,null,null,0]
[4799,null,null,null,null,null,null,null,null,null,0]
[4800,null,null,null,null,null,null,null,null,null,0]
[4801,null,null,null,null,null,null,null,null,null,0]
[4802,null,null,null,null,null,null,null,null,null,0]
[4803,null,null,null,null,null,null,null,null,null,0]
[4804,null,null,null,null,null,null,null,null,null,0]
[4805,null,null,null,null,null,null,null,null,null,0]
[4806,null,null,null,null,null,null,null,null,null,0]
[4807,null,null,null,null,null,null,null,null,null,0]
[4808,null,null,null,null,null,null,null,null,null,0]
[4809,null,null,null,null,null,null,null,null,null,0]
[4810,null,null,null,null,null,null,null,null,null,0]
[4811,null,null,null,null,null,null,null,null,null,0]
[4812,null,null,null,null,null,null,null,null,null,0]
[4813,null,null,null,null,null,null,null,null,null,0]
[4814,null,null,null,null,null,null,null,null,null,0]
[4815,null,null,null,null,null,null,null,null,null,0]
[4816,null,null,null,null,null,null,null,null,null,0]
[4817,null,null,null,null,null,null,null,null,null,0]
[4818,null,null,null,null,null,null,null,null,null,0]
[4819,null,null,null,null,null,null,null,null,null,0]
[4820,null,null,null,null,null,null,null,null,null,0]
[{"$f":"A4828+1","v":4821},null,null,null,null,null,null,null,null,null,{"$f":"IF(AND(I4829=0,J4829=0),0,IF(I4829=J4829,\"Paid\",SUM(J4829-I4829)))","v":0}]
[4822,null,null,null,null,null,null,null,null,null,0]
[4823,null,null,null,null,null,null,null,null,null,0]
[4824,null,null,null,null,null,null,null,null,null,0]
[4825,null,null,null,null,null,null,null,null,null,0]
[4826,null,null,null,null,null,null,null,null,null,0]
[4827,null,null,null,null,null,null,null,null,null,0]
[4828,null,null,null,null,null,null,null,null,null,0]
[4829,null,null,null,null,null,null,null,null,null,0]
[4830,null,null,null,null,null,null,null,null,null,0]
[4831,null,null,null,null,null,null,null,null,null,0]
[4832,null,null,null,null,null,null,null,null,null,0]
[4833,null,null,null,null,null,null,null,null,null,0]
[4834,null,null,null,null,null,null,null,null,null,0]
[4835,null,null,null,null,null,null,null,null,null,0]
[4836,null,null,null,null,null,null,null,null,null,0]
[4837,null,null,null,null,null,null,null,null,null,0]
[4838,null,null,null,null,null,null,null,null,null,0]
[4839,null,null,null,null,null,null,null,null,null,0]
[4840,null,null,null,null,null,null,null,null,null,0]
[4841,null,null,null,null,null,null,null,null,null,0]
[4842,null,null,null,null,null,null,null,null,null,0]
[4843,null,null,null,null,null,null,null,null,null,0]
[4844,null,null,null,null,null,null,null,null,null,0]
[4845,null,null,null,null,null,null,null,null,null,0]
[4846,null,null,null,null,null,null,null,null,null,0]
[4847,null,null,null,null,null,null,null,null,null,0]
[4848,null,null,null,null,null,null,null,null,null,0]
[4849,null,null,null,null,null,null,null,null,null,0]
[4850,null,null,null,null,null,null,null,null,null,0]
[4851,null,null,null,null,null,null,null,null,null,0]
[4852,null,null,null,null,null,null,null,null,null,0]
[4853,null,null,null,null,null,null,null,null,null,0]
[4854,null,null,null,null,null,null,null,null,null,0]
[4855,null,null,null,null,null,null,null,null,null,0]
[4856,null,null,null,null,null,null,null,null,null,0]
[4857,null,null,null,null,null,null,null,null,null,0]
[4858,null,null,null,null,null,null,null,null,null,0]
[4859,null,null,null,null,null,null,null,null,null,0]
[4860,null,null,null,null,null,null,null,null,null,0]
[4861,null,null,null,null,null,null,null,null,null,0]
[4862,null,null,null,null,null,null,null,null,null,0]
[4863,null,null,null,null,null,null,null,null,null,0]
[4864,null,null,null,null,null,null,null,null,null,0]
[4865,null,null,null,null,null,null,null,null,null,0]
[4866,null,null,null,null,null,null,null,null,null,0]
[4867,null,null,null,null,null,null,null,null,null,0]
[4868,null,null,null,null,null,null,null,null,null,0]
[4869,null,null,null,null,null,null,null,null,null,0]
[4870,null,null,null,null,null,null,null,null,null,0]
[4871,null,null,null,null,null,null,null,null,null,0]
[4872,null,null,null,null,null,null,null,null,null,0]
[4873,null,null,null,null,null,null,null,null,null,0]
[4874,null,null,null,null,null,null,null,null,null,0]
[4875,null,null,null,null,null,null,null,null,null,0]
[4876,null,null,null,null,null,null,null,null,null,0]
[4877,null,null,null,null,null,null,null,null,null,0]
[4878,null,null,null,null,null,null,null,null,null,0]
[4879,null,null,null,null,null,null,null,null,null,0]
[4880,null,null,null,null,null,null,null,null,null,0]
[4881,null,null,null,null,null,null,null,null,null,0]
[4882,null,null,null,null,null,null,null,null,null,0]
[4883,null,null,null,null,null,null,null,null,null,0]
[4884,null,null,null,null,null,null,null,null,null,0]
[{"$f":"A4892+1","v":4885},null,null,null,null,null,null,null,null,null,{"$f":"IF(AND(I4893=0,J4893=0),0,IF(I4893=J4893,\"Paid\",SUM(J4893-I4893)))","v":0}]
[4886,null,null,null,null,null,null,null,null,null,0]
[4887,null,null,null,null,null,null,null,null,null,0]
[4888,null,null,null,null,null,null,null,null,null,0]
[4889,null,null,null,null,null,null,null,null,null,0]
[4890,null,null,null,null,null,null,null,null,null,0]
[4891,null,null,null,null,null,null,null,null,null,0]
[4892,null,null,null,null,null,null,null,null,null,0]
[4893,null,null,null,null,null,null,null,null,null,0]
[4894,null,null,null,null,null,null,null,null,null,0]
[4895,null,null,null,null,null,null,null,null,null,0]
[4896,null,null,null,null,null,null,null,null,null,0]
[4897,null,null,null,null,null,null,null,null,null,0]
[4898,null,null,null,null,null,null,null,null,null,0]
[4899,null,null,null,null,null,null,null,null,null,0]
[4900,null,null,null,null,null,null,null,null,null,0]
[4901,null,null,null,null,null,null,null,null,null,0]
[4902,null,null,null,null,null,null,null,null,null,0]
[4903,null,null,null,null,null,null,null,null,null,0]
[4904,null,null,null,null,null,null,null,null,null,0]
[4905,null,null,null,null,null,null,null,null,null,0]
[4906,null,null,null,null,null,null,null,null,null,0]
[4907,null,null,null,null,null,null,null,null,null,0]
[4908,null,null,null,null,null,null,null,null,null,0]
[4909,null,null,null,null,null,null,null,null,null,0]
[4910,null,null,null,null,null,null,null,null,null,0]
[4911,null,null,null,null,null,null,null,null,null,0]
[4912,null,null,null,null,null,null,null,null,null,0]
[4913,null,null,null,null,null,null,null,null,null,0]
[4914,null,null,null,null,null,null,null,null,null,0]
[4915,null,null,null,null,null,null,null,null,null,0]
[4916,null,null,null,null,null,null,null,null,null,0]
[4917,null,null,null,null,null,null,null,null,null,0]
[4918,null,null,null,null,null,null,null,null,null,0]
[4919,null,null,null,null,null,null,null,null,null,0]
[4920,null,null,null,null,null,null,null,null,null,0]
[4921,null,null,null,null,null,null,null,null,null,0]
[4922,null,null,null,null,null,null,null,null,null,0]
[4923,null,null,null,null,null,null,null,null,null,0]
[4924,null,null,null,null,null,null,null,null,null,0]
[4925,null,null,null,null,null,null,null,null,null,0]
[4926,null,null,null,null,null,null,null,null,null,0]
[4927,null,null,null,null,null,null,null,null,null,0]
[4928,null,null,null,null,null,null,null,null,null,0]
[4929,null,null,null,null,null,null,null,null,null,0]
[4930,null,null,null,null,null,null,null,null,null,0]
[4931,null,null,null,null,null,null,null,null,null,0]
[4932,null,null,null,null,null,null,null,null,null,0]
[4933,null,null,null,null,null,null,null,null,null,0]
[4934,null,null,null,null,null,null,null,null,null,0]
[4935,null,null,null,null,null,null,null,null,null,0]
[4936,null,null,null,null,null,null,null,null,null,0]
[4937,null,null,null,null,null,null,null,null,null,0]
[4938,null,null,null,null,null,null,null,null,null,0]
[4939,null,null,null,null,null,null,null,null,null,0]
[4940,null,null,null,null,null,null,null,null,null,0]
[4941,null,null,null,null,null,null,null,null,null,0]
[4942,null,null,null,null,null,null,null,null,null,0]
[4943,null,null,null,null,null,null,null,null,null,0]
[4944,null,null,null,null,null,null,null,null,null,0]
[4945,null,null,null,null,null,null,null,null,null,0]
[4946,null,null,null,null,null,null,null,null,null,0]
[4947,null,null,null,null,null,null,null,null,null,0]
[4948,null,null,null,null,null,null,null,null,null,0]
[{"$f":"A4956+1","v":4949},null,null,null,null,null,null,null,null,null,{"$f":"IF(AND(I4957=0,J4957=0),0,IF(I4957=J4957,\"Paid\",SUM(J4957-I4957)))","v":0}]
[4950,null,null,null,null,null,null,null,null,null,0]
[4951,null,null,null,null,null,null,null,null,null,0]
[4952,null,null,null,null,null,null,null,null,null,0]
[4953,null,null,null,null,null,null,null,null,null,0]
[4954,null,null,null,null,null,null,null,null,null,0]
[4955,null,null,null,null,null,null,null,null,null,0]
[4956,null,null,null,null,null,null,null,null,null,0]
[4957,null,null,null,null,null,null,null,null,null,0]
[4958,null,null,null,null,null,null,null,null,null,0]
[4959,null,null,null,null,null,null,null,null,null,0]
[4960,null,null,null,null,null,null,null,null,null,0]
[4961,null,null,null,null,null,null,null,null,null,0]
[4962,null,null,null,null,null,null,null,null,null,0]
[4963,null,null,null,null,null,null,null,null,null,0]
[4964,null,null,null,null,null,null,null,null,null,0]
[4965,null,null,null,null,null,null,null,null,null,0]
[4966,null,null,null,null,null,null,null,null,null,0]
[4967,null,null,null,null,null,null,null,null,null,0]
[4968,null,null,null,null,null,null,null,null,null,0]
[4969,null,null,null,null,null,null,null,null,null,0]
[4970,null,null,null,null,null,null,null,null,null,0]
[4971,null,null,null,null,null,null,null,null,null,0]
[4972,null,null,null,null,null,null,null,null,null,0]
[4973,null,null,null,null,null,null,null,null,null,0]
[4974,null,null,null,null,null,null,null,null,null,0]
[4975,null,null,null,null,null,null,null,null,null,0]
[4976,null,null,null,null,null,null,null,null,null,0]
[4977,null,null,null,null,null,null,null,null,null,0]
[4978,null,null,null,null,null,null,null,null,null,0]
[4979,null,null,null,null,null,null,null,null,null,0]
[4980,null,null,null,null,null,null,null,null,null,0]
[4981,null,null,null,null,null,null,null,null,null,0]
[4982,null,null,null,null,null,null,null,null,null,0]
[4983,null,null,null,null,null,null,null,null,null,0]
[4984,null,null,null,null,null,null,null,null,null,0]
[4985,null,null,null,null,null,null,null,null,null,0]
[4986,null,null,null,null,null,null,null,null,null,0]
[4987,null,null,null,null,null,null,null,null,null,0]
[4988,null,null,null,null,null,null,null,null,null,0]
[4989,null,null,null,null,null,null,null,null,null,0]
[4990,null,null,null,null,null,null,null,null,null,0]
[4991,null,null,null,null,null,null,null,null,null,0]
[4992,null,null,null,null,null,null,null,null,null,0]

{"sheet":"(01) Replacement","index":2,"n_rows":50,"n_cols":7,"rows_kept":50,"cut":false,"hidden":false,"merged":[[1,0,1,6]]}
[]
["Replacement Purchase Expenses ( 01 )\nاستعاضة مصروفات المشتريات"]
[null,null,null,null,null,"Of Month :",{"$f":"DATA!D3","v":"2018-04-01"}]
[null,null,"Date :","2018-04-01"]
["#","Rec. No.","Date","Descriptions","Invoices Amount","Paid OR Not","Remarks"]
[1,null,{"$f":"IFERROR(VLOOKUP($B6,'Purchasing Analysis'!$B$9:$M$1048576,2,FALSE),\"\")","v":""},{"$f":"IFERROR(VLOOKUP($B6,'Purchasing Analysis'!$B$9:$M$1048576,7,FALSE),\"\")","v":""},{"$f":"IFERROR(VLOOKUP($B6,'Purchasing Analysis'!$B$9:$M$1048576,8,FALSE),\"\")","v":""},{"$f":"IFERROR(VLOOKUP($B6,'Purchasing Analysis'!$B$9:$M$1048576,10,FALSE),\"\")","v":""}]
[{"$f":"A6+1","v":2},null,{"$f":"IFERROR(VLOOKUP($B7,'Purchasing Analysis'!$B$9:$M$1048576,2,FALSE),\"\")","v":""},{"$f":"IFERROR(VLOOKUP($B7,'Purchasing Analysis'!$B$9:$M$1048576,7,FALSE),\"\")","v":""},{"$f":"IFERROR(VLOOKUP($B7,'Purchasing Analysis'!$B$9:$M$1048576,8,FALSE),\"\")","v":""},{"$f":"IFERROR(VLOOKUP($B7,'Purchasing Analysis'!$B$9:$M$1048576,10,FALSE),\"\")","v":""}]
[{"$f":"A7+1","v":3},null,{"$f":"IFERROR(VLOOKUP($B8,'Purchasing Analysis'!$B$9:$M$1048576,2,FALSE),\"\")","v":""},{"$f":"IFERROR(VLOOKUP($B8,'Purchasing Analysis'!$B$9:$M$1048576,7,FALSE),\"\")","v":""},{"$f":"IFERROR(VLOOKUP($B8,'Purchasing Analysis'!$B$9:$M$1048576,8,FALSE),\"\")","v":""},{"$f":"IFERROR(VLOOKUP($B8,'Purchasing Analysis'!$B$9:$M$1048576,10,FALSE),\"\")","v":""}]
[4,null,{"$f":"IFERROR(VLOOKUP($B9,'Purchasing Analysis'!$B$9:$M$1048576,2,FALSE),\"\")","v":""},{"$f":"IFERROR(VLOOKUP($B9,'Purchasing Analysis'!$B$9:$M$1048576,7,FALSE),\"\")","v":""},{"$f":"IFERROR(VLOOKUP($B9,'Purchasing Analysis'!$B$9:$M$1048576,8,FALSE),\"\")","v":""},{"$f":"IFERROR(VLOOKUP($B9,'Purchasing Analysis'!$B$9:$M$1048576,10,FALSE),\"\")","v":""}]
[5,null,{"$f":"IFERROR(VLOOKUP($B10,'Purchasing Analysis'!$B$9:$M$1048576,2,FALSE),\"\")","v":""},{"$f":"IFERROR(VLOOKUP($B10,'Purchasing Analysis'!$B$9:$M$1048576,7,FALSE),\"\")","v":""},{"$f":"IFERROR(VLOOKUP($B10,'Purchasing Analysis'!$B$9:$M$1048576,8,FALSE),\"\")","v":""},{"$f":"IFERROR(VLOOKUP($B10,'Purchasing Analysis'!$B$9:$M$1048576,10,FALSE),\"\")","v":""}]
[6,null,{"$f":"IFERROR(VLOOKUP($B11,'Purchasing Analysis'!$B$9:$M$1048576,2,FALSE),\"\")","v":""},{"$f":"IFERROR(VLOOKUP($B11,'Purchasing Analysis'!$B$9:$M$1048576,7,FALSE),\"\")","v":""},{"$f":"IFERROR(VLOOKUP($B11,'Purchasing Analysis'!$B$9:$M$1048576,8,FALSE),\"\")","v":""},{"$f":"IFERROR(VLOOKUP($B11,'Purchasing Analysis'!$B$9:$M$1048576,10,FALSE),\"\")","v":""}]
[7,null,{"$f":"IFERROR(VLOOKUP($B12,'Purchasing Analysis'!$B$9:$M$1048576,2,FALSE),\"\")","v":""},{"$f":"IFERROR(VLOOKUP($B12,'Purchasing Analysis'!$B$9:$M$1048576,7,FALSE),\"\")","v":""},{"$f":"IFERROR(VLOOKUP($B12,'Purchasing Analysis'!$B$9:$M$1048576,8,FALSE),\"\")","v":""},{"$f":"IFERROR(VLOOKUP($B12,'Purchasing Analysis'!$B$9:$M$1048576,10,FALSE),\"\")","v":""}]
[8,null,{"$f":"IFERROR(VLOOKUP($B13,'Purchasing Analysis'!$B$9:$M$1048576,2,FALSE),\"\")","v":""},{"$f":"IFERROR(VLOOKUP($B13,'Purchasing Analysis'!$B$9:$M$1048576,7,FALSE),\"\")","v":""},{"$f":"IFERROR(VLOOKUP($B13,'Purchasing Analysis'!$B$9:$M$1048576,8,FALSE),\"\")","v":""},{"$f":"IFERROR(VLOOKUP($B13,'Purchasing Analysis'!$B$9:$M$1048576,10,FALSE),\"\")","v":""}]
[9,null,{"$f":"IFERROR(VLOOKUP($B14,'Purchasing Analysis'!$B$9:$M$1048576,2,FALSE),\"\")","v":""},{"$f":"IFERROR(VLOOKUP($B14,'Purchasing Analysis'!$B$9:$M$1048576,7,FALSE),\"\")","v":""},{"$f":"IFERROR(VLOOKUP($B14,'Purchasing Analysis'!$B$9:$M$1048576,8,FALSE),\"\")","v":""},{"$f":"IFERROR(VLOOKUP($B14,'Purchasing Analysis'!$B$9:$M$1048576,10,FALSE),\"\")","v":""}]
[10,null,{"$f":"IFERROR(VLOOKUP($B15,'Purchasing Analysis'!$B$9:$M$1048576,2,FALSE),\"\")","v":""},{"$f":"IFERROR(VLOOKUP($B15,'Purchasing Analysis'!$B$9:$M$1048576,7,FALSE),\"\")","v":""},{"$f":"IFERROR(VLOOKUP($B15,'Purchasing Analysis'!$B$9:$M$1048576,8,FALSE),\"\")","v":""},{"$f":"IFERROR(VLOOKUP($B15,'Purchasing Analysis'!$B$9:$M$1048576,10,FALSE),\"\")","v":""}]
[11,null,{"$f":"IFERROR(VLOOKUP($B16,'Purchasing Analysis'!$B$9:$M$1048576,2,FALSE),\"\")","v":""},{"$f":"IFERROR(VLOOKUP($B16,'Purchasing Analysis'!$B$9:$M$1048576,7,FALSE),\"\")","v":""},{"$f":"IFERROR(VLOOKUP($B16,'Purchasing Analysis'!$B$9:$M$1048576,8,FALSE),\"\")","v":""},{"$f":"IFERROR(VLOOKUP($B16,'Purchasing Analysis'!$B$9:$M$1048576,10,FALSE),\"\")","v":""}]
[12,null,{"$f":"IFERROR(VLOOKUP($B17,'Purchasing Analysis'!$B$9:$M$1048576,2,FALSE),\"\")","v":""},{"$f":"IFERROR(VLOOKUP($B17,'Purchasing Analysis'!$B$9:$M$1048576,7,FALSE),\"\")","v":""},{"$f":"IFERROR(VLOOKUP($B17,'Purchasing Analysis'!$B$9:$M$1048576,8,FALSE),\"\")","v":""},{"$f":"IFERROR(VLOOKUP($B17,'Purchasing Analysis'!$B$9:$M$1048576,10,FALSE),\"\")","v":""}]
[13,null,{"$f":"IFERROR(VLOOKUP($B18,'Purchasing Analysis'!$B$9:$M$1048576,2,FALSE),\"\")","v":""},{"$f":"IFERROR(VLOOKUP($B18,'Purchasing Analysis'!$B$9:$M$1048576,7,FALSE),\"\")","v":""},{"$f":"IFERROR(VLOOKUP($B18,'Purchasing Analysis'!$B$9:$M$1048576,8,FALSE),\"\")","v":""},{"$f":"IFERROR(VLOOKUP($B18,'Purchasing Analysis'!$B$9:$M$1048576,10,FALSE),\"\")","v":""}]
[14,null,{"$f":"IFERROR(VLOOKUP($B19,'Purchasing Analysis'!$B$9:$M$1048576,2,FALSE),\"\")","v":""},{"$f":"IFERROR(VLOOKUP($B19,'Purchasing Analysis'!$B$9:$M$1048576,7,FALSE),\"\")","v":""},{"$f":"IFERROR(VLOOKUP($B19,'Purchasing Analysis'!$B$9:$M$1048576,8,FALSE),\"\")","v":""},{"$f":"IFERROR(VLOOKUP($B19,'Purchasing Analysis'!$B$9:$M$1048576,10,FALSE),\"\")","v":""}]
[15,null,{"$f":"IFERROR(VLOOKUP($B20,'Purchasing Analysis'!$B$9:$M$1048576,2,FALSE),\"\")","v":""},{"$f":"IFERROR(VLOOKUP($B20,'Purchasing Analysis'!$B$9:$M$1048576,7,FALSE),\"\")","v":""},{"$f":"IFERROR(VLOOKUP($B20,'Purchasing Analysis'!$B$9:$M$1048576,8,FALSE),\"\")","v":""},{"$f":"IFERROR(VLOOKUP($B20,'Purchasing Analysis'!$B$9:$M$1048576,10,FALSE),\"\")","v":""}]
[16,null,{"$f":"IFERROR(VLOOKUP($B21,'Purchasing Analysis'!$B$9:$M$1048576,2,FALSE),\"\")","v":""},{"$f":"IFERROR(VLOOKUP($B21,'Purchasing Analysis'!$B$9:$M$1048576,7,FALSE),\"\")","v":""},{"$f":"IFERROR(VLOOKUP($B21,'Purchasing Analysis'!$B$9:$M$1048576,8,FALSE),\"\")","v":""},{"$f":"IFERROR(VLOOKUP($B21,'Purchasing Analysis'!$B$9:$M$1048576,10,FALSE),\"\")","v":""}]
[17,null,{"$f":"IFERROR(VLOOKUP($B22,'Purchasing Analysis'!$B$9:$M$1048576,2,FALSE),\"\")","v":""},{"$f":"IFERROR(VLOOKUP($B22,'Purchasing Analysis'!$B$9:$M$1048576,7,FALSE),\"\")","v":""},{"$f":"IFERROR(VLOOKUP($B22,'Purchasing Analysis'!$B$9:$M$1048576,8,FALSE),\"\")","v":""},{"$f":"IFERROR(VLOOKUP($B22,'Purchasing Analysis'!$B$9:$M$1048576,10,FALSE),\"\")","v":""}]
[18,null,{"$f":"IFERROR(VLOOKUP($B23,'Purchasing Analysis'!$B$9:$M$1048576,2,FALSE),\"\")","v":""},{"$f":"IFERROR(VLOOKUP($B23,'Purchasing Analysis'!$B$9:$M$1048576,7,FALSE),\"\")","v":""},{"$f":"IFERROR(VLOOKUP($B23,'Purchasing Analysis'!$B$9:$M$1048576,8,FALSE),\"\")","v":""},{"$f":"IFERROR(VLOOKUP($B23,'Purchasing Analysis'!$B$9:$M$1048576,10,FALSE),\"\")","v":""}]
[{"$f":"A23+1","v":19},null,{"$f":"IFERROR(VLOOKUP($B24,'Purchasing Analysis'!$B$9:$M$1048576,2,FALSE),\"\")","v":""},{"$f":"IFERROR(VLOOKUP($B24,'Purchasing Analysis'!$B$9:$M$1048576,7,FALSE),\"\")","v":""},{"$f":"IFERROR(VLOOKUP($B24,'Purchasing Analysis'!$B$9:$M$1048576,8,FALSE),\"\")","v":""},{"$f":"IFERROR(VLOOKUP($B24,'Purchasing Analysis'!$B$9:$M$1048576,10,FALSE),\"\")","v":""}]
[20,null,{"$f":"IFERROR(VLOOKUP($B25,'Purchasing Analysis'!$B$9:$M$1048576,2,FALSE),\"\")","v":""},{"$f":"IFERROR(VLOOKUP($B25,'Purchasing Analysis'!$B$9:$M$1048576,7,FALSE),\"\")","v":""},{"$f":"IFERROR(VLOOKUP($B25,'Purchasing Analysis'!$B$9:$M$1048576,8,FALSE),\"\")","v":""},{"$f":"IFERROR(VLOOKUP($B25,'Purchasing Analysis'!$B$9:$M$1048576,10,FALSE),\"\")","v":""}]
[21,null,{"$f":"IFERROR(VLOOKUP($B26,'Purchasing Analysis'!$B$9:$M$1048576,2,FALSE),\"\")","v":""},{"$f":"IFERROR(VLOOKUP($B26,'Purchasing Analysis'!$B$9:$M$1048576,7,FALSE),\"\")","v":""},{"$f":"IFERROR(VLOOKUP($B26,'Purchasing Analysis'!$B$9:$M$1048576,8,FALSE),\"\")","v":""},{"$f":"IFERROR(VLOOKUP($B26,'Purchasing Analysis'!$B$9:$M$1048576,10,FALSE),\"\")","v":""}]
[22,null,{"$f":"IFERROR(VLOOKUP($B27,'Purchasing Analysis'!$B$9:$M$1048576,2,FALSE),\"\")","v":""},{"$f":"IFERROR(VLOOKUP($B27,'Purchasing Analysis'!$B$9:$M$1048576,7,FALSE),\"\")","v":""},{"$f":"IFERROR(VLOOKUP($B27,'Purchasing Analysis'!$B$9:$M$1048576,8,FALSE),\"\")","v":""},{"$f":"IFERROR(VLOOKUP($B27,'Purchasing Analysis'!$B$9:$M$1048576,10,FALSE),\"\")","v":""}]
[23,null,{"$f":"IFERROR(VLOOKUP($B28,'Purchasing Analysis'!$B$9:$M$1048576,2,FALSE),\"\")","v":""},{"$f":"IFERROR(VLOOKUP($B28,'Purchasing Analysis'!$B$9:$M$1048576,7,FALSE),\"\")","v":""},{"$f":"IFERROR(VLOOKUP($B28,'Purchasing Analysis'!$B$9:$M$1048576,8,FALSE),\"\")","v":""},{"$f":"IFERROR(VLOOKUP($B28,'Purchasing Analysis'!$B$9:$M$1048576,10,FALSE),\"\")","v":""}]
[24,null,{"$f":"IFERROR(VLOOKUP($B29,'Purchasing Analysis'!$B$9:$M$1048576,2,FALSE),\"\")","v":""},{"$f":"IFERROR(VLOOKUP($B29,'Purchasing Analysis'!$B$9:$M$1048576,7,FALSE),\"\")","v":""},{"$f":"IFERROR(VLOOKUP($B29,'Purchasing Analysis'!$B$9:$M$1048576,8,FALSE),\"\")","v":""},{"$f":"IFERROR(VLOOKUP($B29,'Purchasing Analysis'!$B$9:$M$1048576,10,FALSE),\"\")","v":""}]
[25,null,{"$f":"IFERROR(VLOOKUP($B30,'Purchasing Analysis'!$B$9:$M$1048576,2,FALSE),\"\")","v":""},{"$f":"IFERROR(VLOOKUP($B30,'Purchasing Analysis'!$B$9:$M$1048576,7,FALSE),\"\")","v":""},{"$f":"IFERROR(VLOOKUP($B30,'Purchasing Analysis'!$B$9:$M$1048576,8,FALSE),\"\")","v":""},{"$f":"IFERROR(VLOOKUP($B30,'Purchasing Analysis'!$B$9:$M$1048576,10,FALSE),\"\")","v":""}]
[26,null,{"$f":"IFERROR(VLOOKUP($B31,'Purchasing Analysis'!$B$9:$M$1048576,2,FALSE),\"\")","v":""},{"$f":"IFERROR(VLOOKUP($B31,'Purchasing Analysis'!$B$9:$M$1048576,7,FALSE),\"\")","v":""},{"$f":"IFERROR(VLOOKUP($B31,'Purchasing Analysis'!$B$9:$M$1048576,8,FALSE),\"\")","v":""},{"$f":"IFERROR(VLOOKUP($B31,'Purchasing Analysis'!$B$9:$M$1048576,10,FALSE),\"\")","v":""}]
[27,null,{"$f":"IFERROR(VLOOKUP($B32,'Purchasing Analysis'!$B$9:$M$1048576,2,FALSE),\"\")","v":""},{"$f":"IFERROR(VLOOKUP($B32,'Purchasing Analysis'!$B$9:$M$1048576,7,FALSE),\"\")","v":""},{"$f":"IFERROR(VLOOKUP($B32,'Purchasing Analysis'!$B$9:$M$1048576,8,FALSE),\"\")","v":""},{"$f":"IFERROR(VLOOKUP($B32,'Purchasing Analysis'!$B$9:$M$1048576,10,FALSE),\"\")","v":""}]
[28,null,{"$f":"IFERROR(VLOOKUP($B33,'Purchasing Analysis'!$B$9:$M$1048576,2,FALSE),\"\")","v":""},{"$f":"IFERROR(VLOOKUP($B33,'Purchasing Analysis'!$B$9:$M$1048576,7,FALSE),\"\")","v":""},{"$f":"IFERROR(VLOOKUP($B33,'Purchasing Analysis'!$B$9:$M$1048576,8,FALSE),\"\")","v":""},{"$f":"IFERROR(VLOOKUP($B33,'Purchasing Analysis'!$B$9:$M$1048576,10,FALSE),\"\")","v":""}]
[29,null,{"$f":"IFERROR(VLOOKUP($B34,'Purchasing Analysis'!$B$9:$M$1048576,2,FALSE),\"\")","v":""},{"$f":"IFERROR(VLOOKUP($B34,'Purchasing Analysis'!$B$9:$M$1048576,7,FALSE),\"\")","v":""},{"$f":"IFERROR(VLOOKUP($B34,'Purchasing Analysis'!$B$9:$M$1048576,8,FALSE),\"\")","v":""},{"$f":"IFERROR(VLOOKUP($B34,'Purchasing Analysis'!$B$9:$M$1048576,10,FALSE),\"\")","v":""}]
[30,null,{"$f":"IFERROR(VLOOKUP($B35,'Purchasing Analysis'!$B$9:$M$1048576,2,FALSE),\"\")","v":""},{"$f":"IFERROR(VLOOKUP($B35,'Purchasing Analysis'!$B$9:$M$1048576,7,FALSE),\"\")","v":""},{"$f":"IFERROR(VLOOKUP($B35,'Purchasing Analysis'!$B$9:$M$1048576,8,FALSE),\"\")","v":""},{"$f":"IFERROR(VLOOKUP($B35,'Purchasing Analysis'!$B$9:$M$1048576,10,FALSE),\"\")","v":""}]
[31,null,{"$f":"IFERROR(VLOOKUP($B36,'Purchasing Analysis'!$B$9:$M$1048576,2,FALSE),\"\")","v":""},{"$f":"IFERROR(VLOOKUP($B36,'Purchasing Analysis'!$B$9:$M$1048576,7,FALSE),\"\")","v":""},{"$f":"IFERROR(VLOOKUP($B36,'Purchasing Analysis'!$B$9:$M$1048576,8,FALSE),\"\")","v":""},{"$f":"IFERROR(VLOOKUP($B36,'Purchasing Analysis'!$B$9:$M$1048576,10,FALSE),\"\")","v":""}]
[32,null,{"$f":"IFERROR(VLOOKUP($B37,'Purchasing Analysis'!$B$9:$M$1048576,2,FALSE),\"\")","v":""},{"$f":"IFERROR(VLOOKUP($B37,'Purchasing Analysis'!$B$9:$M$1048576,7,FALSE),\"\")","v":""},{"$f":"IFERROR(VLOOKUP($B37,'Purchasing Analysis'!$B$9:$M$1048576,8,FALSE),\"\")","v":""},{"$f":"IFERROR(VLOOKUP($B37,'Purchasing Analysis'!$B$9:$M$1048576,10,FALSE),\"\")","v":""}]
[33,null,{"$f":"IFERROR(VLOOKUP($B38,'Purchasing Analysis'!$B$9:$M$1048576,2,FALSE),\"\")","v":""},{"$f":"IFERROR(VLOOKUP($B38,'Purchasing Analysis'!$B$9:$M$1048576,7,FALSE),\"\")","v":""},{"$f":"IFERROR(VLOOKUP($B38,'Purchasing Analysis'!$B$9:$M$1048576,8,FALSE),\"\")","v":""},{"$f":"IFERROR(VLOOKUP($B38,'Purchasing Analysis'!$B$9:$M$1048576,10,FALSE),\"\")","v":""}]
[34,null,{"$f":"IFERROR(VLOOKUP($B39,'Purchasing Analysis'!$B$9:$M$1048576,2,FALSE),\"\")","v":""},{"$f":"IFERROR(VLOOKUP($B39,'Purchasing Analysis'!$B$9:$M$1048576,7,FALSE),\"\")","v":""},{"$f":"IFERROR(VLOOKUP($B39,'Purchasing Analysis'!$B$9:$M$1048576,8,FALSE),\"\")","v":""},{"$f":"IFERROR(VLOOKUP($B39,'Purchasing Analysis'!$B$9:$M$1048576,10,FALSE),\"\")","v":""}]
[35,null,{"$f":"IFERROR(VLOOKUP($B40,'Purchasing Analysis'!$B$9:$M$1048576,2,FALSE),\"\")","v":""},{"$f":"IFERROR(VLOOKUP($B40,'Purchasing Analysis'!$B$9:$M$1048576,7,FALSE),\"\")","v":""},{"$f":"IFERROR(VLOOKUP($B40,'Purchasing Analysis'!$B$9:$M$1048576,8,FALSE),\"\")","v":""},{"$f":"IFERROR(VLOOKUP($B40,'Purchasing Analysis'!$B$9:$M$1048576,10,FALSE),\"\")","v":""}]
[36,null,{"$f":"IFERROR(VLOOKUP($B41,'Purchasing Analysis'!$B$9:$M$1048576,2,FALSE),\"\")","v":""},{"$f":"IFERROR(VLOOKUP($B41,'Purchasing Analysis'!$B$9:$M$1048576,7,FALSE),\"\")","v":""},{"$f":"IFERROR(VLOOKUP($B41,'Purchasing Analysis'!$B$9:$M$1048576,8,FALSE),\"\")","v":""},{"$f":"IFERROR(VLOOKUP($B41,'Purchasing Analysis'!$B$9:$M$1048576,10,FALSE),\"\")","v":""}]
[37,null,{"$f":"IFERROR(VLOOKUP($B42,'Purchasing Analysis'!$B$9:$M$1048576,2,FALSE),\"\")","v":""},{"$f":"IFERROR(VLOOKUP($B42,'Purchasing Analysis'!$B$9:$M$1048576,7,FALSE),\"\")","v":""},{"$f":"IFERROR(VLOOKUP($B42,'Purchasing Analysis'!$B$9:$M$1048576,8,FALSE),\"\")","v":""},{"$f":"IFERROR(VLOOKUP($B42,'Purchasing Analysis'!$B$9:$M$1048576,10,FALSE),\"\")","v":""}]
[38,null,{"$f":"IFERROR(VLOOKUP($B43,'Purchasing Analysis'!$B$9:$M$1048576,2,FALSE),\"\")","v":""},{"$f":"IFERROR(VLOOKUP($B43,'Purchasing Analysis'!$B$9:$M$1048576,7,FALSE),\"\")","v":""},{"$f":"IFERROR(VLOOKUP($B43,'Purchasing Analysis'!$B$9:$M$1048576,8,FALSE),\"\")","v":""},{"$f":"IFERROR(VLOOKUP($B43,'Purchasing Analysis'!$B$9:$M$1048576,10,FALSE),\"\")","v":""}]
[39,null,{"$f":"IFERROR(VLOOKUP($B44,'Purchasing Analysis'!$B$9:$M$1048576,2,FALSE),\"\")","v":""},{"$f":"IFERROR(VLOOKUP($B44,'Purchasing Analysis'!$B$9:$M$1048576,7,FALSE),\"\")","v":""},{"$f":"IFERROR(VLOOKUP($B44,'Purchasing Analysis'!$B$9:$M$1048576,8,FALSE),\"\")","v":""},{"$f":"IFERROR(VLOOKUP($B44,'Purchasing Analysis'!$B$9:$M$1048576,10,FALSE),\"\")","v":""}]
[40,null,{"$f":"IFERROR(VLOOKUP($B45,'Purchasing Analysis'!$B$9:$M$1048576,2,FALSE),\"\")","v":""},{"$f":"IFERROR(VLOOKUP($B45,'Purchasing Analysis'!$B$9:$M$1048576,7,FALSE),\"\")","v":""},{"$f":"IFERROR(VLOOKUP($B45,'Purchasing Analysis'!$B$9:$M$1048576,8,FALSE),\"\")","v":""},{"$f":"IFERROR(VLOOKUP($B45,'Purchasing Analysis'!$B$9:$M$1048576,10,FALSE),\"\")","v":""}]
[null,null,null,"Amount",{"$f":"SUM(E6:E45)","v":0}]
[]
[null,"Purchasing Manager ……….",null,null,null,"Controller ………."]
[]
[null,null,null,"Accountant ………."]